Workbook

Sheet BDK_IV_I (hidden)
K1: i.v. Infusion | L1: (First order kinetics) | IU1: toplam süre | IV1: =8*MAX(C14,C23) -> 80
IU2: Step | IV2: =IV1/100 -> 0.8
IT4: t | IU4: C1 | IV4: C2
IT5: 0 | IU5: =$F$14*(1-EXP(-IT5*$F$12)) -> 0 | IV5: =$F$23*(1-EXP(-IT5*$F$21)) -> 0
IT6: =IT5+$IV$2 -> 0.8 | IU6: 0.03028936192 | IV6: 0.03112894623
IT7: =IT6+$IV$2 -> 1.6 | IU7: 0.05739910022 | IV7: 0.06057872384
IT8: 2.4 | IU8: 0.08166299566 | IV8: 0.08843991114
IT9: 3.2 | IU9: 0.1033797904 | IV9: 0.1147982004
IT10: 4 | IU10: 0.1228168662 | IV10: 0.1397346616
B11: Case 1 | IT11: 4.8 | IU11: 0.1402135363 | IV11: 0.1633259913
B12: Infusion rate | C12: 2 | D12: mg/h | E12: kelim | F12: =LN(2)/C14 -> 0.1386294361 | G12: h-1 | IT12: 5.6 | IU12: 0.1557839922 | IV12: 0.1856447492
B13: Vd | C13: 50 | D13: l | E13: CL | F13: =F12*C13 -> 6.931471806 | G13: l/h | IT13: 6.4 | IU13: 0.1697199405 | IV13: 0.2067595808
B14: t1/2 | C14: 5 | D14: hours | E14: Css | F14: =C12/(C13*F12) -> 0.2885390082 | G14: mg/ml | IT14: 7.2 | IU14: 0.1821929637 | IV14: 0.2267354287
IT15: 8 | IU15: 0.1933566322 | IV15: 0.2456337323
IT16: 8.8 | IU16: 0.2033483954 | IV16: 0.263512617
IT17: 9.6 | IU17: 0.2122912739 | IV17: 0.2804270725
IT18: 10.4 | IU18: 0.2202953744 | IV18: 0.2964291225
IT19: 11.2 | IU19: 0.227459245 | IV19: 0.3115679843
B20: Case 2 | IT20: 12 | IU20: 0.2338710888 | IV20: 0.3258902203
B21: Infusion rate | C21: 2 | D21: mg/h | E21: kelim | F21: =LN(2)/C23 -> 0.06931471806 | G21: h-1 | IT21: 12.8 | IU21: 0.2396098498 | IV21: 0.3394398811
B22: Vd | C22: 50 | D22: l | E22: CL | F22: =F21*C22 -> 3.465735903 | G22: l/h | IT22: 13.6 | IU22: 0.2447461847 | IV22: 0.3522586413
B23: t1/2 | C23: 10 | D23: hours | E23: Css | F23: =C21/(C22*F21) -> 0.5770780164 | G23: mg/ml | IT23: 14.4 | IU23: 0.2493433333 | IV23: 0.3643859275
IT24: 15.2 | IU24: 0.2534578964 | IV24: 0.3758590393
IT25: 16 | IU25: 0.2571405337 | IV25: 0.3867132644
IT26: 16.8 | IU26: 0.2604365863 | IV26: 0.3969819871
IT27: 17.6 | IU27: 0.263386636 | IV27: 0.4066967908
IT28: 18.4 | IU28: 0.2660270045 | IV28: 0.415887555
IT29: 19.2 | IU29: 0.2683902005 | IV29: 0.4245825478
IT30: 20 | IU30: 0.2705053202 | IV30: 0.4328085123
IT31: 20.8 | IU31: 0.2723984053 | IV31: 0.4405907488
IT32: 21.6 | IU32: 0.2740927639 | IV32: 0.4479531932
IT33: 22.4 | IU33: 0.2756092574 | IV33: 0.4549184901
IT34: 23.2 | IU34: 0.2769665571 | IV34: 0.4615080624
IT35: 24 | IU35: 0.2781813743 | IV35: 0.4677421777
IT36: 24.8 | IU36: 0.2792686662 | IV36: 0.4736400101
IT37: 25.6 | IU37: =$F$14*(1-EXP(-IT37*$F$12)) -> 0.2802418197 | IV37: =$F$23*(1-EXP(-IT37*$F$21)) -> 0.4792196996
IT38: 26.4 | IU38: 0.2811128165 | IV38: 0.4844984075
IT39: 27.2 | IU39: 0.2818923804 | IV39: 0.4894923694
IT40: 28 | IU40: 0.2825901097 | IV40: 0.4942169453
IT41: 28.8 | IU41: 0.2832145949 | IV41: 0.4986866665
IT42: 29.6 | IU42: 0.2837735248 | IV42: 0.5029152804
IT43: 30.4 | IU43: 0.2842737811 | IV43: 0.5069157929
IT44: 31.2 | IU44: 0.284721523 | IV44: 0.5107005083
IT45: 32 | IU45: 0.2851222632 | IV45: 0.5142810673
IT46: 32.8 | IU46: 0.2854809358 | IV46: 0.5176684825
IT47: 33.6 | IU47: 0.2858019567 | IV47: 0.5208731726
IT48: 34.4 | IU48: 0.2860892785 | IV48: 0.5239049941
IT49: 35.2 | IU49: 0.2863464387 | IV49: 0.5267732721
IT50: 36 | IU50: 0.2865766035 | IV50: 0.5294868284
IT51: 36.8 | IU51: 0.2867826068 | IV51: 0.532054009
IT52: 37.6 | IU52: 0.2869669849 | IV52: 0.53448271
IT53: 38.4 | IU53: 0.2871320079 | IV53: 0.536780401
IT54: 39.2 | IU54: 0.2872797077 | IV54: 0.5389541492
IT55: 40 | IU55: 0.2874119027 | IV55: 0.5410106403
IT56: 40.8 | IU56: 0.2875302205 | IV56: 0.5429561995
IT57: 41.6 | IU57: 0.2876361179 | IV57: 0.5447968106
IT58: 42.4 | IU58: 0.2877308988 | IV58: 0.5465381348
IT59: 43.2 | IU59: 0.28781573 | IV59: 0.5481855279
IT60: 44 | IU60: 0.2878916561 | IV60: 0.5497440567
IT61: 44.8 | IU61: 0.2879596118 | IV61: 0.5512185148
IT62: 45.6 | IU62: 0.2880204339 | IV62: 0.5526134372
IT63: 46.4 | IU63: 0.2880748712 | IV63: 0.5539331141
IT64: 47.2 | IU64: 0.2881235939 | IV64: 0.5551816046
IT65: 48 | IU65: 0.288167202 | IV65: 0.5563627486
IT66: 48.8 | IU66: 0.2882062323 | IV66: 0.5574801789
IT67: 49.6 | IU67: 0.2882411655 | IV67: 0.5585373324
IT68: 50.4 | IU68: 0.2882724315 | IV68: 0.5595374605
IT69: 51.2 | IU69: =$F$14*(1-EXP(-IT69*$F$12)) -> 0.2883004154 | IV69: =$F$23*(1-EXP(-IT69*$F$21)) -> 0.5604836394
IT70: 52 | IU70: 0.2883254616 | IV70: 0.5613787791
IT71: =IT70+$IV$2 -> 52.8 | IU71: 0.2883478787 | IV71: 0.5622256329
IT72: 53.6 | IU72: 0.2883679425 | IV72: 0.5630268054
IT73: 54.4 | IU73: 0.2883859001 | IV73: 0.5637847608
IT74: 55.2 | IU74: 0.2884019726 | IV74: 0.5645018303
IT75: 56 | IU75: 0.2884163579 | IV75: 0.5651802194
IT76: 56.8 | IU76: 0.2884292331 | IV76: 0.5658220145
IT77: 57.6 | IU77: 0.2884407567 | IV77: 0.5664291898
IT78: 58.4 | IU78: 0.2884510707 | IV78: 0.5670036125
IT79: 59.2 | IU79: 0.2884603019 | IV79: 0.5675470496
IT80: 60 | IU80: 0.2884685641 | IV80: 0.5680611724
IT81: 60.8 | IU81: 0.2884759589 | IV81: 0.5685475621
IT82: 61.6 | IU82: 0.2884825775 | IV82: 0.5690077149
IT83: 62.4 | IU83: 0.2884885013 | IV83: 0.569443046
IT84: 63.2 | IU84: 0.2884938033 | IV84: 0.5698548942
IT85: 64 | IU85: 0.2884985487 | IV85: 0.5702445264
IT86: 64.8 | IU86: 0.2885027959 | IV86: 0.570613141
IT87: 65.6 | IU87: 0.2885065973 | IV87: 0.5709618716
IT88: 66.4 | IU88: 0.2885099996 | IV88: 0.5712917908
IT89: 67.2 | IU89: 0.2885130448 | IV89: 0.5716039134
IT90: 68 | IU90: 0.2885157703 | IV90: 0.5718991994
IT91: 68.8 | IU91: 0.2885182097 | IV91: 0.572178557
IT92: 69.6 | IU92: 0.288520393 | IV92: 0.5724428454
IT93: 70.4 | IU93: 0.2885223471 | IV93: 0.5726928774
IT94: 71.2 | IU94: 0.2885240961 | IV94: 0.5729294221
IT95: 72 | IU95: 0.2885256615 | IV95: 0.573153207
IT96: 72.8 | IU96: 0.2885270626 | IV96: 0.5733649205
IT97: 73.6 | IU97: 0.2885283166 | IV97: 0.5735652136
IT98: 74.4 | IU98: 0.2885294389 | IV98: 0.5737547025
IT99: 75.2 | IU99: 0.2885304435 | IV99: 0.5739339698
IT100: =IT99+$IV$2 -> 76 | IU100: 0.2885313425 | IV100: 0.5741035671
IT101: 76.8 | IU101: =$F$14*(1-EXP(-IT101*$F$12)) -> 0.2885321472 | IV101: 0.5742640159
IT102: 77.6 | IU102: =$F$14*(1-EXP(-IT102*$F$12)) -> 0.2885328675 | IV102: 0.5744158097
IT103: 78.4 | IU103: =$F$14*(1-EXP(-IT103*$F$12)) -> 0.2885335121 | IV103: 0.5745594154
IT104: 79.2 | IU104: =$F$14*(1-EXP(-IT104*$F$12)) -> 0.288534089 | IV104: 0.5746952747
IT105: 80 | IU105: =$F$14*(1-EXP(-IT105*$F$12)) -> 0.2885346054 | IV105: 0.5748238054

Sheet ANA SAYFA
A1: 109 | IT1: =IV1*0.4 -> 0 | IU1: 0 | IV1: 0
IT2: =IV2*0.4 -> 0.2801297188 | IU2: 0.0802595069 | IV2: 0.700324297
IT3: 0.5294669905 | IU3: 0.1605190138 | IV3: 1.323667476
IT4: 0.7512601558 | IU4: 0.2407785207 | IV4: 1.87815039
IT5: 0.9484154878 | IU5: 0.3210380276 | IV5: 2.371038719
IT6: 1.12353321 | IU6: 0.4012975345 | IV6: 2.808833026
IT7: 1.278939724 | IU7: 0.4815570414 | IV7: 3.197349311
IT8: 1.416716441 | IU8: 0.5618165483 | IV8: 3.541791102
IT9: 1.538725578 | IU9: 0.6420760552 | IV9: 3.846813945
IT10: 1.64663324 | IU10: 0.7223355621 | IV10: 4.116583101
IT11: 1.74193007 | IU11: 0.802595069 | IV11: 4.354825176
IT12: 1.825949724 | IU12: 0.8828545759 | IV12: 4.56487431
IT13: 1.8998854 | IU13: 0.9631140828 | IV13: 4.7497135
IT14: 1.964804631 | IU14: 1.04337359 | IV14: 4.912011577
IT15: 2.021662515 | IU15: 1.123633097 | IV15: 5.054156287
IT16: 2.071313555 | IU16: 1.203892603 | IV16: 5.178283888
IT17: 2.114522252 | IU17: 1.28415211 | IV17: 5.28630563
IT18: 2.15197258 | IU18: 1.364411617 | IV18: 5.379931449
IT19: 2.184276467 | IU19: 1.444671124 | IV19: 5.460691167
IT20: 2.211981382 | IU20: 1.524930631 | IV20: 5.529953455
IT21: 2.235577121 | IU21: 1.605190138 | IV21: 5.588942803
IT22: 2.25550188 | IU22: 1.685449645 | IV22: 5.638754701
IT23: 2.27214769 | IU23: 1.765709152 | IV23: 5.680369224
IT24: 2.285865275 | IU24: 1.845968659 | IV24: 5.714663187
IT25: 2.296968405 | IU25: 1.926228166 | IV25: 5.742421012
IT26: 2.305737786 | IU26: 2.006487672 | IV26: 5.764344464
IT27: 2.31242454 | IU27: 2.086747179 | IV27: 5.781061351
IT28: 2.317253325 | IU28: 2.167006686 | IV28: 5.793133312
IT29: 2.320425114 | IU29: 2.247266193 | IV29: 5.801062785
IT30: 2.322119697 | IU30: 2.3275257 | IV30: 5.805299243
IT31: 2.322497907 | IU31: 2.407785207 | IV31: 5.806244767
IT32: 2.321703616 | IU32: 2.488044714 | IV32: 5.804259041
IT33: 2.319865525 | IU33: 2.568304221 | IV33: 5.799663813
IT34: 2.317098757 | IU34: 2.648563728 | IV34: 5.792746892
IT35: 2.313506289 | IU35: 2.728823235 | IV35: 5.783765722
IT36: 2.309180231 | IU36: 2.809082741 | IV36: 5.772950577
IT37: 2.304202971 | IU37: 2.889342248 | IV37: 5.760507427
IT38: 2.298648197 | IU38: 2.969601755 | IV38: 5.746620492
IT39: 2.292581814 | IU39: 3.049861262 | IV39: 5.731454536
IT40: 2.286062766 | IU40: 3.130120769 | IV40: 5.715156915
IT41: 2.279143764 | IU41: 3.210380276 | IV41: 5.697859411
IT42: 2.271871948 | IU42: 3.290639783 | IV42: 5.679679869
IT43: 2.264289468 | IU43: 3.37089929 | IV43: 5.66072367
IT44: 2.256434016 | IU44: 3.451158797 | IV44: 5.64108504
IT45: 2.248339289 | IU45: 3.531418304 | IV45: 5.620848224
IT46: 2.240035416 | IU46: 3.61167781 | IV46: 5.600088541
IT47: 2.231549328 | IU47: 3.691937317 | IV47: 5.578873321
IT48: 2.2229051 | IU48: 3.772196824 | IV48: 5.557262749
IT49: 2.214124246 | IU49: 3.852456331 | IV49: 5.535310614
IT50: 2.205225995 | IU50: 3.932715838 | IV50: 5.513064988
IT51: 2.196227528 | IU51: 4.012975345 | IV51: 5.490568821
IT52: 2.187144196 | IU52: 4.093234852 | IV52: 5.467860489
IT53: 2.177989708 | IU53: 4.173494359 | IV53: 5.444974269
IT54: 2.16877631 | IU54: 4.253753866 | IV54: 5.421940774
IT55: 2.159514936 | IU55: 4.334013373 | IV55: 5.39878734
IT56: 2.150215347 | IU56: 4.414272879 | IV56: 5.375538368
IT57: 2.140886254 | IU57: 4.494532386 | IV57: 5.352215636
IT58: 2.13153543 | IU58: 4.574791893 | IV58: 5.328838574
IT59: 2.122169806 | IU59: 4.6550514 | IV59: 5.305424515
IT60: 2.112795563 | IU60: 4.735310907 | IV60: 5.281988908
IT61: 2.103418211 | IU61: 4.815570414 | IV61: 5.258545527
IT62: 2.094042656 | IU62: 4.895829921 | IV62: 5.23510664
IT63: 2.084673268 | IU63: 4.976089428 | IV63: 5.21168317
IT64: 2.075313935 | IU64: 5.056348935 | IV64: 5.188284837
IT65: 2.065968115 | IU65: 5.136608442 | IV65: 5.164920287
IT66: =IV66*0.4 -> 2.05663888 | IU66: 5.216867948 | IV66: 5.141597201
IT67: 2.04732896 | IU67: 5.297127455 | IV67: 5.1183224
IT68: 2.038040775 | IU68: 5.377386962 | IV68: 5.095101937
IT69: 2.028776469 | IU69: 5.457646469 | IV69: 5.071941172
IT70: 2.019537942 | IU70: 5.537905976 | IV70: 5.048844854
IT71: 2.010326871 | IU71: 5.618165483 | IV71: 5.025817178
IT72: 2.001144739 | IU72: 5.69842499 | IV72: 5.002861847
IT73: 1.991992849 | IU73: 5.778684497 | IV73: 4.979982123
IT74: 1.98287235 | IU74: 5.858944004 | IV74: 4.957180876
IT75: 1.973784249 | IU75: 5.939203511 | IV75: 4.934460622
IT76: 1.964729425 | IU76: 6.019463017 | IV76: 4.911823563
IT77: 1.955708648 | IU77: 6.099722524 | IV77: 4.88927162
IT78: 1.946722584 | IU78: 6.179982031 | IV78: 4.86680646
IT79: 1.937771811 | IU79: 6.260241538 | IV79: 4.844429529
IT80: 1.928856827 | IU80: 6.340501045 | IV80: 4.822142068
IT81: 1.919978056 | IU81: 6.420760552 | IV81: 4.799945141
IT82: 1.91113586 | IU82: 6.501020059 | IV82: 4.777839651
IT83: 1.902330543 | IU83: 6.581279566 | IV83: 4.755826357
IT84: 1.893562357 | IU84: 6.661539073 | IV84: 4.733905891
IT85: 1.884831508 | IU85: 6.74179858 | IV85: 4.71207877
IT86: 1.876138164 | IU86: 6.822058086 | IV86: 4.69034541
IT87: 1.867482453 | IU87: 6.902317593 | IV87: 4.668706133
IT88: 1.858864473 | IU88: 6.9825771 | IV88: 4.647161183
IT89: 1.850284292 | IU89: 7.062836607 | IV89: 4.62571073
IT90: 1.841741952 | IU90: 7.143096114 | IV90: 4.60435488
IT91: 1.833237472 | IU91: 7.223355621 | IV91: 4.58309368
IT92: 1.824770851 | IU92: 7.303615128 | IV92: 4.561927128
IT93: 1.816342069 | IU93: 7.383874635 | IV93: 4.540855174
IT94: 1.807951091 | IU94: 7.464134142 | IV94: 4.519877728
IT95: 1.799597865 | IU95: 7.544393649 | IV95: 4.498994664
IT96: 1.79128233 | IU96: 7.624653155 | IV96: 4.478205824
IT97: 1.783004409 | IU97: 7.704912662 | IV97: 4.457511022
IT98: 1.774764018 | IU98: 7.785172169 | IV98: 4.436910044
IT99: 1.766561063 | IU99: 7.865431676 | IV99: 4.416402658
IT100: 1.758395443 | IU100: 7.945691183 | IV100: 4.395988607
IT101: 1.750267048 | IU101: 8.02595069 | IV101: 4.37566762
IT102: 1.742175764 | IU102: 8.106210197 | IV102: 4.35543941
IT103: 1.73412147 | IU103: 8.186469704 | IV103: 4.335303674
IT104: 1.72610404 | IU104: 8.266729211 | IV104: 4.3152601
IT105: 1.718123345 | IU105: 8.346988717 | IV105: 4.295308363
IT106: 1.710179252 | IU106: 8.427248224 | IV106: 4.275448131
IT107: 1.702271625 | IU107: 8.507507731 | IV107: 4.255679061
IT108: 1.694400323 | IU108: 8.587767238 | IV108: 4.236000806
IT109: 1.686565204 | IU109: 8.668026745 | IV109: 4.216413011
IT110: 1.678766126 | IU110: 8.748286252 | IV110: 4.196915316
IT111: 1.671002943 | IU111: 8.828545759 | IV111: 4.177507357
IT112: 1.663275506 | IU112: 8.908805266 | IV112: 4.158188765
IT113: 1.655583668 | IU113: 8.989064773 | IV113: 4.13895917
IT114: 1.647927279 | IU114: 9.06932428 | IV114: 4.119818197
IT115: 1.640306188 | IU115: 9.149583786 | IV115: 4.10076547
IT116: 1.632720244 | IU116: 9.229843293 | IV116: 4.081800611
IT117: 1.625169296 | IU117: 9.3101028 | IV117: 4.06292324
IT118: 1.617653191 | IU118: 9.390362307 | IV118: 4.044132978
IT119: 1.610171777 | IU119: 9.470621814 | IV119: 4.025429442
IT120: 1.6027249 | IU120: 9.550881321 | IV120: 4.00681225
IT121: 1.595312408 | IU121: 9.631140828 | IV121: 3.988281021
IT122: 1.587934149 | IU122: 9.711400335 | IV122: 3.969835372
IT123: 1.580589969 | IU123: 9.791659842 | IV123: 3.951474922
IT124: 1.573279715 | IU124: 9.871919349 | IV124: 3.933199288
IT125: 1.566003236 | IU125: 9.952178855 | IV125: 3.91500809
... 156 more rows

Sheet PKD (hidden)
B1: Trend analysis of a database of intravenous pharmacokinetic parameters in humans for 670 drug compounds.
B2: Obach RS, Lombardo F, Waters NJ. Drug Metab Dispos. (2008) 36:1385-405.
B3: Compound | C3: VDss | D3: CL | E3: t 1/2 | F3: Free | G3: MRT
C4: l/kg | D4: ml/min/kg | E4: h | F4: fraction | G4: h | I4: Use PageUp / PageDown keys or mouse wheel to scroll up and down in the table.
B5: Abacavir | C5: 0.84 | D5: 13 | E5: 1 | F5: 0.5 | G5: 1.1
B6: Abanoquil | C6: 6.3 | D6: 14 | E6: 5.9 | F6: N.F. | G6: 7.6
B7: Acarbose | C7: 0.32 | D7: 2.2 | E7: 2.7 | F7: N.F. | G7: 2.4
B8: Acebutolol | C8: 1.7 | D8: 10 | E8: 3.5 | F8: 0.74 | G8: 2.8
B9: Acecainide (N-Acetylprocainamide) | C9: 1.9 | D9: 4 | E9: 6.4 | F9: 0.9 | G9: 7.9
B10: Acetaminophen (Paracetamol) | C10: 1 | D10: 5 | E10: 2.5 | F10: 0.52 | G10: 3.3
B11: Acetazolamide | C11: 0.37 | D11: 0.65 | E11: 13 | F11: 0.04 | G11: 9.5
B12: N-Acetylcysteine | C12: 0.55 | D12: 3.1 | E12: 5.5 | F12: 0.17 | G12: 3
B13: L-Acetylmethadol | C13: 8.3 | D13: 5.4 | E13: 18 | F13: 0.2 | G13: 26
B14: Acetylsalicylic acid | C14: 0.22 | D14: 12 | E14: 0.26 | F14: 0.68 | G14: 0.3
B15: Acivicin | C15: 0.5 | D15: 0.69 | E15: 9.9 | F15: N.F. | G15: 12
B16: Acyclovir | C16: 0.71 | D16: 4.7 | E16: 2.5 | F16: 0.85 | G16: 2.5
B17: Adefovir | C17: 0.42 | D17: 3.7 | E17: 1.6 | F17: 0.96 | G17: 1.9
B18: Adinazolam | C18: 0.98 | D18: 6.2 | E18: 2.1 | F18: 0.31 | G18: 2.6
B19: Albuterol (Salbutamol) | C19: 1.9 | D19: 7.8 | E19: 2.4 | F19: 0.92 | G19: 4.1
B20: Alcuronium | C20: 0.32 | D20: 1.3 | E20: 3.6 | F20: N.F. | G20: 4.1
B21: Alfentanil | C21: 0.45 | D21: 3.9 | E21: 1.6 | F21: 0.086 | G21: 1.9
B22: Alfuzosin | C22: 1.5 | D22: 5.9 | E22: 4.8 | F22: N.F. | G22: 4.2
B23: Alizapride | C23: 1.6 | D23: 6.6 | E23: 2.8 | F23: N.F. | G23: 4
B24: Allopurinol | C24: 0.58 | D24: 11 | E24: 0.8 | F24: 0.97 | G24: 0.88
B25: Almotriptan | C25: 2.2 | D25: 8.9 | E25: 3.4 | F25: 0.6 | G25: 4.2
B26: Alosetron | C26: 1.1 | D26: 8.7 | E26: 1.6 | F26: 0.18 | G26: 2.1
B27: Alprazolam | C27: 0.8 | D27: 0.74 | E27: 12 | F27: 0.29 | G27: 18
B28: Alprenolol | C28: 3.2 | D28: 15 | E28: 2.5 | F28: 0.18 | G28: 3.6
B29: Amantadine | C29: 6.6 | D29: 4.8 | E29: 16 | F29: 0.33 | G29: 23
B30: Amdinocillin | C30: 0.37 | D30: 6.3 | E30: 1.1 | F30: N.F. | G30: 1
B31: Amikacin | C31: 0.16 | D31: 1.1 | E31: 2.4 | F31: 0.88 | G31: 2.4
B32: 9-Aminocamptothecin | C32: 2.2 | D32: 6.5 | E32: 7 | F32: 0.003 | G32: 5.6
B33: 6-Aminohexanoic acid | C33: 0.39 | D33: 2.5 | E33: 4.9 | F33: 0.92 | G33: 2.6
B34: 5-Aminosalicylic acid | C34: 0.33 | D34: 9.3 | E34: 0.61 | F34: 0.39 | G34: 0.59
B35: Amiodarone | C35: 60 | D35: 1.9 | E35: 820 | F35: 0.0002 | G35: 620
B36: Amitriptyline | C36: 8.7 | D36: 6.1 | E36: 17 | F36: 0.07 | G36: 24
B37: Amlodipine | C37: 17 | D37: 7 | E37: 34 | F37: 0.005 | G37: 40
B38: Amoxicillin | C38: 0.25 | D38: 3.3 | E38: 1.1 | F38: 0.85 | G38: 1.3
B39: Amphetamine | C39: 6.1 | D39: 9.7 | E39: 7.3 | F39: 0.8 | G39: 10
B40: Ampicillin | C40: 0.22 | D40: 2.8 | E40: 1.4 | F40: 0.85 | G40: 1.3
B41: Amrinone | C41: 1.3 | D41: 8.9 | E41: 2 | F41: 0.89 | G41: 2.4
B42: Amsacrine | C42: 1.6 | D42: 4.3 | E42: 4.7 | F42: 0.029 | G42: 6.2
B43: Amsalog | C43: 0.3 | D43: 2.6 | E43: 2.4 | F43: 0.0011 | G43: 1.9
B44: Anhydrovinblastine | C44: 12 | D44: 12 | E44: 18 | F44: N.F. | G44: 17
B45: Anidulafungin | C45: 0.57 | D45: 0.21 | E45: 40 | F45: 0.16 | G45: 45
B46: Antipyrine | C46: 0.77 | D46: 0.64 | E46: 12 | F46: 0.93 | G46: 20
B47: R-Apomorphine | C47: 1.6 | D47: 40 | E47: 0.68 | F47: 0.06 | G47: 0.67
B48: Aprepitant | C48: 0.94 | D48: 1 | E48: 13 | F48: 0.05 | G48: 16
B49: Argatroban | C49: 0.17 | D49: 5 | E49: 0.4 | F49: N.F. | G49: 0.57
B50: Aripiprazole | C50: 4.9 | D50: 0.83 | E50: 75 | F50: 0.01 | G50: 98
B51: Artesunate | C51: 15 | D51: 1070 | E51: 0.22 | F51: 0.25 | G51: 0.32
B52: Atenolol | C52: 0.95 | D52: 2.5 | E52: 6.1 | F52: 0.94 | G52: 6.3
B53: Atomoxetine | C53: 0.85 | D53: 9.3 | E53: 5.2 | F53: 0.02 | G53: 1.5
B54: Atovaquone | C54: 0.6 | D54: 0.15 | E54: 63 | F54: 0.001 | G54: 67
B55: Atracurium | C55: 0.1 | D55: 5.7 | E55: 0.31 | F55: 0.52 | G55: 0.29
B56: Atropine | C56: 3.3 | D56: 7.6 | E56: 4.1 | F56: 0.61 | G56: 7.2
B57: Azacytidine | C57: 0.47 | D57: 35 | E57: 0.36 | F57: N.F. | G57: 0.22
B58: Azapropazone | C58: 0.12 | D58: 0.14 | E58: 17 | F58: 0.004 | G58: 14
B59: Azelastine | C59: 15 | D59: 9 | E59: 22 | F59: 0.17 | G59: 27
B60: Azimilide | C60: 13 | D60: 2.4 | E60: 79 | F60: 0.06 | G60: 100
B61: Azithromycin | C61: 33 | D61: 10 | E61: 69 | F61: 0.88 | G61: 57
B62: Azlocillin | C62: 0.26 | D62: 2.5 | E62: 1.2 | F62: 0.65 | G62: 1.7
B63: Aztreonam | C63: 0.18 | D63: 1.5 | E63: 1.5 | F63: 0.4 | G63: 2.1
B64: Bambuterol | C64: 1.6 | D64: 18 | E64: 2.6 | F64: N.F. | G64: 1.4
B65: BB 83698 | C65: 1.1 | D65: 3.1 | E65: 9.4 | F65: N.F. | G65: 5.9
B66: Beclomethasone dipropionate | C66: 0.29 | D66: 36 | E66: 0.5 | F66: 0.13 | G66: 0.1
B67: Benperidol | C67: 3.8 | D67: 8.3 | E67: 5.8 | F67: N.F. | G67: 7.5
B68: Betamethasone | C68: 1.3 | D68: 2.8 | E68: 5.6 | F68: 0.36 | G68: 7.9
B69: Betamipron | C69: 0.28 | D69: 9.2 | E69: 0.59 | F69: 0.17 | G69: 0.51
B70: Betaxolol | C70: 4.8 | D70: 3.4 | E70: 17 | F70: 0.4 | G70: 24
B71: Bevantolol | C71: 0.67 | D71: 5.5 | E71: 1.9 | F71: 0.015 | G71: 2
B72: Biapenem | C72: 0.2 | D72: 2.5 | E72: 1.1 | F72: 0.92 | G72: 1.3
B73: Bilobalide | C73: 2.5 | D73: 10 | E73: 3.2 | F73: N.F. | G73: 4
B74: Biperiden | C74: 12 | D74: 12 | E74: 24 | F74: 0.097 | G74: 17
B75: Bisaramil | C75: 9 | D75: 17 | E75: 8.6 | F75: N.F. | G75: 8.8
B76: Bisoprolol | C76: 2.4 | D76: 3.7 | E76: 10 | F76: 0.66 | G76: 11
B77: BMS-214662 | C77: 0.84 | D77: 9.6 | E77: 1 | F77: N.F. | G77: 1.4
B78: Bortezomib | C78: 10 | D78: 19 | E78: 18 | F78: 0.17 | G78: 8.8
B79: Bosentan | C79: 0.29 | D79: 2.1 | E79: 4.1 | F79: 0.037 | G79: 2.3
B80: Bromazepam | C80: 0.85 | D80: 0.51 | E80: 21 | F80: 0.48 | G80: 28
B81: Bromfenac | C81: 0.11 | D81: 1.3 | E81: 2.6 | F81: 0.0011 | G81: 1.5
B82: Bromopride | C82: 3.1 | D82: 13 | E82: 2.9 | F82: 0.6 | G82: 4
B83: Brotizolam | C83: 0.75 | D83: 2 | E83: 4.8 | F83: 0.092 | G83: 6
B84: Budesonide | C84: 3.9 | D84: 20 | E84: 2.8 | F84: 0.13 | G84: 3.2
B85: Buflomedil | C85: 1.3 | D85: 5.6 | E85: 3.3 | F85: 0.4 | G85: 3.9
B86: Bufuralol | C86: 1.7 | D86: 8.9 | E86: 2.3 | F86: 0.19 | G86: 3.2
B87: Bumetanide | C87: 0.16 | D87: 2.5 | E87: 1.2 | F87: 0.031 | G87: 1.1
B88: Bunazosin | C88: 0.72 | D88: 4.8 | E88: 2 | F88: 0.06 | G88: 2.5
B89: Bupivacaine | C89: 0.84 | D89: 4.3 | E89: 3.1 | F89: 0.056 | G89: 3.3
B90: Buprenorphine | C90: 4.9 | D90: 19 | E90: 3.2 | F90: 0.04 | G90: 4.9
B91: Busulphan | C91: 0.55 | D91: 2.4 | E91: 3.4 | F91: 1 | G91: 3.8
B92: Butorphanol | C92: 12 | D92: 41 | E92: 4.8 | F92: 0.17 | G92: 5.3
B93: Caffeine | C93: 0.63 | D93: 1.4 | E93: 4.9 | F93: 0.64 | G93: 7.5
B94: Captopril | C94: 0.75 | D94: 12 | E94: 2 | F94: 0.73 | G94: 1
B95: Carbenicillin | C95: 0.17 | D95: 1.9 | E95: 1.1 | F95: 0.52 | G95: 1.5
B96: Carboplatin | C96: 0.26 | D96: 1.5 | E96: 2 | F96: 1 | G96: 3
B97: Carmustine (N,N⬘-bis(2-chloroethyl)-N-nitrosourea) | C97: 1.2 | D97: 78 | E97: 0.37 | F97: 0.23 | G97: 0.26
B98: Carumonam | C98: 0.18 | D98: 1.5 | E98: 1.6 | F98: 0.72 | G98: 2
B99: Carvedilol | C99: 1.3 | D99: 7.8 | E99: 2.4 | F99: 0.02 | G99: 2.8
B100: Caspofungin | C100: 0.13 | D100: 0.14 | E100: 27 | F100: 0.035 | G100: 15
B101: CB 10-277 | C101: 0.25 | D101: 1.3 | E101: 2.5 | F101: N.F. | G101: 3
B102: Cefadroxil | C102: 0.23 | D102: 2.5 | E102: 1.1 | F102: 0.39 | G102: 1.5
B103: Cefamandole | C103: 0.16 | D103: 3.6 | E103: 0.75 | F103: 0.25 | G103: 0.75
B104: Cefatrizine | C104: 0.22 | D104: 3.3 | E104: 1.2 | F104: 0.4 | G104: 1.1
B105: Cefazolin | C105: 0.12 | D105: 0.89 | E105: 1.7 | F105: 0.18 | G105: 2.2
B106: Cefcanel | C106: 0.13 | D106: 2.6 | E106: 1 | F106: N.F. | G106: 0.83
B107: Cefepime | C107: 0.28 | D107: 2.2 | E107: 1.9 | F107: 0.78 | G107: 2.1
B108: Cefetamet | C108: 0.28 | D108: 1.9 | E108: 2.1 | F108: 0.78 | G108: 2.5
B109: Cefixime | C109: 0.24 | D109: 1 | E109: 3.2 | F109: 0.31 | G109: 3.9
B110: Cefmetazole | C110: 0.13 | D110: 1.5 | E110: 1.5 | F110: 0.15 | G110: 1.5
B111: Cefodizime | C111: 0.054 | D111: 0.61 | E111: 4.2 | F111: 0.18 | G111: 1.5
B112: Cefoperazone | C112: 0.17 | D112: 1.3 | E112: 1.8 | F112: 0.07 | G112: 2.2
B113: Ceforanide | C113: 0.17 | D113: 0.66 | E113: 3 | F113: 0.19 | G113: 4.3
B114: Cefotaxime | C114: 0.19 | D114: 2.7 | E114: 1.2 | F114: 0.6 | G114: 1.2
B115: Cefotetan | C115: 0.13 | D115: 0.42 | E115: 4.5 | F115: 0.15 | G115: 5.2
B116: Cefoxitin | C116: 0.17 | D116: 3.6 | E116: 0.81 | F116: 0.73 | G116: 0.79
B117: Cefpirome | C117: 0.24 | D117: 1.9 | E117: 1.7 | F117: 0.9 | G117: 2.1
B118: Cefprozil | C118: 0.21 | D118: 2.9 | E118: 1.2 | F118: 0.59 | G118: 1.2
B119: Ceftazidime | C119: 0.31 | D119: 2.4 | E119: 1.8 | F119: 0.79 | G119: 2.2
B120: Ceftizoxime | C120: 0.2 | D120: 2.1 | E120: 1.5 | F120: 0.72 | G120: 1.6
B121: Ceftobiprole | C121: 0.27 | D121: 1.5 | E121: 3.3 | F121: 0.62 | G121: 3
B122: Ceftriaxone | C122: 0.085 | D122: 0.26 | E122: 8.6 | F122: 0.052 | G122: 5.4
B123: Cefuroxime | C123: 0.15 | D123: 2.2 | E123: 1.1 | F123: 0.12–0.60 | G123: 1.1
B124: Cephalexin | C124: 0.21 | D124: 3.9 | E124: 0.57 | F124: 0.85 | G124: 0.89
B125: Cephaloridine | C125: 0.46 | D125: 3.3 | E125: 1.5 | F125: 0.8 | G125: 2.3
B126: Cephalothin | C126: 0.07 | D126: 1.8 | E126: 0.95 | F126: 0.22 | G126: 0.65
B127: Cephapirin | C127: 0.13 | D127: 2.7 | E127: 1.2 | F127: 0.55 | G127: 0.8
B128: Cephradine | C128: 0.21 | D128: 3.3 | E128: 0.85 | F128: 0.95 | G128: 1.1
B129: Cerivastatin | C129: 0.33 | D129: 2.9 | E129: 1.8 | F129: 0.01 | G129: 1.8
B130: Cetrorelix | C130: 0.39 | D130: 1.2 | E130: 12 | F130: 0.14 | G130: 5.4
B131: Chlorambucil | C131: 0.26 | D131: 2.8 | E131: 1.1 | F131: 0.01 | G131: 1.5
B132: Chloramphenicol | C132: 0.94 | D132: 2.4 | E132: 4.6 | F132: 0.34 | G132: 6.5
B133: Clorazepate | C133: 0.2 | D133: 1.1 | E133: 2.4 | F133: N.F. | G133: 3
B134: Chlordiazepoxide | C134: 0.25 | D134: 0.37 | E134: 8.3 | F134: 0.056 | G134: 11
B135: Chlormethiazole | C135: 6.6 | D135: 33 | E135: 4.5 | F135: 0.36 | G135: 3.3
B136: m-Chlorophenylpiperazine | C136: 2.5 | D136: 6.1 | E136: 4.7 | F136: N.F. | G136: 7
B137: Chloroquine | C137: 140 | D137: 4.1 | E137: 570 | F137: 0.43 | G137: 740
B138: Chlorpheniramine | C138: 3.3 | D138: 2.5 | E138: 22 | F138: 0.7 | G138: 22
B139: Chlorpromazine | C139: 10 | D139: 16 | E139: 11 | F139: 0.056 | G139: 10
B140: Chlorpropamide | C140: 0.19 | D140: 0.045 | E140: 46 | F140: 0.03 | G140: 70
B141: Chlortetracycline | C141: 0.9 | D141: 2 | E141: 7 | F141: 0.52 | G141: 7.4
B142: Chlorthalidone | C142: 3.9 | D142: 1.5 | E142: 36 | F142: 0.24 | G142: 43
B143: Cibenzoline | C143: 4.1 | D143: 8.6 | E143: 7.3 | F143: 0.5 | G143: 7.8
B144: Cicaprost | C144: 0.08 | D144: 3.8 | E144: 1.1 | F144: N.F. | G144: 0.35
B145: Cidofovir | C145: 0.49 | D145: 2.5 | E145: 2.6 | F145: 1 | G145: 3.3
B146: Cilastatin | C146: 0.15 | D146: 2.3 | E146: 0.86 | F146: 0.6 | G146: 1.1
B147: Cilomilast | C147: 0.23 | D147: 0.5 | E147: 7.9 | F147: 0.006 | G147: 8.5
B148: Cimetidine | C148: 1.2 | D148: 8.1 | E148: 2.2 | F148: 0.78 | G148: 2.5
B149: Ciprofloxacin | C149: 2.1 | D149: 8.3 | E149: 3.8 | F149: 0.7 | G149: 4.2
B150: Cisatracurium | C150: 0.14 | D150: 5.4 | E150: 0.42 | F150: 0.62 | G150: 0.43
B151: Citalopram | C151: 12 | D151: 4.3 | E151: 33 | F151: 0.2 | G151: 47
B152: Cladribine | C152: 7.7 | D152: 14 | E152: 16 | F152: 0.79 | G152: 9.2
B153: Clarithromycin | C153: 1.5 | D153: 7.3 | E153: 2.8 | F153: 0.23 | G153: 3.4
B154: Clavulanic acid | C154: 0.22 | D154: 3.1 | E154: 0.9 | F154: 0.91 | G154: 1
B155: Clevidipine | C155: 0.58 | D155: 142 | E155: 0.3 | F155: 0.0038 | G155: 0.07
B156: Clinafloxacin | C156: 1.9 | D156: 4.7 | E156: 5.4 | F156: 0.96 | G156: 6.7
B157: Clindamycin | C157: 0.79 | D157: 4.5 | E157: 2.1 | F157: 0.06 | G157: 2.9
B158: Clomipramine | C158: 13 | D158: 8.2 | E158: 26 | F158: 0.029 | G158: 26
B159: Clonazepam | C159: 2.9 | D159: 0.88 | E159: 38 | F159: 0.15 | G159: 55
B160: Clonidine | C160: 3.3 | D160: 4 | E160: 7.6 | F160: 0.56 | G160: 14
B161: Clozapine | C161: 1.6 | D161: 2.5 | E161: 10 | F161: 0.055 | G161: 11
B162: Cocaethylene | C162: 1.6 | D162: 13 | E162: 1.5 | F162: 0.64 | G162: 2
B163: Cocaine | C163: 2 | D163: 32 | E163: 0.76 | F163: 0.12 | G163: 1
B164: Codeine | C164: 3.5 | D164: 15 | E164: 4 | F164: 0.7 | G164: 3.9
B165: Colchicine | C165: 6.1 | D165: 2.1 | E165: 58 | F165: 0.61 | G165: 49
B166: Conivaptan | C166: 0.76 | D166: 3 | E166: 6.7 | F166: 0.01 | G166: 4.2
B167: Cotinine | C167: 1.1 | D167: 0.89 | E167: 17 | F167: N.F. | G167: 21
B168: Cyclophosphamide | C168: 0.73 | D168: 1.1 | E168: 8 | F168: 0.87 | G168: 11
B169: Cyclosporine | C169: 3.3 | D169: 7.5 | E169: 7.3 | F169: 0.068 | G169: 7.3
B170: Dacarbazine | C170: 1.2 | D170: 2.6 | E170: 6.2 | F170: 1 | G170: 7.8
B171: Dalbavancin | C171: 0.14 | D171: 0.01 | E171: 170 | F171: 0.02 | G171: 230
B172: Dalfopristin | C172: 0.39 | D172: 16 | E172: 0.74 | F172: 0.82 | G172: 0.41
B173: Dantrolene | C173: 0.37 | D173: 0.43 | E173: 10 | F173: N.F. | G173: 14
B174: Dapsone | C174: 0.83 | D174: 0.48 | E174: 22 | F174: 0.25 | G174: 29
B175: Daptomycin | C175: 0.088 | D175: 0.16 | E175: 8.1 | F175: 0.083 | G175: 9.2
B176: Darifenacin | C176: 2.6 | D176: 12 | E176: 3.6 | F176: 0.02 | G176: 3.6
B177: Decitabine | C177: 4.6 | D177: 130 | E177: 0.58 | F177: 1 | G177: 0.59
B178: Delorazepam (Chlordesmethyldiazepam) | C178: 2.2 | D178: 0.17 | E178: 200 | F178: 0.051 | G178: 220
B179: Demethylchlortetracycline | C179: 1.3 | D179: 1.1 | E179: 12 | F179: 0.59 | G179: 17
B180: Denaverine | C180: 7.1 | D180: 5.7 | E180: 34 | F180: N.F. | G180: 21
B181: 4-Desacetyl-4-methylpaclitaxel carbonate | C181: 6.9 | D181: 8.6 | E181: 31 | F181: N.F. | G181: 13
B182: Desipramine | C182: 15 | D182: 11 | E182: 22 | F182: 0.16 | G182: 23
B183: Desmethyldiazepam | C183: 0.45 | D183: 0.12 | E183: 46 | F183: 0.03 | G183: 63
B184: Desmopressin | C184: 0.3 | D184: 1.4 | E184: 3 | F184: N.F. | G184: 3.6
B185: Dexamethasone | C185: 0.94 | D185: 3.3 | E185: 3.7 | F185: 0.32 | G185: 4.7
B186: Dexfenfluramine | C186: 11 | D186: 11 | E186: 14 | F186: 0.66 | G186: 18
B187: Dexloxiglumide | C187: 0.18 | D187: 3.7 | E187: 1.2 | F187: 0.024 | G187: 0.79
B188: Dexmedetomidine | C188: 1.6 | D188: 11 | E188: 2.2 | F188: 0.06 | G188: 2.5
B189: Dexniguldipine | C189: 8.4 | D189: 9.3 | E189: 22 | F189: N.F. | G189: 15
B190: Dexrazoxane | C190: 0.55 | D190: 3.1 | E190: 2.5 | F190: 1 | G190: 3
B191: DHA paclitaxel | C191: 0.068 | D191: 0.025 | E191: 60 | F191: 0.0038 | G191: 45
B192: Diatrizoic acid (Amidotrizoate) | C192: 0.26 | D192: 1.7 | E192: 1.8 | F192: 1 | G192: 2.6
B193: Diazepam | C193: 1 | D193: 0.38 | E193: 42 | F193: 0.023 | G193: 44
B194: Diazoxide | C194: 0.21 | D194: 0.06 | E194: 48 | F194: 0.06 | G194: 58
B195: Dibekacin | C195: 0.13 | D195: 0.8 | E195: 2.4 | F195: N.F. | G195: 2.7
B196: Dichloroacetic acid | C196: 0.19 | D196: 5.3 | E196: 0.65 | F196: N.F. | G196: 0.6
B197: Diclofenac | C197: 0.22 | D197: 3.5 | E197: 1.4 | F197: 0.005 | G197: 1
B198: Dicloxacillin | C198: 0.11 | D198: 2 | E198: 0.88 | F198: 0.033 | G198: 0.92
B199: Didanosine | C199: 0.77 | D199: 11 | E199: 1.4 | F199: 0.95 | G199: 1.2
B200: Diflunisal | C200: 0.097 | D200: 0.1 | E200: 10 | F200: 0.0016 | G200: 14
... 474 more rows

Sheet Tutorial (hidden)
B2: ü | C2: Basic Pharmacokinetic Concepts
B3: ü | C3: About the simulation program
B4: ü | C4: I.V. Administration. Single dose
B5: ü | C5: I.V. Administration. Multiple doses
B6: ü | C6: I.V. Administration. Continuous Infusion
B7: ü | C7: p.o. Administration. Single dose
B8: ü | C8: p.o. Administration. Multiple doses (single-compartment model)
B9: ü | C9: p.o. Administration. Multiple doses (two-compartment model)
B10: ü | C10: Doses Finding in Multiple (p.o.) Administrations
B14: p | C14: Basic Pharmacokinetic Concepts
C16: Main Compartments
L17: Central Compartment | M17: It is the blood circulation system. It consists of blood cells, plasma and plasma proteins. Sometimes, the latter entities are considered as
M18: different compartments.
L19: Peripheral Compartments | M19: All other compartments that are separated from the central compartment by some barriers. These barriers are generally diffusion-barriers.
M20: Examples are particular tissues such as fat or muscle tissues, inter- or intra-cellular fluids, central nervous system (blood-brain barrier) etc.
C23: Main Processes
K24: Absorption | M24: The process of drug transport from the region of administration to the central compartment (i.e. blood circulation system).
M25: These transports are generally governed by simple processes, such as passive or facilitated diffusion.
K26: Distribution | M26: The process of distribution of the absorbed drug to all compartments that the drug can reach. In addition to simple diffusion-like mechanisms,
M27: more complicated sequestration mechanisms, like ion-trap, specific binding to tissue components etc. may be involved in the distribution process.
M28: Nevertheless, distribution processes are generally considered to be governed by first-order kinetics (see below for the definition of first-order kinetics)
K29: Elimination | M29: A general name given to any process, in which drug looses its activity. In general, it happens through metabolism or renal excretion.
M30: Most of the metabolic (enzymatic) reactions take place in liver. However, it can happen in any tissue, in principle. Please also remember that
M31: not all enzymatic modifications of drug molecules result in drug inactivation.
C33: Basic variables and parameters
K34: Dose | M34: D | Q34: Amount of administered drug. Generally given in mass units (g, mg, mg...).
K35: Drug Concentration | M35: C | Q35: Amount of drug in a unit volume of body fluids (mg/ml, mg/ml, molar...). In general, only the blood (plasma) concentration can be known.
K36: Time | M36: t | Q36: Fundamental variable of pharmacokinetics. In fact, pharmacokinetics is all about time-dependent changes in drug concentration in the body.
K37: Bioavailability | M37: f | Q37: Total amount of drug that can reach the blood circulation from the site of administration. It is given relative to the administered dose.
Q38: Its value is in the interval [0,1]. Zero and one mean, no or all the administered drug can eventually reach the circulation system,
Q39: respectively. All other values in between, indicate partial eventual absorption from the site of administration. It depends on the drug
Q40: molecule, pharmaceutical form of the drug, way and site of administration, and many other local factors that can interact with the drug.
K41: Absorption half-life | M41: t1/2(abs) | Q41: Time required for the absorption of the half of the administered dose. It is a measure of the rate of absorption (explained below).
Q42: It depends on the drug molecule, pharmaceutical form, way and site of administration, and other local factors that interact with the drug.
K43: Volume of distribution | M43: Vd | Q43: Has two meanings: 1) The physical volume that the drug can eventually access in the body (not measurable in general). 2) It is a measure
Q44: of drug dilution in plasma after the completion of the distribution process (dilution by elimination is excluded). For example, if the plasma
Q45: concentration of a drug, administered at a dose of 1 gram, is found to be 0.1 g/liter after complete distribution (no elimination is assumed),
Q46: than the (virtual) volume of distribution is said to be 10 liters. Its value can be greater than the total volume of the body, because of
Q47: excessive dilution in plasma, due to drug sequestration into some peripheral compartments. Hence, it is a virtual, but very useful, quantity.
K48: Elimination half-life | M48: t1/2(elim) | Q48: Time required for half of the drug mass to be eliminated from the body. It is generally measured as the time required for 50% reduction of drug
Q49: concentration in plasma. It is a measure of the rate of elimination (explained below). Its value depends on the drug molecule and individual
Q50: factors. It may vary even in the same individual, depending on the time-dependent changes in individual factors.
K51: Rate constants and | M51: k | Q51: Fundamental constants that govern the progression rates of pharmacokinetic processes. t1/2 of a first-order process is equal to ln(2)/k.
K52: Clearance | M52: CL | Q52: k has a unit of 1/time. Clearance (CL), on the other hand, is a volume(Vd)-corrected version of k. Clearance has a unit of volume/time.
Q53: (for more details, see the sections below).
C55: Basic Kinetics
C56: By kinetics here, we mean the rules governing the time course of a process that takes out drug from a compartment. A take-out process from a compartment can be a take-in
C57: process for another compartment connected to the first one.
C61: These rules are expressed in terms of (instantaneous) rate of mass transfer from a compartment in an infinitesimal time interval (i.e. dm/dt). If this rate is a linear function of (a power of)
C62: concentration (C), then the kinetics is said to be linear. Otherwise, it is called nonlinear kinetics. Linear kinetics are named according to the power of concentration in the equation, as follows:
AB64: Independent from concentration | AD64: 0th order kinetics | AM64: dm/dt = s C0 | AU64: dm/dt = s (constant)
AB65: Proportional to concentration | AD65: 1st order kinetics | AM65: dm/dt = s C1 | AU65: dm/dt = s C
AB66: Proportional to the nth power of concentration | AD66: nth order kinetics | AM66: dm/dt = s Cn
C67: Linear kinetics are governed by a single parameter (called s in the above definitions). Nonlinear kinetics generally contains more than one parameter. Enzymatic processes may exhibit
C68: nonlinear kinetics, whereas commonly encountered diffusion-like processes always obey first-order linear kinetics. Depending on the parameter regime, enzymatic processes may also
C69: show first-order kinetics. Therefore, first-order kinetics are the most commonly encountered processes in pharmacokinetics. Zeroth order kinetics may be a special case of enzymatic
C70: reactions. Obviously, mass transfer from (or to) a fixed volume (Vd) changes the concentration of the substance in that compartment, which in turn, changes the rate of the process.
C71: As an example, let us take the first-order kinetics which takes out (eliminates) mass from a compartment according to the rule:
AE72: dm/dt = - s C
C73: We can calculate the rate of change of concentration by dividing both sides of the above equation by the volume Vd. Note that (m / Vd) is nothing, but concentration.
Y74: (1/Vd).(dm/dt) = dC/dt = - (s/Vd) C
C75: The quantity ( s / Vd ) in the above equation is also a constant, and it is called k. The constant k governs the rate of change of concentration, whereas s governs the rate of mass
C76: transfer from the compartment. Generally, sis called clearance, k is called (elimination) rate constant. The two constants are related by a factor of volume, as follows:
AF77: k Vd = s
C78: PRINCIPLE: Net rate of change of the amount of a substance in a given compartment, is the sum of rates of the individual processes that supply the substance to, or eliminate
C79: the substance from the compartment. The rates of suppliers and eliminators contribute with [+] and [-] signs, respectively, to the sum.
B81: p | C81: About the simulation program
C83: This simulation program is designed to demonstrate how variations in different pharmacokinetic parameters affect the time course of drug concentration in plasma under different
C84: assumptions. Pharmacokinetic models may be mathematically demanding for nonexperienced students. Consequently, it might be difficult to predict and understand the time-dependent
C85: behavior of these models on an intuitive basis. Therefore, we believed that the present simulation program may help students to visualize and understand such behaviors.
C87: The items in the Main Page are ordered from simple to more complicated systems (i.e. from single dose i.v. bolus injection to repeated oral administration in a two-compartment model).
C88: Under each item, there are parameter values, relevant to the corresponding case, that can be changed by the user (shown by cyan fonts). Concentration-time plots on each page are
C89: updated accordingly. Those parameter values that are shown by red fonts are calculated from the input parameters, and cannot be changed by the user. All concentration-time plots are
C90: assumed to show plasma concentration of the drug for a given (virtual) volume of distribution, except in the case of the two-compartment model. In the latter case, drug concentrations
C91: in plasma and periphery, along with the physical volumes of the corresponding compartments, are given explicitly. On each page, two sets of parameters are allowed to be changed
C92: (named as case 1 or 2), so that the user can compare the consequences of parameter variations, by comparing the plots of the two cases.
C94: In all cases (except in the two-compartment model), time-dependent concentrations are calculated by means of analytic solutions of the relevant differential equations. In case of two-
C95: compartment model, numerical solutions of the relevant differential equations are used (fixed-step, 4th order Runge-Kutta algorithm). Note that numerical solutions may take time,
C96: depending on the computer's speed. Therefore, updating the graphics upon changes in parameters may be slow in this case (so, be patient!).
C98: In this simulation package, only simple and fundamental processes (and their parameters) are considered. All kinetics are assumed to be linear and first-order. Complex processes or
C99: phenomena, such as nonlinear kinetics, first-pass effect in liver, enzymatic reactions, binding to plasma proteins, gastrointestinal motility, entero-hepatic cyclus etc. are excluded from
C100: the present package. Most of such phenomena are not only too complicated to be simulated here, but also not well-specified on a quantitative basis to be brought to realistic simulations.
C101: Therefore, we treat the details of some complicated phenomena only verbally in the classroom lectures. We believe that a quantitative understanding of simple phenomena would be
C102: good enough for undergraduate medical students to develop a decent pharmacokinetic conception.
C104: Just to give an idea about the real values of some pharmacokinetic parameters for different substances, a database is also included in this package as a table. This table contains
C105: parameter values that are relevant to i.v. administration only, so absorption-related parameters are not there. For that, one can refer to the appendix of the textbook "Godman & Gilman's
C106: Pharmacological basis of Therapeutics". Note also that the table given here is reproduced from a specific paper that is subject to copyright. So don't copy it, even if you can!
C107: This program is written in the department of pharmacology as a supplementary handout for the pharmacology courses in Ankara University Faculty of Medicine.
C108: Please contact | I108: onaran@medicine.ankara.edu.tr | V108: (Prof. Dr. Ongun Onaran) for critics and suggestions, which will help us to improve the program.
B111: p | C111: i.v. Administration. Single dose
C112: In the intravenous route, the drug is directly administered to blood (i.e. to central compartment). Absorption process is ignored here, since the injection time of the drug is very fast
C113: compared to elimination rate. Likewise, distribution rate is generally much faster than the elimination rate. Therefore, distribution is assumed to occur (almost) instantaneously upon
C114: injection. Hence, initial concentration (C0) of the drug (at t=0), is given simply by dividing administered dose (D) by virtual volume of distribution (Vd). In this case, the only process that
C115: determines the time course of drug concentration in the central compartment is the elimination process. If the elimination process follows a first-order linear kinetics, which is
C116: generally the case, then the instantaneous rate of eliminated mass from plasma per unit time (in an infinitesimal time interval) is given as
AG117: dm/dt = - CL .C
C118: CL and C in the above equation signify clearance and time-dependent drug concentration in plasma, respectively. Rate of change of plasma drug concentration can then be found by
C119: dividing both sides of the above equation by the virtual volume of distribution, Vd, which yields the following differential equation (see the basic concepts section above).
AG120: dC/dt = - kelim C
C121: Solution to the above differential equation is given below. You can check the consistency of the solution by differentiating the following equation with respect to time.
Z122: C(t) = C0 e- kelim t | AJ122: or | AL122: C(t) = (D/Vd) e- kelim t
C123: Dose (D), Vd and t1/2 values for two different cases are the input of the relevant page of the program. Results of these two cases are plotted separately. So, the effects of these
C124: parameters on drug concentration can be compared in the two plots. The values of corresponding kelim, CL and C0 are calculated from the input values as follows
AG125: kelim = ln(2) / t1/2
AG126: CL = kelim Vd
AG127: C0 = D/Vd
C129: Note: First-order linear kinetics is assumed for elimination. Distribution is assumed to be much faster than elimination.
B131: p | C131: i.v. Administration. Multiple doses
C132: In terms of pharmacokinetic assumptions, this page in the program is exactly the same as the one for i.v. bolus injection. The only difference here is that the plasma drug concentration
C133: may not be zero at the time of administration, due to the "left overs" from the previous dose(s). Hence, some degree of drug accumulation is expected in this case. Nevertheless,
C134: the rate of accumulation decreases with time as the increasing average rate of elimination approaches to the constant average rate of administration (input rate). When the elimination
C135: rate balances the administration rate on average (which approximately takes 5 x t1/2 elim.), the plasma concentration will fluctuate about a constant average concentration, called, Css, the
C136: steady-sate concentration.
C137: Dose (D), Vd and t1/2 values for two different cases are the input of the relevant page of the program. Results of these two cases are plotted separately. So, the effects of these
C138: parameters on drug concentration can be compared in the two plots. The corresponding values of kelim, CL, Cmin and Cmax (at steady-sate) are calculated from the input values
C139: (see the equations below). On this page of the program, time scale of the plots are automatically set in such a way that the average concentrations reach 99% of the Css.
AA140: kelim = ln(2) / t1/2
AA141: CL = kelim Vd
AA142: Cmin = (D/Vd) [e-dosing interval x kelim / (1 - e-dosing interval x kelim)]
AA143: Cmax = Cmin + (D/Vd)
C144: Note: First-order linear kinetics is assumed for elimination. Distribution is assumed to be much faster than elimination.
B146: p | C146: i.v. Administration. Continuous Infusion
C147: In terms of pharmacokinetic assumptions, the relevant pages in the program are exactly the same as the one for i.v. bolus injection (see i.v. Administration above). Here, though, the drug
C148: is delivered to the central compartment with a constant rate (i.e. continuous infusion). Thus, there are two (independent) processes governing the overall kinetics:
R149: 1 | S149: 0th order (constant) process of drug supply : | AK149: dm/dt = Infusion rate (drug-mass per unit time)
R150: 2 | S150: 1st order process of drug elimination: | AK150: dm/dt = - CL . C (CL: Elimination Clearance)
C151: The net rate of change of mass in plasma is then given as the sum of these two rates:
Y152: dm/dt = infusion rate - CL . C
C153: Dividing both sides of the above equation by the volume of distribution, Vd, yields the rate of change of drug concentration in plasma (i.e. in the central compartment):
Y154: dC/dt = infusion rate/Vd - kelim . C
C155: Note that in the above equation, the term infusion rate / Vd is a constant, whereas the term kelim .C depends on concentration, which, in turn depends on time. According to the above
C156: equation, there is a particular concentration which makes the two rates (i.e. Supply and elimination) equal. At that concentration (called, Css), concentration does not change with time
C157: (steady-state), as dC/dt= 0 at that concentration. Two different solution can be found for the differential equation given above, depending on whether the initial concentration is zero or not:
L158: Solution 1 | Q158: C(t) = Css(1-e-kelim t ) | AC158: ........................ | AI158: Initial concentration, when the infusion starts, is zero
L159: Solution 2 | Q159: C(t) = Css(1-e-kelim t ) + C0e-kelim t | AF159: ………. | AI159: Initial concentration, when the infusion starts, is non-zero but equal to C0.
C160: On this page of the program, infusion rate, Vd and elimination t1/2 are the input variables, whose values can be adjusted, whereas the values of kelim, CL and Cssare calculated from the
C161: input parameters (see below). As above, two sets of parameters and plots are given for comparison. Time scale of the plots are automatically adjusted, as mentioned for the previous cases.
Y162: kelim = ln(2) / t1/2
Y163: CL = kelim Vd
Y164: Css = infusion rate / (Vd x kelim)
C165: All the above considerations are exactly valid for the second page concerning i.v. infusion (i.e. i.v. Variable rate of infusion). However, infusion rate is allowed to vary (in steps) on this
C166: second page. For that, an infusion protocol is provided as a table. Each row of the table represents a constant rate of infusion, provided by the user: First column is the duration, second one
C167: is the rate of infusion. The table grows automatically as the user provides new rows (just by typing). The plot shows the time-dependent plasma concentration resulting from the input protocol.
C168: Times at which the infusion rate is changed, are indicated by magenta bars on the time axis of the plot.
C169: Note: First-order linear kinetics is assumed for elimination. Distribution is assumed to be much faster than elimination.
B171: p | C171: p.o. Administration. Single dose
C172: Per oral administration is a case in which first-order absorption and elimination processes operate simultaneously. Note that mechanism of absorption is generally assumed to be diffusion-like.
C173: Hence, the instantaneous rate of absorption is proportional to the amount of drug in the gastrointestinal system (first order process). Instantaneous rate of elimination, on the other hand, is
C174: proportional to the plasma concentration of the drug (again, a first-order process). However, p.o. administration also differs from i.v. administration in that not all the administered drug may
C175: reach the central compartment in case of p.o. administration. Relative amount of drug that can eventually reach the central compartment is called bioavailability (f). It can take on values in
C176: in the interval [0,1]. In p.o. administration, the plasma concentration of the drug is determined by two processes that occur simultaneously:
V177: 1 | X177: A first-order absorption process: | AK177: dm/dt = kabs D
V178: 2 | X178: A first-order elimination process: | AK178: dm/dt = -CL C
C179: D and C, respectively, represent the amount of drug in the gastrointestinal system, and plasma concentration of the drug. CL and kabs are clearance and absorption rate
C180: constants that govern the relevant processes, respectively. The net rate of change of mass in plasma is then given as the sum of these two rates (see the basic concepts above):
AA181: dm/dt = kabsD - CL C
C182: Dividing both sides of the above equation by the volume of distribution, Vd, yields the rate of change of drug concentration in plasma (i.e. in the central compartment):
Z183: dC/dt = kabs D/Vd - kelim C
C184: The solution to the above differential equation, when C(0)=0 (i.e. no drug in plasma at the time of administration) and total administered dose = D0, is given as:
C186: If not all of the administered dose can eventually reach the central compartment, then D0 has to be corrected accordingly with bioavailability. Then, effectively administered dose becomes
C187: f D0. In this case the final form of the above equation can be written as
C190: On this page of the program, dose (indicated as D, instead of D0), bioavailability ( f), Vd, t1/2 abs and t1/2 elim are the input parameters, given for two cases to allow comparison.
C191: kabs, kelim, CL, peak concentration and time to peak concentration (denoted as Cmax and Tmax, respectively) and area under the curve (AUC) are calculated from the input values as:
Y195: CL = kelim Vd | AG195: AUC = f D/(Vd kelim)
B196: * | C196: Note that Tmax depends only on kabs and kelim , thus, it is independent of the administered dose.
B197: * | C197: Likewise, AUC is independent from the absorption rate constant. This property of AUC is used to measure bioavailability as follows: The same drug is administered by i.v. or p.o. route
C198: at the same dose, to the same subject, and respective AUC's are calculated numerically from the observed time-concentration curves. These areas should theoretically be:
AA199: AUCi.v. = D/(Vd kelim) | AK199: ( f =1 for i.v. route)
AA200: AUCp.o. = f D/(Vd kelim)
C201: Therefore, the ratio of these areas should yield the value of f, since Vd and kelim should be the same in the two cases (drug is administered to the same subject):
AC202: f=AUCp.o. / AUCi.v.
C203: Note: First-order linear kinetics are assumed for both elimination and absorption. Distribution is assumed to be much faster than anything else.
B206: p | C206: p.o. Administration. Multiple doses (single-compartment model)
C207: In terms of pharmacokinetic assumptions, it is exactly the same as the single dose p.o. administration. The only difference here is that the plasma drug concentration may not be zero
C208: at the time of administration, due to the "left overs" from the previous dose(s). Hence, some degree of drug accumulation is expected in this case. Nevertheless, the rate of accumulation
C209: decreases with time, as the increasing average rate of elimination approaches to the constant average rate of administration (input rate). When the elimination rate balances the administration
C210: rate on average (which approximately takes 5 x t1/2 elim), the plasma concentration will fluctuate about a constant average concentration, called, Css, the steady-sate concentration.
C211: Dosing interval, D, f, Vd and t1/2's are the input parameters that can be adjusted by user, for two cases. Again, the results of the two cases are plotted separately to allow comparison.
C212: The values of kelim, kabs, CL and steady-state Cmin, Cmax are calculated from the values of the input parameters. Time scale of the plots are adjusted automatically in such a way that
C213: 99% of Css is reached. On this page of the program, accumulation ratio (relative to the single-dose administration) is also calculated.
B217: p | C217: p.o. Administration. Multiple doses (two-compartment model)
C218: In all cases, so far, it was assumed that the drug was distributed in a virtual volume of distribution and the plasma concentration of the drug was monitored. Here, instead, a central and a
C219: peripheral compartment with definite physical volumes are considered explicitly. Drug is assumed be administered repeatedly by p.o. route; absorbed by a rate constant kabs to the central
V220: compartment having a volume of Vd1; distributed to, and redistributed from a peripheral compartment having a volume of Vd2; and
V221: eliminated from the central compartment. Rate constants for distribution, redistribution and elimination are given in terms of clearances.
V222: This scenario is schematized on the left. Individual rates of these processes are given as follows (by assuming first-order kinetics):
V223: Processes that supply drug to the central compartment
W224: 1 | AA224: dm/dt = kabs Dg
W225: 2 | AA225: dm/dt = CLredist Cp
V226: Processes that remove drug from the central compartment
W227: 3 | AA227: dm/dt = (-) CLelim Cc
W228: 4 | AA228: dm/dt = (-) CLdist Cc
V229: Processes that supply drug to the peripheral compartment
W230: 4 | AA230: dm/dt = CLdist Cc
V231: Processes that remove drug from the peripheral compartment
W232: 2 | AA232: dm/dt = (-) CLredist Cp
C233: In the above equations, Dg, Cc and Cp represent amount of drug in the gastrointestinal system, drug concentrations in central and peripheral compartments, respectively. Note that all
C234: these quantities are time-dependent. Net rate of change of drug mass in central and peripheral compartments can be given as the appropriate sum of relevant rates as follows:
X235: (dm/dt)central = (1+2) -(3+4) = kabs D + CLredist Cp- Cc(CLdist + CLelim)
X236: (dm/dt)peripheral= (4) - (2) = CLdist Cc- CLredist Cp
... 28 more rows

Sheet BDK_ORAL_TD (hidden)
IQ1: 1. Durum | IR1: Co= | IS1: =f*Doz/Vd -> 2 | IT1: 2. Durum | IU1: Co= | IV1: =ff*_Doz2/_Vd2 -> 2
M2: Oral Administration Single Dose | N2: (First order kinetics) | IR2: Toplam Süre= | IS2: =IF(Kelim=0,10*0.693/Kabs,10*(0.693/MIN(Kabs,Kelim))) -> 29.9936299 | IU2: Toplam Süre= | IV2: =IF(Kelim2=0,10*0.693/Kabs2,10*(0.693/MIN(Kabs2,Kelim2))) -> 29.9936299
IS4: Toplam Süre= | IT4: =MAX(IS2,IV2) -> 29.9936299
IS5: Step= | IT5: =IT4/1000 -> 0.0299936299
IR7: T | IS7: C | IV7: C
IR8: 0 | IS8: =IF(Kabs=Kelim,$IS$1*Kabs*IR8/EXP(Kabs*IR8),$IS$1*(Kabs/(Kabs-Kelim))*(EXP(-Kelim*IR8)-EXP(-Kabs*IR8))) -> 0 | IV8: =IF(Kabs2=Kelim2,$IV$1*Kabs2*IR8/EXP(Kabs2*IR8),$IV$1*(Kabs2/(Kabs2-Kelim2))*(EXP(-Kelim2*IR8)-EXP(-Kabs2*IR8))) -> 0
IR9: =IR8+$IT$5 -> 0.0299936299 | IS9: =IF(Kabs=Kelim,$IS$1*Kabs*IR9/EXP(Kabs*IR9),$IS$1*(Kabs/(Kabs-Kelim))*(EXP(-Kelim*IR9)-EXP(-Kabs*IR9))) -> 0.02061069472 | IV9: =IF(Kabs2=Kelim2,$IV$1*Kabs2*IR9/EXP(Kabs2*IR9),$IV$1*(Kabs2/(Kabs2-Kelim2))*(EXP(-Kelim2*IR9)-EXP(-Kabs2*IR9))) -> 0.0410080048
IR10: =IR9+$IT$5 -> 0.0599872598 | IS10: 0.04086591263 | IV10: =IF(Kabs2=Kelim2,$IV$1*Kabs2*IR10/EXP(Kabs2*IR10),$IV$1*(Kabs2/(Kabs2-Kelim2))*(EXP(-Kelim2*IR10)-EXP(-Kabs2*IR10))) -> 0.08088905136
B11: Case 1 | IR11: 0.0899808897 | IS11: 0.06077031277 | IV11: 0.1196682831
B12: Dose | C12: 100 | D12: mg | E12: kabs | F12: =LN(2)/C15 -> 0.3465735903 | G12: h-1 | IR12: 0.1199745196 | IS12: 0.0803284992 | IV12: 0.1573703125
B13: f | C13: 1 | E13: kelim | F13: =LN(2)/C16 -> 0.2310490602 | G13: h-1 | IR13: 0.1499681495 | IS13: 0.09954502165 | IV13: 0.1940192325
B14: Vd | C14: 50 | D14: l | E14: CL | F14: =Kelim*Vd -> 11.55245301 | G14: l/h | IR14: 0.1799617794 | IS14: 0.1184243761 | IV14: 0.2296386266
B15: t1/2(abs) | C15: 2 | D15: hours | E15: Tmax | F15: =IF(Kelim=0,"Sonsuz",IF(Kabs=Kelim,1/Kelim,LN(Kabs/Kelim)/(Kabs-Kelim))) -> 3.509775004 | G15: hours | IR15: 0.2099554093 | IS15: 0.1369710053 | IV15: 0.26425158
B16: t1/2(elim) | C16: 3 | D16: hours | E16: Cmax | F16: =IF(Kelim=0,Doz/Vd,IF(Kabs=Kelim,$IS$1*EXP(-1),$IS$1*(Kelim/Kabs)^(Kelim/(Kabs-Kelim)))) -> 0.8888888889 | G16: mg/ml | IR16: 0.2399490392 | IS16: 0.1551892997 | IV16: 0.29788069
E17: AUC | F17: =IF(Kelim=0,"Sonsuz",f*Doz/(Vd*Kelim)) -> 8.656170245 | G17: mg.h/ml | IR17: 0.2699426691 | IS17: 0.1730835974 | IV17: 0.3305480756
IR18: 0.299936299 | IS18: 0.1906581855 | IV18: 0.3622753878
IR19: 0.3299299289 | IS19: 0.2079173002 | IV19: 0.3930838193
IR20: 0.3599235588 | IS20: 0.2248651272 | IV20: 0.4229941141
IR21: 0.3899171887 | IS21: 0.241505803 | IV21: 0.4520265764
B22: Case 2 | IR22: 0.4199108186 | IS22: 0.2578434146 | IV22: 0.4802010803
B23: Dose | C23: 100 | D23: mg | E23: kabs | F23: =LN(2)/C26 -> 0.6931471806 | G23: h-1 | IR23: 0.4499044485 | IS23: 0.2738820006 | IV23: 0.5075370784
B24: f | C24: 1 | E24: kelim | F24: =LN(2)/C27 -> 0.2310490602 | G24: h-1 | IR24: 0.4798980784 | IS24: 0.2896255516 | IV24: 0.5340536104
B25: Vd | C25: 50 | D25: l | E25: CL | F25: =Kelim2*_Vd2 -> 11.55245301 | G25: l/h | IR25: 0.5098917083 | IS25: 0.3050780107 | IV25: 0.5597693123
B26: t1/2(abs) | C26: 1 | D26: hours | E26: Tmax | F26: =IF(Kelim2=0,"Sonsuz",IF(Kabs2=Kelim2,1/Kelim2,LN(Kabs2/Kelim2)/(Kabs2-Kelim2))) -> 2.377443751 | G26: hours | IR26: 0.5398853382 | IS26: 0.3202432741 | IV26: 0.5847024242
B27: t1/2(elim) | C27: 3 | D27: hours | E27: Cmax | F27: =IF(Kelim2=0,_Doz2/_Vd2,IF(Kabs2=Kelim2,$IV$1*EXP(-1),$IV$1*(Kelim2/Kabs2)^(Kelim2/(Kabs2-Kelim2)))) -> 1.154700538 | G27: mg/ml | IR27: 0.5698789681 | IS27: 0.3351251916 | IV27: 0.6088707985
E28: AUC | F28: =IF(Kelim2=0,"Sonsuz",ff*_Doz2/(_Vd2*Kelim2)) -> 8.656170245 | G28: mg.h/ml | IR28: 0.599872598 | IS28: 0.3497275669 | IV28: 0.6322919087
IR29: 0.6298662279 | IS29: 0.3640541587 | IV29: 0.6549828563
IR30: 0.6598598578 | IS30: 0.3781086806 | IV30: 0.6769603793
IR31: 0.6898534877 | IS31: 0.3918948018 | IV31: 0.6982408593
IR32: 0.7198471176 | IS32: 0.4054161478 | IV32: 0.7188403291
IR33: 0.7498407475 | IS33: 0.4186763007 | IV33: 0.7387744801
IR34: 0.7798343774 | IS34: 0.4316787996 | IV34: 0.7580586691
IR35: 0.8098280073 | IS35: 0.4444271415 | IV35: 0.7767079254
IR36: 0.8398216372 | IS36: 0.4569247811 | IV36: 0.7947369578
IR37: 0.8698152671 | IS37: 0.469175132 | IV37: 0.8121601609
IR38: 0.899808897 | IS38: 0.4811815667 | IV38: 0.8289916218
IR39: 0.9298025269 | IS39: 0.4929474171 | IV39: 0.8452451269
IR40: 0.9597961568 | IS40: 0.5044759753 | IV40: 0.8609341674
IR41: 0.9897897867 | IS41: 0.5157704935 | IV41: 0.8760719462
IR42: 1.019783417 | IS42: 0.5268341849 | IV42: 0.8906713834
IR43: 1.049777047 | IS43: 0.5376702242 | IV43: 0.9047451223
IR44: 1.079770676 | IS44: 0.5482817474 | IV44: 0.9183055355
IR45: 1.109764306 | IS45: 0.558671853 | IV45: 0.9313647299
IR46: 1.139757936 | IS46: 0.5688436021 | IV46: 0.9439345531
IR47: 1.169751566 | IS47: 0.5788000185 | IV47: 0.9560265978
IR48: 1.199745196 | IS48: 0.5885440898 | IV48: 0.9676522082
IR49: 1.229738826 | IS49: 0.5980787673 | IV49: 0.9788224842
IR50: 1.259732456 | IS50: 0.6074069665 | IV50: 0.9895482871
IR51: 1.289726086 | IS51: 0.6165315678 | IV51: 0.9998402445
IR52: 1.319719716 | IS52: 0.6254554163 | IV52: 1.009708755
IR53: 1.349713346 | IS53: 0.6341813228 | IV53: 1.019163993
IR54: 1.379706975 | IS54: 0.6427120641 | IV54: 1.028215914
IR55: 1.409700605 | IS55: 0.651050383 | IV55: 1.036874257
IR56: 1.439694235 | IS56: 0.6591989889 | IV56: 1.045148553
IR57: 1.469687865 | IS57: 0.6671605585 | IV57: 1.053048126
IR58: 1.499681495 | IS58: 0.6749377356 | IV58: 1.060582097
IR59: 1.529675125 | IS59: 0.6825331319 | IV59: 1.067759392
IR60: 1.559668755 | IS60: 0.6899493272 | IV60: 1.074588742
IR61: 1.589662385 | IS61: 0.6971888697 | IV61: 1.081078689
IR62: 1.619656015 | IS62: 0.7042542767 | IV62: 1.08723759
IR63: 1.649649645 | IS63: 0.7111480344 | IV63: 1.09307362
IR64: 1.679643274 | IS64: 0.7178725986 | IV64: 1.098594777
IR65: 1.709636904 | IS65: 0.7244303953 | IV65: 1.103808886
IR66: 1.739630534 | IS66: 0.7308238204 | IV66: 1.108723599
IR67: 1.769624164 | IS67: 0.7370552405 | IV67: 1.113346404
IR68: 1.799617794 | IS68: 0.7431269932 | IV68: 1.117684624
IR69: 1.829611424 | IS69: 0.7490413872 | IV69: 1.121745423
IR70: 1.859605054 | IS70: 0.754800703 | IV70: 1.125535809
IR71: 1.889598684 | IS71: 0.7604071928 | IV71: 1.129062636
IR72: 1.919592314 | IS72: 0.7658630812 | IV72: 1.132332608
IR73: 1.949585944 | IS73: =IF(Kabs=Kelim,$IS$1*Kabs*IR73/EXP(Kabs*IR73),$IS$1*(Kabs/(Kabs-Kelim))*(EXP(-Kelim*IR73)-EXP(-Kabs*IR73))) -> 0.7711705651 | IV73: 1.135352283
IR74: =IR73+$IT$5 -> 1.979579573 | IS74: 0.7763318145 | IV74: =IF(Kabs2=Kelim2,$IV$1*Kabs2*IR74/EXP(Kabs2*IR74),$IV$1*(Kabs2/(Kabs2-Kelim2))*(EXP(-Kelim2*IR74)-EXP(-Kabs2*IR74))) -> 1.138128075
IR75: 2.009573203 | IS75: 0.7813489725 | IV75: 1.140666258
IR76: 2.039566833 | IS76: 0.7862241557 | IV76: 1.142972965
IR77: 2.069560463 | IS77: 0.7909594544 | IV77: 1.145054199
IR78: 2.099554093 | IS78: 0.7955569332 | IV78: 1.146915827
IR79: 2.129547723 | IS79: 0.8000186307 | IV79: 1.14856359
IR80: 2.159541353 | IS80: 0.8043465605 | IV80: 1.150003099
IR81: 2.189534983 | IS81: 0.8085427112 | IV81: 1.151239844
IR82: 2.219528613 | IS82: 0.8126090464 | IV82: 1.152279192
IR83: 2.249522243 | IS83: 0.8165475054 | IV83: 1.153126393
IR84: 2.279515872 | IS84: 0.8203600033 | IV84: 1.153786579
IR85: 2.309509502 | IS85: 0.8240484313 | IV85: 1.154264769
IR86: 2.339503132 | IS86: 0.8276146571 | IV86: 1.154565872
IR87: 2.369496762 | IS87: 0.8310605248 | IV87: 1.154694685
IR88: 2.399490392 | IS88: 0.8343878556 | IV88: 1.1546559
IR89: 2.429484022 | IS89: 0.8375984478 | IV89: 1.154454106
IR90: 2.459477652 | IS90: 0.8406940773 | IV90: 1.154093787
IR91: 2.489471282 | IS91: 0.8436764974 | IV91: 1.153579329
IR92: 2.519464912 | IS92: 0.8465474398 | IV92: 1.152915018
IR93: 2.549458542 | IS93: 0.849308614 | IV93: 1.152105047
IR94: 2.579452171 | IS94: 0.8519617082 | IV94: 1.151153512
IR95: 2.609445801 | IS95: 0.8545083894 | IV95: 1.150064418
IR96: 2.639439431 | IS96: 0.8569503033 | IV96: 1.148841682
IR97: 2.669433061 | IS97: 0.8592890751 | IV97: 1.147489131
IR98: 2.699426691 | IS98: 0.8615263092 | IV98: 1.146010506
IR99: 2.729420321 | IS99: 0.8636635898 | IV99: 1.144409463
IR100: 2.759413951 | IS100: 0.8657024812 | IV100: 1.142689578
IR101: 2.789407581 | IS101: 0.8676445276 | IV101: 1.140854343
IR102: 2.819401211 | IS102: 0.8694912537 | IV102: 1.138907174
IR103: 2.849394841 | IS103: 0.8712441648 | IV103: 1.136851406
IR104: 2.87938847 | IS104: 0.8729047471 | IV104: 1.134690302
IR105: 2.9093821 | IS105: 0.8744744678 | IV105: 1.132427047
IR106: 2.93937573 | IS106: 0.8759547754 | IV106: 1.130064757
IR107: 2.96936936 | IS107: 0.8773471 | IV107: 1.127606474
IR108: 2.99936299 | IS108: 0.8786528532 | IV108: 1.125055172
IR109: =IR108+$IT$5 -> 3.02935662 | IS109: 0.8798734289 | IV109: =IF(Kabs2=Kelim2,$IV$1*Kabs2*IR109/EXP(Kabs2*IR109),$IV$1*(Kabs2/(Kabs2-Kelim2))*(EXP(-Kelim2*IR109)-EXP(-Kabs2*IR109))) -> 1.122413758
IR110: 3.05935025 | IS110: 0.8810102027 | IV110: 1.119685068
IR111: 3.08934388 | IS111: 0.8820645328 | IV111: 1.116871879
IR112: 3.11933751 | IS112: 0.8830377601 | IV112: 1.113976899
IR113: 3.14933114 | IS113: 0.883931208 | IV113: 1.111002775
IR114: 3.179324769 | IS114: 0.8847461829 | IV114: 1.107952095
IR115: 3.209318399 | IS115: 0.8854839745 | IV115: 1.104827385
IR116: 3.239312029 | IS116: 0.8861458559 | IV116: 1.101631112
IR117: 3.269305659 | IS117: 0.8867330835 | IV117: 1.098365687
IR118: 3.299299289 | IS118: 0.8872468976 | IV118: 1.095033466
IR119: 3.329292919 | IS119: 0.8876885225 | IV119: 1.091636747
IR120: 3.359286549 | IS120: 0.8880591666 | IV120: 1.088177776
IR121: 3.389280179 | IS121: 0.8883600225 | IV121: 1.084658747
IR122: 3.419273809 | IS122: 0.8885922674 | IV122: 1.081081803
IR123: 3.449267439 | IS123: 0.8887570631 | IV123: 1.077449033
IR124: 3.479261068 | IS124: 0.8888555565 | IV124: 1.073762482
IR125: 3.509254698 | IS125: 0.8888888793 | IV125: 1.070024143
... 156 more rows

Sheet BDK_ORAL_CD (hidden)
L1: Oral Administration Multiple Doses | M1: (First order kinetics) | HX1: =$HX$8/$D$9 -> 15.28771238 | HY1: Yukaridaki protokolle ulaşılan doz sayısı | IC1: N | ID1: t | IE1: tn | IF1: Dn | IG1: Y0 | IJ1: =$HX$8/$D$18 -> 15.28771238 | IK1: Yukaridaki protokolle ulaşılan doz sayısı | IO1: N | IP1: t | IQ1: tn | IR1: Dn | IS1: Y0
HX2: =EXP(-$D$9*$G$9) -> 0.0625 | HY2: Verilen dozdan t-int saat sonra uygulama yerinde kalan ilaç oranı | IB2: 1 | IC2: 0 | ID2: 0 | IE2: =$D$11*($D$10*((1-$HX$2^IB2)/(1-$HX$2)))/$D$12 -> 0.12 | IF2: 0 | IG2: =IE2*(G$9/(G$9-G$10))*(EXP(-ID2*G$10)-EXP(-ID2*G$9))+IF2*EXP(-ID2*$G$10) -> 0 | IH2: 0 | IJ2: =EXP(-$D$18*$G$18) -> 5.960464478e-08 | IK2: Verilen dozdan t-int saat sonra uygulama yerinde kalan ilaç oranı | IN2: 1 | IO2: 0 | IP2: 0 | IQ2: =$D$20*($D$19*((1-$IJ$2^IN2)/(1-$IJ$2)))/$D$21 -> 0.12 | IR2: 0 | IS2: =IQ2*($G$18/($G$18-$G$19))*(EXP(-IP2*$G$19)-EXP(-IP2*$G$18))+IR2*EXP(-IP2*$G$19) -> 0 | IT2: 0
HX3: =$D$11*$D$10/$D$12 -> 0.12 | HY3: D nin dağılmasıyla oluşan derişim | IB3: =TRUNC(IH3)+1 -> 1 | IC3: =ID3 -> 0.1863006595 | ID3: =IF(IB3=IB2,ID2+D$9/((1000/HX$1)-1),0) -> 0.1863006595 | IE3: 0.12 | IF3: =IF(IB3=IB2,IF2,IG2) -> 0 | IG3: =IE3*($G$9/($G$9-$G$10))*(EXP(-ID3*$G$10)-EXP(-ID3*$G$9))+IF3*EXP(-ID3*$G$10) -> 0.005028459261 | IH3: =ROUND((IH2+($HX$1/1000)),4) -> 0.0153 | IJ3: =$D$20*$D$19/$D$21 -> 0.12 | IK3: D nin dağılmasıyla oluşan derişim | IN3: =TRUNC(IT3)+1 -> 1 | IO3: =IP3 -> 0.1863006595 | IP3: =IF(IN3=IN2,IP2+$D$18/((1000/IJ$1)-1),0) -> 0.1863006595 | IQ3: 0.12 | IR3: =IF(IN3=IN2,IR2,IS2) -> 0 | IS3: 0.02723687403 | IT3: =ROUND((IT2+($IJ$1/1000)),4) -> 0.0153
HX4: Mn-t | IB4: =TRUNC(IH4)+1 -> 1 | IC4: =IF(ID4=0,IC3,IC3+$IC$3) -> 0.3726013189 | ID4: =IF(IB4=IB3,ID3+D$9/((1000/HX$1)-1),0) -> 0.3726013189 | IE4: 0.12 | IF4: 0 | IG4: =IE4*($G$9/($G$9-$G$10))*(EXP(-ID4*$G$10)-EXP(-ID4*$G$9))+IF4*EXP(-ID4*$G$10) -> 0.00979124099 | IH4: =ROUND((IH3+($HX$1/1000)),4) -> 0.0306 | IJ4: Mn-t | IN4: =TRUNC(IT4)+1 -> 1 | IO4: =IF(IP4=0,IO3,IO3+$IO$3) -> 0.3726013189 | IP4: 0.3726013189 | IQ4: 0.12 | IR4: 0 | IS4: 0.04812816718 | IT4: =ROUND((IT3+($IJ$1/1000)),4) -> 0.0306
HX5: =$J$17 -> 0 | HY5: =$J$18 -> 0 | HZ5: 0 | IB5: 1 | IC5: =IF(ID5=0,IC4,IC4+$IC$3) -> 0.5589019784 | ID5: 0.5589019784 | IE5: 0.12 | IF5: 0 | IG5: 0.01430011462 | IH5: =ROUND((IH4+($HX$1/1000)),4) -> 0.0459 | IJ5: =$J$17 -> 0 | IK5: =$J$18 -> 0 | IL5: 0 | IN5: 1 | IO5: =IF(IP5=0,IO4,IO4+$IO$3) -> 0.5589019784 | IP5: 0.5589019784 | IQ5: 0.12 | IR5: 0 | IS5: 0.06411899061 | IT5: 0.0459
HX6: =$J$17 -> 0 | HY6: =$J$18 -> 0 | HZ6: =MAX($IC$2:$IC$1001) -> 183.3198489 | IB6: 1 | IC6: =IF(ID6=0,IC5,IC5+$IC$3) -> 0.7452026378 | ID6: 0.7452026378 | IE6: 0.12 | IF6: 0 | IG6: 0.01856634753 | IH6: 0.0612 | IJ6: =$J$17 -> 0 | IK6: =$J$18 -> 0 | IL6: =MAX($IO$2:$IO$1001) -> 183.3198489 | IN6: 1 | IO6: =IF(IP6=0,IO5,IO5+$IO$3) -> 0.7452026378 | IP6: 0.7452026378 | IQ6: 0.12 | IR6: 0 | IS6: 0.07632552744 | IT6: 0.0612
HX7: =-LN(1-0.995)/$G$10 -> 91.72627428 | HY7: Kararli duruma ula;ma zamani | IB7: 1 | IC7: =IF(ID7=0,IC6,IC6+$IC$3) -> 0.9315032973 | ID7: 0.9315032973 | IE7: 0.12 | IF7: 0 | IG7: 0.02260072633 | IH7: 0.0765 | IJ7: =-LN(1-0.995)/$G$19 -> 183.4525486 | IK7: Kararli duruma ula;ma zamani | IN7: 1 | IO7: 0.9315032973 | IP7: 0.9315032973 | IQ7: 0.12 | IR7: 0 | IS7: 0.08560990053 | IT7: 0.0765
C8: Case 1 | HX8: =MAX(HX7,IJ7) -> 183.4525486 | IB8: 1 | IC8: 1.117803957 | ID8: 1.117803957 | IE8: 0.12 | IF8: 0 | IG8: 0.02641357712 | IH8: 0.0918 | IN8: 1 | IO8: 1.117803957 | IP8: 1.117803957 | IQ8: 0.12 | IR8: 0 | IS8: 0.09263799954 | IT8: 0.0918
C9: Interval | D9: 12 | E9: hours | F9: kabs | G9: =LN(2)/D13 -> 0.2310490602 | H9: h-1 | IB9: 1 | IC9: 1.304104616 | ID9: 1.304104616 | IE9: 0.12 | IF9: 0 | IG9: 0.03001478496 | IH9: 0.1071 | IN9: 1 | IO9: 1.304104616 | IP9: 1.304104616 | IQ9: 0.12 | IR9: 0 | IS9: 0.09792414588 | IT9: 0.1071
C10: Dose | D10: 12 | E10: mg | F10: kelim | G10: =LN(2)/D14 -> 0.05776226505 | H10: h-1 | IB10: 1 | IC10: 1.490405276 | ID10: 1.490405276 | IE10: 0.12 | IF10: 0 | IG10: 0.03341381256 | IH10: 0.1224 | IN10: 1 | IO10: 1.490405276 | IP10: 1.490405276 | IQ10: 0.12 | IR10: 0 | IS10: 0.1018655914 | IT10: 0.1224
C11: f | D11: 1 | F11: CL | G11: =G10*D12 -> 5.776226505 | H11: l/h | IB11: 1 | IC11: 1.676705935 | ID11: 1.676705935 | IE11: 0.12 | IF11: 0 | IG11: 0.03661971811 | IH11: 0.1377 | IN11: 1 | IO11: 1.676705935 | IP11: 1.676705935 | IQ11: 0.12 | IR11: 0 | IS11: 0.1047691648 | IT11: 0.1377
C12: Vd | D12: 100 | E12: l | F12: Accumulation | G12: =1/(1-2^(-D9/D14)) -> 2 | H12: fold | IB12: 1 | IC12: 1.863006595 | ID12: 1.863006595 | IE12: 0.12 | IF12: 0 | IG12: 0.03964117236 | IH12: 0.153 | IN12: 1 | IO12: 1.863006595 | IP12: 1.863006595 | IQ12: 0.12 | IR12: 0 | IS12: 0.1068718529 | IT12: 0.153
C13: t1/2(abs) | D13: 3 | E13: hours | F13: Cmin | G13: =(D10*D11/D12)*(G9/(G9-G10))*((EXP(-D9*G10)/(1-EXP(-D9*G10)))-(EXP(-D9*G9)/(1-EXP(-D9*G9)))) -> 0.1493333333 | H13: mg/ml | IB13: 1 | IC13: 2.049307254 | ID13: 2.049307254 | IE13: 0.12 | IF13: =IF(IB13=IB12,IF12,IG12) -> 0 | IG13: 0.04248647506 | IH13: 0.1683 | IN13: 1 | IO13: 2.049307254 | IP13: 2.049307254 | IQ13: 0.12 | IR13: =IF(IN13=IN12,IR12,IS12) -> 0 | IS13: 0.1083566977 | IT13: 0.1683
C14: t1/2(elim) | D14: 12 | E14: hours | F14: Cmax | G14: =MAX(IG2:IG1001) -> 0.1868923826 | H14: mg/ml | IB14: 1 | IC14: 2.235607913 | ID14: 2.235607913 | IE14: 0.12 | IF14: 0 | IG14: 0.04516357061 | IH14: 0.1836 | IN14: =TRUNC(IT14)+1 -> 1 | IO14: 2.235607913 | IP14: 2.235607913 | IQ14: 0.12 | IR14: =IF(IN14=IN13,IR13,IS13) -> 0 | IS14: 0.1093650746 | IT14: 0.1836
IB15: 1 | IC15: 2.421908573 | ID15: 2.421908573 | IE15: 0.12 | IF15: 0 | IG15: 0.0476800631 | IH15: 0.1989 | IN15: 1 | IO15: =IF(IP15=0,IO14,IO14+$IO$3) -> 2.421908573 | IP15: 2.421908573 | IQ15: 0.12 | IR15: =IF(IN15=IN14,IR14,IS14) -> 0 | IS15: 0.1100061764 | IT15: 0.1989
IB16: 1 | IC16: 2.608209232 | ID16: 2.608209232 | IE16: 0.12 | IF16: 0 | IG16: 0.05004323073 | IH16: 0.2142 | IN16: 1 | IO16: 2.608209232 | IP16: 2.608209232 | IQ16: 0.12 | IR16: 0 | IS16: 0.1103643382 | IT16: 0.2142
C17: Case 2 | IB17: 1 | IC17: 2.794509892 | ID17: 2.794509892 | IE17: 0.12 | IF17: 0 | IG17: 0.05226003956 | IH17: 0.2295 | IN17: 1 | IO17: 2.794509892 | IP17: 2.794509892 | IQ17: 0.12 | IR17: 0 | IS17: 0.1105046958 | IT17: 0.2295
C18: Interval | D18: 12 | E18: hours | F18: kabs | G18: =LN(2)/D22 -> 1.386294361 | H18: h-1 | IB18: 1 | IC18: 2.980810551 | ID18: 2.980810551 | IE18: 0.12 | IF18: 0 | IG18: 0.05433715676 | IH18: 0.2448 | IN18: 1 | IO18: 2.980810551 | IP18: 2.980810551 | IQ18: 0.12 | IR18: 0 | IS18: 0.1104775551 | IT18: 0.2448
C19: Dose | D19: 12 | E19: mg | F19: kelim | G19: =LN(2)/D23 -> 0.02888113252 | H19: h-1 | IB19: 1 | IC19: 3.167111211 | ID19: 3.167111211 | IE19: 0.12 | IF19: 0 | IG19: 0.05628096322 | IH19: 0.2601 | IN19: 1 | IO19: 3.167111211 | IP19: 3.167111211 | IQ19: 0.12 | IR19: 0 | IS19: 0.1103217682 | IT19: 0.2601
C20: f | D20: 1 | F20: CL | G20: =G19*D21 -> 2.888113252 | H20: l/h | IB20: 1 | IC20: 3.35341187 | ID20: 3.35341187 | IE20: 0.12 | IF20: 0 | IG20: 0.05809756573 | IH20: 0.2754 | IN20: 1 | IO20: 3.35341187 | IP20: 3.35341187 | IQ20: 0.12 | IR20: 0 | IS20: 0.1100673397 | IT20: 0.2754
C21: Vd | D21: 100 | E21: l | F21: Accumulation | G21: =1/(1-2^(-D18/D23)) -> 3.414213562 | H21: fold | IB21: 1 | IC21: 3.53971253 | ID21: 3.53971253 | IE21: 0.12 | IF21: 0 | IG21: 0.05979280851 | IH21: 0.2907 | IN21: 1 | IO21: 3.53971253 | IP21: 3.53971253 | IQ21: 0.12 | IR21: 0 | IS21: 0.1097374413 | IT21: 0.2907
C22: t1/2(abs) | D22: 0.5 | E22: hours | F22: Cmin | G22: =(D19*D20/D21)*(G18/(G18-G19))*((EXP(-D18*G19)/(1-EXP(-D18*G19)))-(EXP(-D18*G18)/(1-EXP(-D18*G18)))) -> 0.2958695697 | H22: mg/ml | IB22: 1 | IC22: 3.726013189 | ID22: 3.726013189 | IE22: 0.12 | IF22: 0 | IG22: 0.06137228437 | IH22: 0.306 | IN22: 1 | IO22: 3.726013189 | IP22: 3.726013189 | IQ22: 0.12 | IR22: 0 | IS22: 0.1093499666 | IT22: 0.306
C23: t1/2(elim) | D23: 24 | E23: hours | F23: Cmax | G23: =MAX(IS2:IS1001) -> 0.3859124455 | H23: mg/ml | IB23: 1 | IC23: 3.912313849 | ID23: 3.912313849 | IE23: 0.12 | IF23: 0 | IG23: 0.06284134536 | IH23: 0.3213 | IN23: 1 | IO23: 3.912313849 | IP23: 3.912313849 | IQ23: 0.12 | IR23: 0 | IS23: 0.1089187324 | IT23: 0.3213
IB24: 1 | IC24: 4.098614508 | ID24: 4.098614508 | IE24: 0.12 | IF24: 0 | IG24: 0.06420511297 | IH24: 0.3366 | IN24: 1 | IO24: 4.098614508 | IP24: 4.098614508 | IQ24: 0.12 | IR24: 0 | IS24: 0.108454407 | IT24: 0.3366
IB25: 1 | IC25: 4.284915167 | ID25: 4.284915167 | IE25: 0.12 | IF25: 0 | IG25: 0.06546848787 | IH25: 0.3519 | IN25: 1 | IO25: 4.284915167 | IP25: 4.284915167 | IQ25: 0.12 | IR25: 0 | IS25: 0.1079652266 | IT25: 0.3519
IB26: 1 | IC26: 4.471215827 | ID26: 4.471215827 | IE26: 0.12 | IF26: 0 | IG26: 0.0666361593 | IH26: 0.3672 | IN26: 1 | IO26: 4.471215827 | IP26: 4.471215827 | IQ26: 0.12 | IR26: 0 | IS26: 0.1074575489 | IT26: 0.3672
IB27: 1 | IC27: 4.657516486 | ID27: 4.657516486 | IE27: 0.12 | IF27: 0 | IG27: 0.06771261401 | IH27: 0.3825 | IN27: 1 | IO27: 4.657516486 | IP27: 4.657516486 | IQ27: 0.12 | IR27: 0 | IS27: 0.106936281 | IT27: 0.3825
IB28: 1 | IC28: 4.843817146 | ID28: 4.843817146 | IE28: 0.12 | IF28: 0 | IG28: 0.06870214484 | IH28: 0.3978 | IN28: 1 | IO28: 4.843817146 | IP28: 4.843817146 | IQ28: 0.12 | IR28: 0 | IS28: 0.1064052091 | IT28: 0.3978
IB29: 1 | IC29: 5.030117805 | ID29: 5.030117805 | IE29: 0.12 | IF29: 0 | IG29: 0.06960885899 | IH29: 0.4131 | IN29: 1 | IO29: 5.030117805 | IP29: 5.030117805 | IQ29: 0.12 | IR29: 0 | IS29: 0.105867254 | IT29: 0.4131
IB30: 1 | IC30: 5.216418465 | ID30: 5.216418465 | IE30: 0.12 | IF30: 0 | IG30: 0.07043668581 | IH30: 0.4284 | IN30: 1 | IO30: 5.216418465 | IP30: 5.216418465 | IQ30: 0.12 | IR30: 0 | IS30: 0.1053246679 | IT30: 0.4284
IB31: 1 | IC31: 5.402719124 | ID31: 5.402719124 | IE31: 0.12 | IF31: 0 | IG31: 0.07118938443 | IH31: 0.4437 | IN31: 1 | IO31: 5.402719124 | IP31: 5.402719124 | IQ31: 0.12 | IR31: 0 | IS31: 0.1047791869 | IT31: 0.4437
IB32: 1 | IC32: 5.589019784 | ID32: 5.589019784 | IE32: 0.12 | IF32: 0 | IG32: 0.0718705509 | IH32: 0.459 | IN32: 1 | IO32: 5.589019784 | IP32: 5.589019784 | IQ32: 0.12 | IR32: 0 | IS32: 0.1042321481 | IT32: 0.459
IB33: 1 | IC33: 5.775320443 | ID33: 5.775320443 | IE33: 0.12 | IF33: 0 | IG33: 0.0724836252 | IH33: 0.4743 | IN33: 1 | IO33: 5.775320443 | IP33: 5.775320443 | IQ33: 0.12 | IR33: 0 | IS33: 0.1036845806 | IT33: 0.4743
IB34: 1 | IC34: 5.961621102 | ID34: 5.961621102 | IE34: 0.12 | IF34: 0 | IG34: 0.07303189777 | IH34: 0.4896 | IN34: 1 | IO34: 5.961621102 | IP34: 5.961621102 | IQ34: 0.12 | IR34: 0 | IS34: 0.1031372759 | IT34: 0.4896
IB35: 1 | IC35: 6.147921762 | ID35: 6.147921762 | IE35: 0.12 | IF35: 0 | IG35: 0.07351851594 | IH35: 0.5049 | IN35: 1 | IO35: 6.147921762 | IP35: 6.147921762 | IQ35: 0.12 | IR35: 0 | IS35: 0.1025908414 | IT35: 0.5049
IB36: 1 | IC36: 6.334222421 | ID36: 6.334222421 | IE36: 0.12 | IF36: 0 | IG36: 0.07394648997 | IH36: 0.5202 | IN36: 1 | IO36: 6.334222421 | IP36: 6.334222421 | IQ36: 0.12 | IR36: 0 | IS36: 0.1020457429 | IT36: 0.5202
IB37: 1 | IC37: 6.520523081 | ID37: 6.520523081 | IE37: 0.12 | IF37: 0 | IG37: 0.07431869886 | IH37: 0.5355 | IN37: 1 | IO37: 6.520523081 | IP37: 6.520523081 | IQ37: 0.12 | IR37: 0 | IS37: 0.1015023366 | IT37: 0.5355
IB38: 1 | IC38: 6.70682374 | ID38: 6.70682374 | IE38: 0.12 | IF38: 0 | IG38: 0.07463789595 | IH38: 0.5508 | IN38: 1 | IO38: 6.70682374 | IP38: 6.70682374 | IQ38: 0.12 | IR38: 0 | IS38: 0.1009608939 | IT38: 0.5508
IB39: 1 | IC39: 6.8931244 | ID39: 6.8931244 | IE39: 0.12 | IF39: 0 | IG39: 0.07490671426 | IH39: 0.5661 | IN39: 1 | IO39: 6.8931244 | IP39: 6.8931244 | IQ39: 0.12 | IR39: 0 | IS39: 0.1004216212 | IT39: 0.5661
IB40: 1 | IC40: 7.079425059 | ID40: 7.079425059 | IE40: 0.12 | IF40: 0 | IG40: 0.07512767161 | IH40: 0.5814 | IN40: 1 | IO40: 7.079425059 | IP40: 7.079425059 | IQ40: 0.12 | IR40: 0 | IS40: 0.09988467413 | IT40: 0.5814
IB41: =TRUNC(IH41)+1 -> 1 | IC41: 7.265725719 | ID41: 7.265725719 | IE41: 0.12 | IF41: 0 | IG41: 0.07530317549 | IH41: 0.5967 | IN41: =TRUNC(IT41)+1 -> 1 | IO41: 7.265725719 | IP41: 7.265725719 | IQ41: 0.12 | IR41: 0 | IS41: 0.0993501696 | IT41: 0.5967
IB42: 1 | IC42: 7.452026378 | ID42: 7.452026378 | IE42: 0.12 | IF42: 0 | IG42: 0.07543552779 | IH42: 0.612 | IN42: =TRUNC(IT42)+1 -> 1 | IO42: 7.452026378 | IP42: 7.452026378 | IQ42: 0.12 | IR42: 0 | IS42: 0.09881819436 | IT42: 0.612
IB43: 1 | IC43: 7.638327038 | ID43: 7.638327038 | IE43: 0.12 | IF43: 0 | IG43: 0.07552692926 | IH43: 0.6273 | IN43: 1 | IO43: 7.638327038 | IP43: 7.638327038 | IQ43: 0.12 | IR43: 0 | IS43: 0.09828881197 | IT43: 0.6273
IB44: 1 | IC44: 7.824627697 | ID44: 7.824627697 | IE44: 0.12 | IF44: 0 | IG44: 0.07557948385 | IH44: 0.6426 | IN44: 1 | IO44: 7.824627697 | IP44: 7.824627697 | IQ44: 0.12 | IR44: 0 | IS44: 0.09776206811 | IT44: 0.6426
IB45: 1 | IC45: 8.010928356 | ID45: 8.010928356 | IE45: 0.12 | IF45: 0 | IG45: 0.07559520281 | IH45: 0.6579 | IN45: 1 | IO45: 8.010928356 | IP45: 8.010928356 | IQ45: 0.12 | IR45: 0 | IS45: 0.09723799465 | IT45: 0.6579
IB46: 1 | IC46: 8.197229016 | ID46: 8.197229016 | IE46: 0.12 | IF46: 0 | IG46: 0.07557600864 | IH46: 0.6732 | IN46: 1 | IO46: 8.197229016 | IP46: 8.197229016 | IQ46: 0.12 | IR46: 0 | IS46: 0.0967166128 | IT46: 0.6732
IB47: 1 | IC47: 8.383529675 | ID47: 8.383529675 | IE47: 0.12 | IF47: 0 | IG47: 0.07552373889 | IH47: 0.6885 | IN47: 1 | IO47: 8.383529675 | IP47: 8.383529675 | IQ47: 0.12 | IR47: 0 | IS47: 0.09619793557 | IT47: 0.6885
IB48: 1 | IC48: 8.569830335 | ID48: 8.569830335 | IE48: 0.12 | IF48: 0 | IG48: 0.07544014974 | IH48: 0.7038 | IN48: 1 | IO48: 8.569830335 | IP48: 8.569830335 | IQ48: 0.12 | IR48: 0 | IS48: 0.09568196967 | IT48: 0.7038
IB49: 1 | IC49: 8.756130994 | ID49: 8.756130994 | IE49: 0.12 | IF49: 0 | IG49: 0.07532691952 | IH49: 0.7191 | IN49: 1 | IO49: 8.756130994 | IP49: 8.756130994 | IQ49: 0.12 | IR49: 0 | IS49: 0.09516871692 | IT49: 0.7191
IB50: 1 | IC50: 8.942431654 | ID50: 8.942431654 | IE50: 0.12 | IF50: 0 | IG50: 0.075185652 | IH50: 0.7344 | IN50: 1 | IO50: 8.942431654 | IP50: 8.942431654 | IQ50: 0.12 | IR50: 0 | IS50: 0.09465817542 | IT50: 0.7344
IB51: 1 | IC51: 9.128732313 | ID51: 9.128732313 | IE51: 0.12 | IF51: 0 | IG51: 0.0750178796 | IH51: 0.7497 | IN51: 1 | IO51: 9.128732313 | IP51: 9.128732313 | IQ51: 0.12 | IR51: 0 | IS51: 0.09415034038 | IT51: 0.7497
IB52: 1 | IC52: 9.315032973 | ID52: 9.315032973 | IE52: 0.12 | IF52: 0 | IG52: 0.0748250664 | IH52: 0.765 | IN52: 1 | IO52: 9.315032973 | IP52: 9.315032973 | IQ52: 0.12 | IR52: 0 | IS52: 0.09364520483 | IT52: 0.765
IB53: 1 | IC53: 9.501333632 | ID53: 9.501333632 | IE53: 0.12 | IF53: 0 | IG53: 0.07460861107 | IH53: 0.7803 | IN53: 1 | IO53: 9.501333632 | IP53: 9.501333632 | IQ53: 0.12 | IR53: 0 | IS53: 0.09314276012 | IT53: 0.7803
IB54: 1 | IC54: 9.687634292 | ID54: 9.687634292 | IE54: 0.12 | IF54: 0 | IG54: 0.07436984969 | IH54: 0.7956 | IN54: 1 | IO54: 9.687634292 | IP54: 9.687634292 | IQ54: 0.12 | IR54: 0 | IS54: 0.09264299631 | IT54: 0.7956
IB55: 1 | IC55: 9.873934951 | ID55: 9.873934951 | IE55: 0.12 | IF55: 0 | IG55: 0.07411005842 | IH55: 0.8109 | IN55: 1 | IO55: 9.873934951 | IP55: 9.873934951 | IQ55: 0.12 | IR55: 0 | IS55: 0.0921459025 | IT55: 0.8109
IB56: 1 | IC56: 10.06023561 | ID56: 10.06023561 | IE56: 0.12 | IF56: 0 | IG56: 0.07383045602 | IH56: 0.8262 | IN56: 1 | IO56: 10.06023561 | IP56: 10.06023561 | IQ56: 0.12 | IR56: 0 | IS56: 0.09165146703 | IT56: 0.8262
IB57: 1 | IC57: 10.24653627 | ID57: 10.24653627 | IE57: 0.12 | IF57: 0 | IG57: 0.07353220637 | IH57: 0.8415 | IN57: 1 | IO57: 10.24653627 | IP57: 10.24653627 | IQ57: 0.12 | IR57: 0 | IS57: 0.09115967773 | IT57: 0.8415
IB58: 1 | IC58: 10.43283693 | ID58: 10.43283693 | IE58: 0.12 | IF58: 0 | IG58: 0.07321642078 | IH58: 0.8568 | IN58: 1 | IO58: 10.43283693 | IP58: 10.43283693 | IQ58: 0.12 | IR58: 0 | IS58: 0.09067052199 | IT58: 0.8568
IB59: 1 | IC59: 10.61913759 | ID59: 10.61913759 | IE59: 0.12 | IF59: 0 | IG59: 0.07288416026 | IH59: 0.8721 | IN59: 1 | IO59: 10.61913759 | IP59: 10.61913759 | IQ59: 0.12 | IR59: 0 | IS59: 0.09018398692 | IT59: 0.8721
IB60: 1 | IC60: 10.80543825 | ID60: 10.80543825 | IE60: 0.12 | IF60: 0 | IG60: 0.07253643765 | IH60: 0.8874 | IN60: 1 | IO60: 10.80543825 | IP60: 10.80543825 | IQ60: 0.12 | IR60: 0 | IS60: 0.08970005941 | IT60: 0.8874
IB61: 1 | IC61: 10.99173891 | ID61: 10.99173891 | IE61: 0.12 | IF61: 0 | IG61: 0.07217421972 | IH61: 0.9027 | IN61: 1 | IO61: 10.99173891 | IP61: 10.99173891 | IQ61: 0.12 | IR61: 0 | IS61: 0.08921872621 | IT61: 0.9027
IB62: 1 | IC62: 11.17803957 | ID62: 11.17803957 | IE62: 0.12 | IF62: 0 | IG62: 0.07179842914 | IH62: 0.918 | IN62: 1 | IO62: 11.17803957 | IP62: 11.17803957 | IQ62: 0.12 | IR62: 0 | IS62: 0.08873997397 | IT62: 0.918
IB63: 1 | IC63: 11.36434023 | ID63: 11.36434023 | IE63: 0.12 | IF63: 0 | IG63: 0.07140994635 | IH63: 0.9333 | IN63: 1 | IO63: 11.36434023 | IP63: 11.36434023 | IQ63: 0.12 | IR63: 0 | IS63: 0.08826378928 | IT63: 0.9333
IB64: 1 | IC64: 11.55064089 | ID64: 11.55064089 | IE64: 0.12 | IF64: 0 | IG64: 0.07100961142 | IH64: 0.9486 | IN64: 1 | IO64: 11.55064089 | IP64: 11.55064089 | IQ64: 0.12 | IR64: 0 | IS64: 0.0877901587 | IT64: 0.9486
IB65: 1 | IC65: 11.73694155 | ID65: 11.73694155 | IE65: 0.12 | IF65: 0 | IG65: 0.07059822573 | IH65: 0.9639 | IN65: 1 | IO65: 11.73694155 | IP65: 11.73694155 | IQ65: 0.12 | IR65: 0 | IS65: 0.08731906879 | IT65: 0.9639
IB66: 1 | IC66: 11.9232422 | ID66: 11.9232422 | IE66: =$D$11*($D$10*((1-$HX$2^IB66)/(1-$HX$2)))/$D$12 -> 0.12 | IF66: 0 | IG66: 0.07017655368 | IH66: 0.9792 | IN66: 1 | IO66: 11.9232422 | IP66: 11.9232422 | IQ66: =$D$20*($D$19*((1-$IJ$2^IN66)/(1-$IJ$2)))/$D$21 -> 0.12 | IR66: 0 | IS66: =IQ66*($G$18/($G$18-$G$19))*(EXP(-IP66*$G$19)-EXP(-IP66*$G$18))+IR66*EXP(-IP66*$G$19) -> 0.08685050612 | IT66: 0.9792
IB67: =TRUNC(IH67)+1 -> 1 | IC67: 12.10954286 | ID67: 12.10954286 | IE67: 0.12 | IF67: =IF(IB67=IB66,IF66,IG66) -> 0 | IG67: 0.06974532426 | IH67: 0.9945 | IN67: 1 | IO67: 12.10954286 | IP67: =IF(IN67=IN66,IP66+$D$18/((1000/IJ$1)-1),0) -> 12.10954286 | IQ67: 0.12 | IR67: 0 | IS67: 0.08638445728 | IT67: 0.9945
IB68: 2 | IC68: 12.10954286 | ID68: =IF(IB68=IB67,ID67+D$9/((1000/HX$1)-1),0) -> 0 | IE68: 0.1275 | IF68: 0.06974532426 | IG68: =IE68*($G$9/($G$9-$G$10))*(EXP(-ID68*$G$10)-EXP(-ID68*$G$9))+IF68*EXP(-ID68*$G$10) -> 0.06974532426 | IH68: =ROUND((IH67+($HX$1/1000)),4) -> 1.0098 | IN68: 2 | IO68: 12.10954286 | IP68: 0 | IQ68: 0.1200000072 | IR68: 0.08638445728 | IS68: 0.08638445728 | IT68: =ROUND((IT67+($IJ$1/1000)),4) -> 1.0098
IB69: 2 | IC69: 12.29584352 | ID69: 0.1863006595 | IE69: 0.1275 | IF69: 0.06974532426 | IG69: 0.07434154635 | IH69: 1.0251 | IN69: 2 | IO69: =IF(IP69=0,IO68,IO68+$IO$3) -> 12.29584352 | IP69: 0.1863006595 | IQ69: 0.1200000072 | IR69: 0.08638445728 | IS69: 0.1131577832 | IT69: 1.0251
IB70: 2 | IC70: 12.48214418 | ID70: 0.3726013189 | IE70: 0.1275 | IF70: 0.06974532426 | IG70: 0.07866347636 | IH70: 1.0404 | IN70: 2 | IO70: 12.48214418 | IP70: 0.3726013189 | IQ70: 0.1200000072 | IR70: 0.08638445728 | IS70: 0.1335880153 | IT70: 1.0404
IB71: 2 | IC71: =IF(ID71=0,IC70,IC70+$IC$3) -> 12.66844484 | ID71: 0.5589019784 | IE71: 0.1275 | IF71: 0.06974532426 | IG71: 0.08272353379 | IH71: 1.0557 | IN71: 2 | IO71: 12.66844484 | IP71: 0.5589019784 | IQ71: 0.1200000072 | IR71: 0.08638445728 | IS71: 0.1491202515 | IT71: 1.0557
IB72: 2 | IC72: 12.8547455 | ID72: 0.7452026378 | IE72: 0.1275 | IF72: 0.06974532426 | IG72: 0.08653360563 | IH72: 1.071 | IN72: 2 | IO72: 12.8547455 | IP72: 0.7452026378 | IQ72: 0.1200000072 | IR72: 0.08638445728 | IS72: 0.1608706617 | IT72: 1.071
IB73: 2 | IC73: 13.04104616 | ID73: 0.9315032973 | IE73: 0.1275 | IF73: 0.06974532426 | IG73: 0.09010506893 | IH73: 1.0863 | IN73: 2 | IO73: 13.04104616 | IP73: 0.9315032973 | IQ73: 0.1200000072 | IR73: 0.08638445728 | IS73: 0.1697013556 | IT73: 1.0863
IB74: 2 | IC74: 13.22734682 | ID74: 1.117803957 | IE74: 0.1275 | IF74: 0.06974532426 | IG74: 0.09344881238 | IH74: 1.1016 | IN74: 2 | IO74: 13.22734682 | IP74: 1.117803957 | IQ74: 0.1200000072 | IR74: 0.08638445728 | IS74: 0.1762782098 | IT74: 1.1016
IB75: 2 | IC75: 13.41364748 | ID75: 1.304104616 | IE75: 0.1275 | IF75: 0.06974532426 | IG75: 0.09657525693 | IH75: 1.1169 | IN75: 2 | IO75: 13.41364748 | IP75: 1.304104616 | IQ75: 0.1200000072 | IR75: 0.08638445728 | IS75: 0.1811155327 | IT75: 1.1169
IB76: 2 | IC76: 13.59994814 | ID76: 1.490405276 | IE76: 0.1275 | IF76: 0.06974532426 | IG76: 0.09949437567 | IH76: 1.1322 | IN76: 2 | IO76: 13.59994814 | IP76: 1.490405276 | IQ76: 0.1200000072 | IR76: 0.08638445728 | IS76: 0.1846105632 | IT76: 1.1322
IB77: 2 | IC77: 13.7862488 | ID77: 1.676705935 | IE77: 0.1275 | IF77: 0.06974532426 | IG77: 0.1022157127 | IH77: 1.1475 | IN77: 2 | IO77: 13.7862488 | IP77: 1.676705935 | IQ77: 0.1200000072 | IR77: 0.08638445728 | IS77: 0.1870701169 | IT77: 1.1475
IB78: 2 | IC78: 13.97254946 | ID78: 1.863006595 | IE78: 0.1275 | IF78: 0.06974532426 | IG78: 0.1047484015 | IH78: 1.1628 | IN78: 2 | IO78: 13.97254946 | IP78: 1.863006595 | IQ78: 0.1200000072 | IR78: =IF(IN78=IN77,IR77,IS77) -> 0.08638445728 | IS78: 0.1887311681 | IT78: 1.1628
IB79: 2 | IC79: 14.15885012 | ID79: 2.049307254 | IE79: 0.1275 | IF79: 0.06974532426 | IG79: 0.107101182 | IH79: 1.1781 | IN79: 2 | IO79: 14.15885012 | IP79: 2.049307254 | IQ79: 0.1200000072 | IR79: 0.08638445728 | IS79: 0.1897767457 | IT79: 1.1781
IB80: 2 | IC80: 14.34515078 | ID80: 2.235607913 | IE80: 0.1275 | IF80: 0.06974532426 | IG80: 0.1092824175 | IH80: 1.1934 | IN80: 2 | IO80: 14.34515078 | IP80: 2.235607913 | IQ80: 0.1200000072 | IR80: 0.08638445728 | IS80: 0.1903482125 | IT80: 1.1934
IB81: 2 | IC81: 14.53145144 | ID81: 2.421908573 | IE81: 0.1275 | IF81: 0.06974532426 | IG81: 0.1113001105 | IH81: 1.2087 | IN81: 2 | IO81: 14.53145144 | IP81: 2.421908573 | IQ81: 0.1200000072 | IR81: 0.08638445728 | IS81: 0.1905547487 | IT81: 1.2087
IB82: 2 | IC82: 14.7177521 | ID82: 2.608209232 | IE82: 0.1275 | IF82: 0.06974532426 | IG82: 0.1131619182 | IH82: 1.224 | IN82: 2 | IO82: 14.7177521 | IP82: 2.608209232 | IQ82: 0.1200000072 | IR82: 0.08638445728 | IS82: 0.190480677 | IT82: 1.224
IB83: 2 | IC83: 14.90405276 | ID83: 2.794509892 | IE83: 0.1275 | IF83: 0.06974532426 | IG83: 0.1148751668 | IH83: 1.2393 | IN83: 2 | IO83: 14.90405276 | IP83: 2.794509892 | IQ83: 0.1200000072 | IR83: 0.08638445728 | IS83: 0.1901911203 | IT83: 1.2393
IB84: 2 | IC84: 15.09035342 | ID84: 2.980810551 | IE84: 0.1275 | IF84: 0.06974532426 | IG84: 0.1164468659 | IH84: 1.2546 | IN84: 2 | IO84: 15.09035342 | IP84: 2.980810551 | IQ84: 0.1200000072 | IR84: 0.08638445728 | IS84: 0.1897363724 | IT84: 1.2546
IB85: 2 | IC85: 15.27665408 | ID85: 3.167111211 | IE85: 0.1275 | IF85: 0.06974532426 | IG85: 0.1178837215 | IH85: 1.2699 | IN85: 2 | IO85: 15.27665408 | IP85: 3.167111211 | IQ85: 0.1200000072 | IR85: 0.08638445728 | IS85: 0.1891552728 | IT85: 1.2699
IB86: 2 | IC86: 15.46295473 | ID86: 3.35341187 | IE86: 0.1275 | IF86: 0.06974532426 | IG86: 0.1191921494 | IH86: 1.2852 | IN86: 2 | IO86: 15.46295473 | IP86: 3.35341187 | IQ86: 0.1200000072 | IR86: 0.08638445728 | IS86: 0.1884778139 | IT86: 1.2852
IB87: 2 | IC87: 15.64925539 | ID87: 3.53971253 | IE87: 0.1275 | IF87: 0.06974532426 | IG87: 0.1203782871 | IH87: 1.3005 | IN87: 2 | IO87: 15.64925539 | IP87: 3.53971253 | IQ87: 0.1200000072 | IR87: 0.08638445728 | IS87: 0.1877271552 | IT87: 1.3005
IB88: 2 | IC88: 15.83555605 | ID88: 3.726013189 | IE88: 0.1275 | IF88: 0.06974532426 | IG88: 0.1214480057 | IH88: 1.3158 | IN88: 2 | IO88: 15.83555605 | IP88: 3.726013189 | IQ88: 0.1200000072 | IR88: 0.08638445728 | IS88: 0.1869211779 | IT88: 1.3158
IB89: 2 | IC89: 16.02185671 | ID89: 3.912313849 | IE89: 0.1275 | IF89: 0.06974532426 | IG89: 0.1224069212 | IH89: 1.3311 | IN89: 2 | IO89: 16.02185671 | IP89: 3.912313849 | IQ89: 0.1200000072 | IR89: 0.08638445728 | IS89: 0.1860736869 | IT89: 1.3311
IB90: 2 | IC90: 16.20815737 | ID90: 4.098614508 | IE90: 0.1275 | IF90: 0.06974532426 | IG90: 0.1232604056 | IH90: 1.3464 | IN90: 2 | IO90: 16.20815737 | IP90: 4.098614508 | IQ90: 0.1200000072 | IR90: 0.08638445728 | IS90: 0.1851953384 | IT90: 1.3464
IB91: 2 | IC91: 16.39445803 | ID91: 4.284915167 | IE91: 0.1275 | IF91: 0.06974532426 | IG91: 0.1240135969 | IH91: 1.3617 | IN91: 2 | IO91: 16.39445803 | IP91: 4.284915167 | IQ91: 0.1200000072 | IR91: 0.08638445728 | IS91: 0.1842943566 | IT91: 1.3617
IB92: 2 | IC92: 16.58075869 | ID92: 4.471215827 | IE92: 0.1275 | IF92: 0.06974532426 | IG92: 0.1246714091 | IH92: 1.377 | IN92: 2 | IO92: 16.58075869 | IP92: 4.471215827 | IQ92: 0.1200000072 | IR92: 0.08638445728 | IS92: 0.1833770874 | IT92: 1.377
IB93: 2 | IC93: 16.76705935 | ID93: 4.657516486 | IE93: 0.1275 | IF93: 0.06974532426 | IG93: 0.1252385419 | IH93: 1.3923 | IN93: 2 | IO93: 16.76705935 | IP93: 4.657516486 | IQ93: 0.1200000072 | IR93: 0.08638445728 | IS93: 0.1824484257 | IT93: 1.3923
IB94: 2 | IC94: 16.95336001 | ID94: 4.843817146 | IE94: 0.1275 | IF94: 0.06974532426 | IG94: 0.1257194897 | IH94: 1.4076 | IN94: 2 | IO94: 16.95336001 | IP94: 4.843817146 | IQ94: 0.1200000072 | IR94: 0.08638445728 | IS94: 0.1815121462 | IT94: 1.4076
IB95: 2 | IC95: 17.13966067 | ID95: 5.030117805 | IE95: 0.1275 | IF95: 0.06974532426 | IG95: 0.1261185503 | IH95: 1.4229 | IN95: 2 | IO95: 17.13966067 | IP95: 5.030117805 | IQ95: 0.1200000072 | IR95: 0.08638445728 | IS95: 0.1805711579 | IT95: 1.4229
IB96: 2 | IC96: 17.32596133 | ID96: 5.216418465 | IE96: 0.1275 | IF96: 0.06974532426 | IG96: 0.1264398334 | IH96: 1.4382 | IN96: 2 | IO96: 17.32596133 | IP96: 5.216418465 | IQ96: 0.1200000072 | IR96: 0.08638445728 | IS96: 0.1796277014 | IT96: 1.4382
IB97: 2 | IC97: 17.51226199 | ID97: 5.402719124 | IE97: 0.1275 | IF97: 0.06974532426 | IG97: 0.1266872683 | IH97: 1.4535 | IN97: 2 | IO97: 17.51226199 | IP97: 5.402719124 | IQ97: 0.1200000072 | IR97: 0.08638445728 | IS97: 0.178683501 | IT97: 1.4535
IB98: 2 | IC98: 17.69856265 | ID98: 5.589019784 | IE98: 0.1275 | IF98: 0.06974532426 | IG98: 0.1268646119 | IH98: 1.4688 | IN98: 2 | IO98: 17.69856265 | IP98: 5.589019784 | IQ98: 0.1200000072 | IR98: 0.08638445728 | IS98: 0.1777398825 | IT98: 1.4688
IB99: 2 | IC99: 17.88486331 | ID99: 5.775320443 | IE99: 0.1275 | IF99: 0.06974532426 | IG99: 0.1269754559 | IH99: 1.4841 | IN99: 2 | IO99: 17.88486331 | IP99: 5.775320443 | IQ99: 0.1200000072 | IR99: 0.08638445728 | IS99: 0.1767978633 | IT99: 1.4841
IB100: 2 | IC100: 18.07116397 | ID100: 5.961621102 | IE100: 0.1275 | IF100: 0.06974532426 | IG100: 0.1270232338 | IH100: 1.4994 | IN100: 2 | IO100: 18.07116397 | IP100: 5.961621102 | IQ100: 0.1200000072 | IR100: 0.08638445728 | IS100: 0.1758582236 | IT100: 1.4994
IB101: 2 | IC101: 18.25746463 | ID101: 6.147921762 | IE101: 0.1275 | IF101: 0.06974532426 | IG101: 0.1270112276 | IH101: 1.5147 | IN101: 2 | IO101: 18.25746463 | IP101: 6.147921762 | IQ101: 0.1200000072 | IR101: 0.08638445728 | IS101: 0.1749215594 | IT101: 1.5147
IB102: 2 | IC102: 18.44376529 | ID102: 6.334222421 | IE102: 0.1275 | IF102: 0.06974532426 | IG102: 0.1269425746 | IH102: 1.53 | IN102: 2 | IO102: 18.44376529 | IP102: 6.334222421 | IQ102: 0.1200000072 | IR102: 0.08638445728 | IS102: 0.1739883253 | IT102: 1.53
IB103: 2 | IC103: 18.63006595 | ID103: 6.520523081 | IE103: 0.1275 | IF103: 0.06974532426 | IG103: 0.1268202731 | IH103: 1.5453 | IN103: 2 | IO103: 18.63006595 | IP103: 6.520523081 | IQ103: 0.1200000072 | IR103: 0.08638445728 | IS103: 0.1730588661 | IT103: 1.5453
IB104: 2 | IC104: 18.8163666 | ID104: 6.70682374 | IE104: 0.1275 | IF104: 0.06974532426 | IG104: 0.1266471885 | IH104: 1.5606 | IN104: 2 | IO104: 18.8163666 | IP104: 6.70682374 | IQ104: 0.1200000072 | IR104: 0.08638445728 | IS104: 0.1721334422 | IT104: 1.5606
IB105: 2 | IC105: 19.00266726 | ID105: 6.8931244 | IE105: 0.1275 | IF105: 0.06974532426 | IG105: 0.1264260591 | IH105: 1.5759 | IN105: 2 | IO105: 19.00266726 | IP105: 6.8931244 | IQ105: 0.1200000072 | IR105: 0.08638445728 | IS105: 0.1712122487 | IT105: 1.5759
IB106: 2 | IC106: 19.18896792 | ID106: 7.079425059 | IE106: 0.1275 | IF106: 0.06974532426 | IG106: 0.1261595014 | IH106: 1.5912 | IN106: =TRUNC(IT106)+1 -> 2 | IO106: 19.18896792 | IP106: 7.079425059 | IQ106: 0.1200000072 | IR106: 0.08638445728 | IS106: 0.1702954303 | IT106: 1.5912
IB107: 2 | IC107: 19.37526858 | ID107: 7.265725719 | IE107: 0.1275 | IF107: 0.06974532426 | IG107: 0.1258500152 | IH107: 1.6065 | IN107: 2 | IO107: 19.37526858 | IP107: 7.265725719 | IQ107: 0.1200000072 | IR107: 0.08638445728 | IS107: 0.1693830929 | IT107: 1.6065
IB108: 2 | IC108: 19.56156924 | ID108: 7.452026378 | IE108: 0.1275 | IF108: 0.06974532426 | IG108: 0.125499989 | IH108: 1.6218 | IN108: 2 | IO108: 19.56156924 | IP108: 7.452026378 | IQ108: 0.1200000072 | IR108: 0.08638445728 | IS108: 0.1684753123 | IT108: 1.6218
IB109: 2 | IC109: 19.7478699 | ID109: 7.638327038 | IE109: 0.1275 | IF109: 0.06974532426 | IG109: 0.1251117042 | IH109: 1.6371 | IN109: 2 | IO109: 19.7478699 | IP109: 7.638327038 | IQ109: 0.1200000072 | IR109: 0.08638445728 | IS109: 0.1675721411 | IT109: 1.6371
IB110: 2 | IC110: 19.93417056 | ID110: 7.824627697 | IE110: 0.1275 | IF110: 0.06974532426 | IG110: 0.1246873401 | IH110: 1.6524 | IN110: 2 | IO110: 19.93417056 | IP110: 7.824627697 | IQ110: 0.1200000072 | IR110: 0.08638445728 | IS110: 0.1666736142 | IT110: 1.6524
IB111: 2 | IC111: 20.12047122 | ID111: 8.010928356 | IE111: 0.1275 | IF111: 0.06974532426 | IG111: 0.1242289779 | IH111: 1.6677 | IN111: 2 | IO111: 20.12047122 | IP111: 8.010928356 | IQ111: 0.1200000072 | IR111: 0.08638445728 | IS111: 0.1657797528 | IT111: 1.6677
IB112: 2 | IC112: 20.30677188 | ID112: 8.197229016 | IE112: 0.1275 | IF112: 0.06974532426 | IG112: 0.1237386053 | IH112: 1.683 | IN112: 2 | IO112: 20.30677188 | IP112: 8.197229016 | IQ112: 0.1200000072 | IR112: 0.08638445728 | IS112: 0.1648905674 | IT112: 1.683
IB113: 2 | IC113: 20.49307254 | ID113: 8.383529675 | IE113: 0.1275 | IF113: 0.06974532426 | IG113: 0.1232181203 | IH113: 1.6983 | IN113: 2 | IO113: 20.49307254 | IP113: 8.383529675 | IQ113: 0.1200000072 | IR113: 0.08638445728 | IS113: 0.1640060602 | IT113: 1.6983
IB114: 2 | IC114: 20.6793732 | ID114: 8.569830335 | IE114: 0.1275 | IF114: 0.06974532426 | IG114: 0.122669335 | IH114: 1.7136 | IN114: 2 | IO114: 20.6793732 | IP114: 8.569830335 | IQ114: 0.1200000072 | IR114: 0.08638445728 | IS114: 0.1631262275 | IT114: 1.7136
IB115: 2 | IC115: 20.86567386 | ID115: 8.756130994 | IE115: 0.1275 | IF115: 0.06974532426 | IG115: 0.1220939794 | IH115: 1.7289 | IN115: 2 | IO115: 20.86567386 | IP115: 8.756130994 | IQ115: 0.1200000072 | IR115: 0.08638445728 | IS115: 0.1622510604 | IT115: 1.7289
IB116: 2 | IC116: 21.05197452 | ID116: 8.942431654 | IE116: 0.1275 | IF116: 0.06974532426 | IG116: 0.1214937047 | IH116: 1.7442 | IN116: 2 | IO116: 21.05197452 | IP116: 8.942431654 | IQ116: 0.1200000072 | IR116: 0.08638445728 | IS116: 0.1613805467 | IT116: 1.7442
IB117: 2 | IC117: 21.23827518 | ID117: 9.128732313 | IE117: 0.1275 | IF117: 0.06974532426 | IG117: 0.1208700871 | IH117: 1.7595 | IN117: 2 | IO117: 21.23827518 | IP117: 9.128732313 | IQ117: 0.1200000072 | IR117: 0.08638445728 | IS117: 0.1605146711 | IT117: 1.7595
IB118: 2 | IC118: 21.42457584 | ID118: 9.315032973 | IE118: 0.1275 | IF118: 0.06974532426 | IG118: 0.1202246304 | IH118: 1.7748 | IN118: 2 | IO118: 21.42457584 | IP118: 9.315032973 | IQ118: 0.1200000072 | IR118: 0.08638445728 | IS118: 0.1596534163 | IT118: 1.7748
IB119: 2 | IC119: 21.6108765 | ID119: 9.501333632 | IE119: 0.1275 | IF119: 0.06974532426 | IG119: 0.1195587699 | IH119: 1.7901 | IN119: 2 | IO119: 21.6108765 | IP119: 9.501333632 | IQ119: 0.1200000072 | IR119: 0.08638445728 | IS119: 0.1587967633 | IT119: 1.7901
IB120: 2 | IC120: 21.79717716 | ID120: 9.687634292 | IE120: 0.1275 | IF120: 0.06974532426 | IG120: 0.1188738746 | IH120: 1.8054 | IN120: 2 | IO120: 21.79717716 | IP120: 9.687634292 | IQ120: 0.1200000072 | IR120: 0.08638445728 | IS120: 0.1579446919 | IT120: 1.8054
IB121: 2 | IC121: 21.98347782 | ID121: 9.873934951 | IE121: 0.1275 | IF121: 0.06974532426 | IG121: 0.1181712505 | IH121: 1.8207 | IN121: 2 | IO121: 21.98347782 | IP121: 9.873934951 | IQ121: 0.1200000072 | IR121: 0.08638445728 | IS121: 0.157097181 | IT121: 1.8207
IB122: 2 | IC122: 22.16977847 | ID122: 10.06023561 | IE122: 0.1275 | IF122: 0.06974532426 | IG122: 0.1174521431 | IH122: 1.836 | IN122: 2 | IO122: 22.16977847 | IP122: 10.06023561 | IQ122: 0.1200000072 | IR122: 0.08638445728 | IS122: 0.1562542089 | IT122: 1.836
IB123: 2 | IC123: 22.35607913 | ID123: 10.24653627 | IE123: 0.1275 | IF123: 0.06974532426 | IG123: 0.1167177402 | IH123: 1.8513 | IN123: 2 | IO123: 22.35607913 | IP123: 10.24653627 | IQ123: 0.1200000072 | IR123: 0.08638445728 | IS123: 0.1554157532 | IT123: 1.8513
IB124: 2 | IC124: 22.54237979 | ID124: 10.43283693 | IE124: 0.1275 | IF124: 0.06974532426 | IG124: 0.1159691741 | IH124: 1.8666 | IN124: 2 | IO124: 22.54237979 | IP124: 10.43283693 | IQ124: 0.1200000072 | IR124: 0.08638445728 | IS124: 0.1545817914 | IT124: 1.8666
IB125: 2 | IC125: 22.72868045 | ID125: 10.61913759 | IE125: 0.1275 | IF125: 0.06974532426 | IG125: 0.1152075245 | IH125: 1.8819 | IN125: 2 | IO125: 22.72868045 | IP125: 10.61913759 | IQ125: 0.1200000072 | IR125: 0.08638445728 | IS125: 0.1537523005 | IT125: 1.8819
... 156 more rows

Sheet BDK_IV_CD (hidden)
L2: i.v. Multiple Doses | M2: (First order kinetics) | IR2: hedeflenen fraksiyon | IS2: 0.999 | IT2: Toplam Süre | IU2: =CEILING(MAX(IS3*C14,C23*IS4),2) -> 240
IR3: Birinci durumun n'I | IS3: =-LN(1-IS2)/(C14*F14) -> 19.93156857 | IT3: Step | IU3: =IU2/1000 -> 0.24
IR4: ikinci durumun n'I | IS4: =-LN(1-IS2)/(C23*F23) -> 9.965784285
IT5: t | IU5: C1 | IV5: C2
IT6: 0 | IU6: =$C$15/$C$16 -> 1 | IV6: =$C$24/$C$25 -> 1
IT7: =IT6+$IU$3 -> 0.24 | IU7: =IF(MOD(IT7,$C$14)<MOD(IT6,$C$14),($C$15/$C$16+IU6)*EXP(-$F$14*$IU$3),IU6*EXP(-$F$14*$IU$3)) -> 0.9930924954 | IV7: =IF(MOD(IT7,$C$23)<MOD(IT6,$C$23),($C$24/$C$25+IV6)*EXP(-$F$23*$IU$3),IV6*EXP(-$F$23*$IU$3)) -> 0.9862327045
IT8: =IT7+$IU$3 -> 0.48 | IU8: 0.9862327045 | IV8: 0.9726549474
IT9: 0.72 | IU9: 0.9794202976 | IV9: 0.9592641193
IT10: 0.96 | IU10: 0.9726549474 | IV10: 0.9460576467
IT11: 1.2 | IU11: 0.9659363289 | IV11: 0.9330329915
IT12: 1.44 | IU12: 0.9592641193 | IV12: 0.9201876506
B13: Case 1 | IT13: 1.68 | IU13: 0.952637998 | IV13: 0.9075191553
B14: Interval | C14: 12 | D14: hours | E14: kelim | F14: =LN(2)/C17 -> 0.02888113252 | G14: h-1 | IT14: 1.92 | IU14: 0.9460576467 | IV14: 0.8950250709
B15: Dose | C15: 50 | D15: mg | E15: CL | F15: =F14*C16 -> 1.444056626 | G15: l/h | IT15: 2.16 | IU15: 0.9395227492 | IV15: 0.8827029963
B16: Vd | C16: 50 | D16: l | E16: Cmin | F16: =C15*(EXP(-C14*F14)/(1-EXP(-C14*F14)))/C16 -> 2.414213562 | G16: mg/ml | IT16: 2.4 | IU16: 0.9330329915 | IV16: 0.8705505633
B17: t1/2 | C17: 24 | D17: hours | E17: Cmax | F17: =F16+C15/C16 -> 3.414213562 | G17: mg/ml | IT17: 2.64 | IU17: 0.9265880619 | IV17: 0.8585654364
IT18: 2.88 | IU18: 0.9201876506 | IV18: 0.8467453124
IT19: 3.12 | IU19: 0.9138314502 | IV19: 0.8350879194
IT20: 3.36 | IU20: 0.9075191553 | IV20: 0.8235910173
IT21: 3.6 | IU21: 0.9012504626 | IV21: 0.8122523964
B22: Case 2 | IT22: 3.84 | IU22: 0.8950250709 | IV22: 0.8010698776
B23: Interval | C23: 12 | D23: hours | E23: kelim | F23: =LN(2)/C26 -> 0.05776226505 | G23: h-1 | IT23: 4.08 | IU23: 0.8888426812 | IV23: 0.7900413119
B24: Dose | C24: 50 | D24: mg | E24: CL | F24: =F23*C25 -> 2.888113252 | G24: l/h | IT24: 4.32 | IU24: 0.8827029963 | IV24: 0.7791645797
B25: Vd | C25: 50 | D25: l | E25: Cmin | F25: =C24*(EXP(-C23*F23)/(1-EXP(-C23*F23)))/C25 -> 1 | G25: mg/ml | IT25: 4.56 | IU25: 0.8766057213 | IV25: 0.7684375906
B26: t1/2 | C26: 12 | D26: hours | E26: Cmax | F26: =C24*(EXP(-C23*F23)/(1-EXP(-C23*F23)))/C25+C24/C25 -> 2 | G26: mg/ml | IT26: 4.8 | IU26: 0.8705505633 | IV26: 0.7578582833
IT27: 5.04 | IU27: 0.8645372313 | IV27: 0.7474246243
IT28: 5.28 | IU28: 0.8585654364 | IV28: 0.7371346086
IT29: 5.52 | IU29: 0.8526348918 | IV29: 0.7269862587
IT30: 5.76 | IU30: 0.8467453124 | IV30: 0.716977624
IT31: 6 | IU31: 0.8408964153 | IV31: 0.7071067812
IT32: 6.24 | IU32: 0.8350879194 | IV32: 0.6973718332
IT33: 6.48 | IU33: 0.8293195458 | IV33: 0.6877709091
IT34: 6.72 | IU34: 0.8235910173 | IV34: 0.6783021637
IT35: 6.96 | IU35: 0.8179020586 | IV35: 0.6689637774
IT36: 7.2 | IU36: 0.8122523964 | IV36: 0.6597539554
IT37: 7.44 | IU37: 0.8066417592 | IV37: 0.6506709277
IT38: 7.68 | IU38: 0.8010698776 | IV38: 0.6417129488
IT39: 7.92 | IU39: 0.7955364838 | IV39: 0.632878297
IT40: 8.16 | IU40: 0.7900413119 | IV40: 0.6241652745
IT41: 8.4 | IU41: 0.7845840979 | IV41: 0.6155722067
IT42: 8.64 | IU42: 0.7791645797 | IV42: 0.6070974422
IT43: 8.88 | IU43: 0.7737824968 | IV43: 0.5987393523
IT44: 9.12 | IU44: 0.7684375906 | IV44: 0.5904963307
IT45: 9.36 | IU45: 0.7631296045 | IV45: 0.5823667932
IT46: 9.6 | IU46: 0.7578582833 | IV46: 0.5743491775
IT47: 9.84 | IU47: 0.7526233737 | IV47: 0.5664419426
IT48: 10.08 | IU48: 0.7474246243 | IV48: 0.558643569
IT49: 10.32 | IU49: 0.7422617853 | IV49: 0.5509525579
IT50: 10.56 | IU50: 0.7371346086 | IV50: 0.5433674313
IT51: 10.8 | IU51: 0.732042848 | IV51: 0.5358867313
IT52: 11.04 | IU52: 0.7269862587 | IV52: 0.5285090203
IT53: 11.28 | IU53: 0.7219645978 | IV53: 0.5212328804
IT54: 11.52 | IU54: 0.716977624 | IV54: 0.5140569133
IT55: 11.76 | IU55: 0.7120250978 | IV55: 0.5069797399
IT56: 12 | IU56: 1.700199277 | IV56: 1.486232704
IT57: 12.24 | IU57: 1.688455142 | IV57: 1.4657713
IT58: 12.48 | IU58: 1.676792131 | IV58: 1.445591593
IT59: 12.72 | IU59: 1.665209681 | IV59: 1.425689706
IT60: 12.96 | IU60: 1.653707238 | IV60: 1.406061815
IT61: 13.2 | IU61: 1.642284248 | IV61: 1.386704146
IT62: 13.44 | IU62: 1.630940162 | IV62: 1.367612981
IT63: 13.68 | IU63: 1.619674435 | IV63: 1.348784649
IT64: 13.92 | IU64: 1.608486527 | IV64: 1.330215532
IT65: 14.16 | IU65: 1.597375899 | IV65: 1.311902061
IT66: 14.4 | IU66: 1.586342017 | IV66: 1.293840718
IT67: 14.64 | IU67: 1.575384353 | IV67: 1.276028031
IT68: 14.88 | IU68: 1.564502378 | IV68: 1.258460576
IT69: 15.12 | IU69: 1.553695571 | IV69: 1.241134977
IT70: 15.36 | IU70: 1.542963411 | IV70: 1.224047905
IT71: 15.6 | IU71: =IF(MOD(IT71,$C$14)<MOD(IT70,$C$14),($C$15/$C$16+IU70)*EXP(-$F$14*$IU$3),IU70*EXP(-$F$14*$IU$3)) -> 1.532305385 | IV71: =IF(MOD(IT71,$C$23)<MOD(IT70,$C$23),($C$24/$C$25+IV70)*EXP(-$F$23*$IU$3),IV70*EXP(-$F$23*$IU$3)) -> 1.207196076
IT72: =IT71+$IU$3 -> 15.84 | IU72: 1.521720978 | IV72: 1.190576251
IT73: 16.08 | IU73: 1.511209684 | IV73: 1.174185236
IT74: 16.32 | IU74: 1.500770996 | IV74: 1.15801988
IT75: 16.56 | IU75: 1.490404413 | IV75: 1.142077079
IT76: 16.8 | IU76: 1.480109438 | IV76: 1.126353766
IT77: 17.04 | IU77: 1.469885575 | IV77: 1.110846921
IT78: 17.28 | IU78: 1.459732334 | IV78: 1.095553563
IT79: 17.52 | IU79: 1.449649226 | IV79: 1.080470753
IT80: 17.76 | IU80: 1.439635768 | IV80: 1.065595593
IT81: 18 | IU81: 1.429691477 | IV81: 1.050925224
IT82: 18.24 | IU82: 1.419815877 | IV82: 1.036456826
IT83: 18.48 | IU83: 1.410008492 | IV83: 1.022187618
IT84: 18.72 | IU84: 1.400268852 | IV84: 1.008114859
IT85: 18.96 | IU85: 1.390596488 | IV85: 0.9942358441
IT86: 19.2 | IU86: 1.380990937 | IV86: 0.9805479054
IT87: 19.44 | IU87: 1.371451736 | IV87: 0.9670484126
IT88: 19.68 | IU88: 1.361978426 | IV88: 0.9537347714
IT89: 19.92 | IU89: 1.352570554 | IV89: 0.9406044229
IT90: 20.16 | IU90: 1.343227667 | IV90: 0.9276548439
IT91: 20.4 | IU91: 1.333949316 | IV91: 0.9148835455
IT92: 20.64 | IU92: 1.324735055 | IV92: 0.9022880734
IT93: 20.88 | IU93: 1.315584441 | IV93: 0.8898660069
IT94: 21.12 | IU94: 1.306497036 | IV94: 0.8776149586
IT95: 21.36 | IU95: 1.297472402 | IV95: 0.8655325741
IT96: 21.6 | IU96: 1.288510105 | IV96: 0.8536165314
IT97: 21.84 | IU97: 1.279609716 | IV97: 0.8418645404
IT98: 22.08 | IU98: 1.270770806 | IV98: 0.8302743425
IT99: 22.32 | IU99: 1.26199295 | IV99: 0.8188437102
IT100: 22.56 | IU100: 1.253275728 | IV100: 0.8075704469
IT101: 22.8 | IU101: 1.244618721 | IV101: 0.7964523859
IT102: 23.04 | IU102: 1.236021511 | IV102: 0.7854873906
IT103: 23.28 | IU103: 1.227483687 | IV103: 0.7746733535
IT104: 23.52 | IU104: 1.219004838 | IV104: 0.7640081966
IT105: 23.76 | IU105: 1.210584556 | IV105: 0.7534898699
IT106: 24 | IU106: 1.202222438 | IV106: 0.7431163522
IT107: 24.24 | IU107: 2.187010576 | IV107: 1.719118354
IT108: 24.48 | IU108: 2.171903791 | IV108: 1.695450744
IT109: 24.72 | IU109: 2.156901355 | IV109: 1.672108973
IT110: 24.96 | IU110: 2.142002549 | IV110: 1.649088554
IT111: 25.2 | IU111: 2.127206657 | IV111: 1.626385065
IT112: 25.44 | IU112: 2.112512967 | IV112: 1.603994141
IT113: 25.68 | IU113: 2.097920774 | IV113: 1.58191148
IT114: 25.92 | IU114: 2.083429377 | IV114: 1.560132837
IT115: 26.16 | IU115: 2.069038079 | IV115: 1.538654027
IT116: 26.4 | IU116: 2.054746189 | IV116: 1.517470922
IT117: 26.64 | IU117: 2.040553021 | IV117: 1.496579452
IT118: 26.88 | IU118: 2.026457891 | IV118: 1.4759756
IT119: 27.12 | IU119: 2.012460124 | IV119: 1.455655408
IT120: 27.36 | IU120: 1.998559047 | IV120: 1.43561497
IT121: 27.6 | IU121: 1.984753991 | IV121: 1.415850434
IT122: 27.84 | IU122: 1.971044294 | IV122: 1.396358003
IT123: 28.08 | IU123: 1.957429296 | IV123: 1.37713393
IT124: 28.32 | IU124: 1.943908344 | IV124: 1.35817452
IT125: 28.56 | IU125: 1.930480789 | IV125: 1.33947613
... 156 more rows

Sheet BDK_IV_DI (hidden)
N1: i.v. Infusion, variable rate | O1: (First order kinetics) | II1: =MAX(IU5:IU1005)*0.05 -> 0.01000879508 | IT1: =COUNT(IT5:IT1095) -> 1091 | IU1: toplam süre | IV1: =MAX(E15:E26) -> 400
IH2: =IF(ISNUMBER(D15),IK2,"") -> 0 | II2: =IF(ISNUMBER(IH2),0,"") -> 0 | IK2: =IF(ISNUMBER(D15),D15,"") -> 0 | IL2: =IF(ISNUMBER(D15),C15,"") -> 1 | IM2: =IF(ISNUMBER(D15),F15,"") -> 0.2003743112 | IU2: Step | IV2: =IV1/2000 -> 0.2
IH3: =IF(ISNUMBER(D15),IK2,) -> 0 | II3: =IF(ISNUMBER(IH3),$II$1,"") -> 0.01000879508 | IK3: 100 | IL3: 0.5 | IM3: 0.1001871556
IK4: 200 | IL4: 1.5 | IM4: 0.3005614669 | IP4: t | IQ4: ıh | IT4: t | IU4: C1
IH5: =IF(ISNUMBER(D16),IK3,) -> 100 | II5: =IF(ISNUMBER(IH5),0,"") -> 0 | IK5: 300 | IL5: 0 | IM5: 0 | IP5: 0 | IQ5: =VLOOKUP(IT5,$IK$2:$IM$25,2,1) -> 1 | IR5: =VLOOKUP(IT5,$IK$2:$IM$31,3,1) -> 0.2003743112 | IS5: 0 | IT5: 0 | IU5: =IR5*(1-EXP(-IP5*$F$8))+IS5*EXP(-IP5*$F$8) -> 0
IH6: =IF(ISNUMBER(D16),IK3,) -> 100 | II6: =IF(ISNUMBER(IH6),$II$1,"") -> 0.01000879508 | IP6: =IF(IQ6=IQ5,IP5+$IV$2,0) -> 0.2 | IQ6: =VLOOKUP(IT6,$IK$2:$IM$25,2,1) -> 1 | IR6: =VLOOKUP(IT6,$IK$2:$IM$31,3,1) -> 0.2003743112 | IS6: =IF(IQ6=IQ5,IS5,IU5) -> 0 | IT6: =IT5+$IV$2 -> 0.2 | IU6: 0.002758612355
IP7: =IF(IQ7=IQ6,IP6+$IV$2,0) -> 0.4 | IQ7: =VLOOKUP(IT7,$IK$2:$IM$25,2,1) -> 1 | IR7: 0.2003743112 | IS7: =IF(IQ7=IQ6,IS6,IU6) -> 0 | IT7: =IT6+$IV$2 -> 0.4 | IU7: 0.005479246078
B8: Vd | C8: 72 | D8: l | E8: kelim | F8: =LN(2)/C9 -> 0.06931471806 | G8: h-1 | IH8: =IF(ISNUMBER(D17),IK4,) -> 200 | II8: =IF(ISNUMBER(IH8),0,"") -> 0 | IP8: 0.6 | IQ8: 1 | IR8: 0.2003743112 | IS8: 0 | IT8: 0.6 | IU8: 0.008162424033
B9: t1/2 | C9: 10 | D9: hours | E9: CL | F9: =F8*C8 -> 4.9906597 | G9: l/h | IH9: =IF(ISNUMBER(D17),IK4,) -> 200 | II9: =IF(ISNUMBER(IH9),$II$1,"") -> 0.01000879508 | IP9: 0.8 | IQ9: 1 | IR9: 0.2003743112 | IS9: 0 | IT9: 0.8 | IU9: 0.01080866188
IP10: 1 | IQ10: 1 | IR10: 0.2003743112 | IS10: 0 | IT10: 1 | IU10: 0.0134184682
IH11: =IF(ISNUMBER(D18),IK5,) -> 300 | II11: =IF(ISNUMBER(IH11),0,"") -> 0 | IP11: 1.2 | IQ11: 1 | IR11: 0.2003743112 | IS11: 0 | IT11: 1.2 | IU11: 0.01599234453
IH12: =IF(ISNUMBER(D18),IK5,) -> 300 | II12: =IF(ISNUMBER(IH12),$II$1,"") -> 0.01000879508 | IP12: 1.4 | IQ12: 1 | IR12: 0.2003743112 | IS12: 0 | IT12: 1.4 | IU12: 0.01853078556
B13: Infusion Protocol | IP13: 1.6 | IQ13: 1 | IR13: 0.2003743112 | IS13: 0 | IT13: 1.6 | IU13: 0.02103427911
B14: Duration hours | C14: Infusion rate mg/h | D14: Start time hours | E14: End time saat | F14: Css mg/ml | IH14: =IF(ISNUMBER(D19),IK6,) -> 0 | II14: =IF(ISNUMBER(IH14),0,"") -> 0 | IP14: 1.8 | IQ14: 1 | IR14: 0.2003743112 | IS14: 0 | IT14: 1.8 | IU14: 0.02350330633
B15: 100 | C15: 1 | D15: 0 | E15: =B15+D15 -> 100 | F15: =IF(ISNUMBER(B15),C15/($C$8*$F$8),"") -> 0.2003743112 | IH15: =IF(ISNUMBER(D19),IK6,) -> 0 | II15: =IF(ISNUMBER(IH15),$II$1,"") -> 0.01000879508 | IP15: 2 | IQ15: 1 | IR15: 0.2003743112 | IS15: 0 | IT15: 2 | IU15: 0.02593834172
B16: 100 | C16: 0.5 | D16: =IF(ISNUMBER(B16),E15,"") -> 100 | E16: =IF(ISNUMBER(D16),D16+B16,"") -> 200 | F16: 0.1001871556 | IP16: 2.2 | IQ16: 1 | IR16: 0.2003743112 | IS16: 0 | IT16: 2.2 | IU16: 0.02833985326
B17: 100 | C17: 1.5 | D17: =IF(ISNUMBER(B17),E16,"") -> 200 | E17: =IF(ISNUMBER(D17),D17+B17,"") -> 300 | F17: 0.3005614669 | IH17: =IF(ISNUMBER(D20),IK7,) -> 0 | II17: =IF(ISNUMBER(IH17),0,"") -> 0 | IP17: 2.4 | IQ17: 1 | IR17: 0.2003743112 | IS17: 0 | IT17: 2.4 | IU17: 0.03070830248
B18: 100 | C18: 0 | D18: 300 | E18: 400 | F18: 0 | IH18: =IF(ISNUMBER(D20),IK7,) -> 0 | II18: =IF(ISNUMBER(IH18),$II$1,"") -> 0.01000879508 | IP18: 2.6 | IQ18: 1 | IR18: 0.2003743112 | IS18: 0 | IT18: 2.6 | IU18: 0.03304414456
IP19: 2.8 | IQ19: 1 | IR19: 0.2003743112 | IS19: 0 | IT19: 2.8 | IU19: 0.03534782841
IH20: =IF(ISNUMBER(D21),IK8,) -> 0 | II20: =IF(ISNUMBER(IH20),0,"") -> 0 | IP20: 3 | IQ20: 1 | IR20: 0.2003743112 | IS20: 0 | IT20: 3 | IU20: 0.03761979677
IH21: =IF(ISNUMBER(D21),IK8,) -> 0 | II21: =IF(ISNUMBER(IH21),$II$1,"") -> 0.01000879508 | IP21: 3.2 | IQ21: 1 | IR21: 0.2003743112 | IS21: 0 | IT21: 3.2 | IU21: 0.03986048626
IP22: 3.4 | IQ22: 1 | IR22: 0.2003743112 | IS22: 0 | IT22: 3.4 | IU22: 0.04207032752
IH23: =IF(ISNUMBER(D22),IK9,) -> 0 | II23: =IF(ISNUMBER(IH23),0,"") -> 0 | IP23: 3.6 | IQ23: 1 | IR23: 0.2003743112 | IS23: 0 | IT23: 3.6 | IU23: 0.04424974525
IH24: =IF(ISNUMBER(D22),IK9,) -> 0 | II24: =IF(ISNUMBER(IH24),$II$1,"") -> 0.01000879508 | IP24: 3.8 | IQ24: 1 | IR24: 0.2003743112 | IS24: 0 | IT24: 3.8 | IU24: 0.04639915828
IP25: 4 | IQ25: 1 | IR25: 0.2003743112 | IS25: 0 | IT25: 4 | IU25: 0.04851897971
IH26: =IF(ISNUMBER(D23),IK10,) -> 0 | II26: =IF(ISNUMBER(IH26),0,"") -> 0 | IP26: 4.2 | IQ26: 1 | IR26: 0.2003743112 | IS26: 0 | IT26: 4.2 | IU26: 0.05060961694
B27: Type new (contigous) lines to enlarge the protocol | IH27: =IF(ISNUMBER(D23),IK10,) -> 0 | II27: =IF(ISNUMBER(IH27),$II$1,"") -> 0.01000879508 | IP27: 4.4 | IQ27: 1 | IR27: 0.2003743112 | IS27: 0 | IT27: 4.4 | IU27: 0.05267147174
IP28: 4.6 | IQ28: 1 | IR28: 0.2003743112 | IS28: 0 | IT28: 4.6 | IU28: 0.05470494038
IH29: =IF(ISNUMBER(D24),IK11,) -> 0 | II29: =IF(ISNUMBER(IH29),0,"") -> 0 | IP29: 4.8 | IQ29: 1 | IR29: 0.2003743112 | IS29: 0 | IT29: 4.8 | IU29: 0.05671041365
IH30: =IF(ISNUMBER(D24),IK11,) -> 0 | II30: =IF(ISNUMBER(IH30),$II$1,"") -> 0.01000879508 | IP30: 5 | IQ30: 1 | IR30: 0.2003743112 | IS30: 0 | IT30: 5 | IU30: 0.05868827699
IP31: 5.2 | IQ31: 1 | IR31: 0.2003743112 | IS31: 0 | IT31: 5.2 | IU31: 0.06063891049
IH32: =IF(ISNUMBER(D25),IK12,) -> 0 | II32: =IF(ISNUMBER(IH32),0,"") -> 0 | IP32: 5.4 | IQ32: 1 | IR32: 0.2003743112 | IS32: 0 | IT32: 5.4 | IU32: 0.06256268904
IH33: =IF(ISNUMBER(D25),IK12,) -> 0 | II33: =IF(ISNUMBER(IH33),$II$1,"") -> 0.01000879508 | IP33: 5.6 | IQ33: 1 | IR33: 0.2003743112 | IS33: 0 | IT33: 5.6 | IU33: 0.06445998237
IP34: 5.8 | IQ34: 1 | IR34: 0.2003743112 | IS34: 0 | IT34: 5.8 | IU34: 0.0663311551
IH35: =IF(ISNUMBER(D26),IK13,) -> 0 | II35: =IF(ISNUMBER(IH35),0,"") -> 0 | IP35: 6 | IQ35: 1 | IR35: 0.2003743112 | IS35: 0 | IT35: 6 | IU35: 0.06817656684
IH36: =IF(ISNUMBER(D26),IK13,) -> 0 | II36: =IF(ISNUMBER(IH36),$II$1,"") -> 0.01000879508 | IP36: 6.2 | IQ36: 1 | IR36: 0.2003743112 | IS36: 0 | IT36: 6.2 | IU36: 0.06999657225
IP37: 6.4 | IQ37: 1 | IR37: 0.2003743112 | IS37: 0 | IT37: 6.4 | IU37: 0.07179152111
IP38: 6.6 | IQ38: 1 | IR38: 0.2003743112 | IS38: 0 | IT38: 6.6 | IU38: 0.07356175838
IP39: 6.8 | IQ39: 1 | IR39: 0.2003743112 | IS39: 0 | IT39: 6.8 | IU39: 0.07530762427
IP40: 7 | IQ40: 1 | IR40: 0.2003743112 | IS40: 0 | IT40: 7 | IU40: 0.07702945431
IP41: 7.2 | IQ41: 1 | IR41: 0.2003743112 | IS41: 0 | IT41: 7.2 | IU41: 0.0787275794
IP42: 7.4 | IQ42: 1 | IR42: 0.2003743112 | IS42: 0 | IT42: 7.4 | IU42: 0.08040232591
IP43: 7.6 | IQ43: 1 | IR43: 0.2003743112 | IS43: 0 | IT43: 7.6 | IU43: 0.08205401568
IP44: 7.8 | IQ44: 1 | IR44: 0.2003743112 | IS44: 0 | IT44: 7.8 | IU44: 0.08368296615
IP45: 8 | IQ45: 1 | IR45: 0.2003743112 | IS45: 0 | IT45: 8 | IU45: 0.08528949039
IP46: 8.2 | IQ46: 1 | IR46: 0.2003743112 | IS46: 0 | IT46: 8.2 | IU46: 0.08687389712
IP47: 8.4 | IQ47: 1 | IR47: 0.2003743112 | IS47: 0 | IT47: 8.4 | IU47: 0.08843649086
IP48: 8.6 | IQ48: 1 | IR48: 0.2003743112 | IS48: 0 | IT48: 8.6 | IU48: 0.08997757191
IP49: 8.8 | IQ49: 1 | IR49: 0.2003743112 | IS49: 0 | IT49: 8.8 | IU49: 0.09149743645
IP50: 9 | IQ50: 1 | IR50: 0.2003743112 | IS50: 0 | IT50: 9 | IU50: 0.09299637656
IP51: 9.2 | IQ51: 1 | IR51: 0.2003743112 | IS51: 0 | IT51: 9.2 | IU51: 0.09447468031
IP52: 9.4 | IQ52: 1 | IR52: 0.2003743112 | IS52: 0 | IT52: 9.4 | IU52: 0.09593263183
IP53: 9.6 | IQ53: 1 | IR53: 0.2003743112 | IS53: 0 | IT53: 9.6 | IU53: 0.09737051129
IP54: 9.8 | IQ54: 1 | IR54: 0.2003743112 | IS54: 0 | IT54: 9.8 | IU54: 0.09878859504
IP55: 10 | IQ55: 1 | IR55: 0.2003743112 | IS55: 0 | IT55: 10 | IU55: 0.1001871556
IP56: 10.2 | IQ56: 1 | IR56: 0.2003743112 | IS56: 0 | IT56: 10.2 | IU56: 0.1015664618
IP57: 10.4 | IQ57: 1 | IR57: 0.2003743112 | IS57: 0 | IT57: 10.4 | IU57: 0.1029267787
IP58: 10.6 | IQ58: 1 | IR58: 0.2003743112 | IS58: 0 | IT58: 10.6 | IU58: 0.1042683676
IP59: 10.8 | IQ59: 1 | IR59: 0.2003743112 | IS59: 0 | IT59: 10.8 | IU59: 0.1055914866
IP60: 11 | IQ60: 1 | IR60: 0.2003743112 | IS60: 0 | IT60: 11 | IU60: 0.1068963897
IP61: 11.2 | IQ61: 1 | IR61: 0.2003743112 | IS61: 0 | IT61: 11.2 | IU61: 0.1081833279
IP62: 11.4 | IQ62: 1 | IR62: 0.2003743112 | IS62: 0 | IT62: 11.4 | IU62: 0.1094525484
IP63: 11.6 | IQ63: 1 | IR63: 0.2003743112 | IS63: 0 | IT63: 11.6 | IU63: 0.1107042952
IP64: 11.8 | IQ64: 1 | IR64: 0.2003743112 | IS64: 0 | IT64: 11.8 | IU64: 0.1119388088
IP65: 12 | IQ65: 1 | IR65: 0.2003743112 | IS65: 0 | IT65: 12 | IU65: 0.1131563265
IP66: 12.2 | IQ66: 1 | IR66: 0.2003743112 | IS66: 0 | IT66: 12.2 | IU66: 0.1143570822
IP67: 12.4 | IQ67: 1 | IR67: 0.2003743112 | IS67: 0 | IT67: 12.4 | IU67: 0.1155413069
IP68: 12.6 | IQ68: 1 | IR68: 0.2003743112 | IS68: 0 | IT68: 12.6 | IU68: 0.1167092279
IP69: 12.8 | IQ69: 1 | IR69: 0.2003743112 | IS69: 0 | IT69: 12.8 | IU69: =IR69*(1-EXP(-IP69*$F$8))+IS69*EXP(-IP69*$F$8) -> 0.1178610698
IP70: 13 | IQ70: 1 | IR70: =VLOOKUP(IT70,$IK$2:$IM$31,3,1) -> 0.2003743112 | IS70: 0 | IT70: 13 | IU70: 0.118997054
IP71: =IF(IQ71=IQ70,IP70+$IV$2,0) -> 13.2 | IQ71: =VLOOKUP(IT71,$IK$2:$IM$25,2,1) -> 1 | IR71: 0.2003743112 | IS71: =IF(IQ71=IQ70,IS70,IU70) -> 0 | IT71: =IT70+$IV$2 -> 13.2 | IU71: 0.1201173987
IP72: 13.4 | IQ72: 1 | IR72: 0.2003743112 | IS72: 0 | IT72: 13.4 | IU72: 0.1212223194
IP73: 13.6 | IQ73: 1 | IR73: 0.2003743112 | IS73: 0 | IT73: 13.6 | IU73: 0.1223120282
IP74: 13.8 | IQ74: 1 | IR74: 0.2003743112 | IS74: 0 | IT74: 13.8 | IU74: 0.1233867348
IP75: 14 | IQ75: 1 | IR75: 0.2003743112 | IS75: 0 | IT75: 14 | IU75: 0.1244466455
IP76: 14.2 | IQ76: 1 | IR76: 0.2003743112 | IS76: 0 | IT76: 14.2 | IU76: 0.1254919641
IP77: 14.4 | IQ77: 1 | IR77: 0.2003743112 | IS77: 0 | IT77: 14.4 | IU77: 0.1265228915
IP78: 14.6 | IQ78: 1 | IR78: 0.2003743112 | IS78: 0 | IT78: 14.6 | IU78: 0.1275396258
IP79: 14.8 | IQ79: 1 | IR79: 0.2003743112 | IS79: 0 | IT79: 14.8 | IU79: 0.1285423624
IP80: 15 | IQ80: 1 | IR80: 0.2003743112 | IS80: 0 | IT80: 15 | IU80: 0.1295312941
IP81: 15.2 | IQ81: 1 | IR81: 0.2003743112 | IS81: 0 | IT81: 15.2 | IU81: 0.1305066109
IP82: 15.4 | IQ82: 1 | IR82: 0.2003743112 | IS82: 0 | IT82: 15.4 | IU82: 0.1314685001
IP83: 15.6 | IQ83: 1 | IR83: 0.2003743112 | IS83: 0 | IT83: 15.6 | IU83: 0.1324171468
IP84: 15.8 | IQ84: 1 | IR84: 0.2003743112 | IS84: 0 | IT84: 15.8 | IU84: 0.1333527332
IP85: 16 | IQ85: 1 | IR85: 0.2003743112 | IS85: 0 | IT85: 16 | IU85: 0.134275439
IP86: 16.2 | IQ86: 1 | IR86: 0.2003743112 | IS86: 0 | IT86: 16.2 | IU86: 0.1351854417
IP87: 16.4 | IQ87: 1 | IR87: 0.2003743112 | IS87: 0 | IT87: 16.4 | IU87: 0.1360829162
IP88: 16.6 | IQ88: 1 | IR88: 0.2003743112 | IS88: 0 | IT88: 16.6 | IU88: 0.1369680348
IP89: 16.8 | IQ89: 1 | IR89: 0.2003743112 | IS89: 0 | IT89: 16.8 | IU89: 0.1378409678
IP90: 17 | IQ90: 1 | IR90: 0.2003743112 | IS90: 0 | IT90: 17 | IU90: 0.1387018828
IP91: 17.2 | IQ91: 1 | IR91: 0.2003743112 | IS91: 0 | IT91: 17.2 | IU91: 0.1395509453
IP92: 17.4 | IQ92: 1 | IR92: 0.2003743112 | IS92: 0 | IT92: 17.4 | IU92: 0.1403883186
IP93: 17.6 | IQ93: 1 | IR93: 0.2003743112 | IS93: 0 | IT93: 17.6 | IU93: 0.1412141635
IP94: 17.8 | IQ94: 1 | IR94: 0.2003743112 | IS94: 0 | IT94: 17.8 | IU94: 0.1420286387
IP95: 18 | IQ95: 1 | IR95: 0.2003743112 | IS95: 0 | IT95: 18 | IU95: 0.1428319008
IP96: 18.2 | IQ96: 1 | IR96: 0.2003743112 | IS96: 0 | IT96: 18.2 | IU96: 0.1436241042
IP97: 18.4 | IQ97: 1 | IR97: 0.2003743112 | IS97: 0 | IT97: 18.4 | IU97: 0.144405401
IP98: 18.6 | IQ98: 1 | IR98: 0.2003743112 | IS98: 0 | IT98: 18.6 | IU98: 0.1451759416
IP99: 18.8 | IQ99: 1 | IR99: 0.2003743112 | IS99: 0 | IT99: 18.8 | IU99: 0.1459358738
IP100: 19 | IQ100: 1 | IR100: 0.2003743112 | IS100: 0 | IT100: 19 | IU100: 0.1466853439
IP101: 19.2 | IQ101: 1 | IR101: 0.2003743112 | IS101: 0 | IT101: 19.2 | IU101: 0.1474244958
IP102: 19.4 | IQ102: 1 | IR102: 0.2003743112 | IS102: 0 | IT102: 19.4 | IU102: 0.1481534715
IP103: 19.6 | IQ103: 1 | IR103: 0.2003743112 | IS103: 0 | IT103: 19.6 | IU103: 0.1488724113
IP104: 19.8 | IQ104: 1 | IR104: 0.2003743112 | IS104: 0 | IT104: 19.8 | IU104: 0.1495814531
IP105: 20 | IQ105: 1 | IR105: 0.2003743112 | IS105: 0 | IT105: 20 | IU105: 0.1502807334
IP106: 20.2 | IQ106: 1 | IR106: 0.2003743112 | IS106: 0 | IT106: 20.2 | IU106: 0.1509703865
IP107: 20.4 | IQ107: 1 | IR107: 0.2003743112 | IS107: 0 | IT107: 20.4 | IU107: 0.1516505449
IP108: 20.6 | IQ108: 1 | IR108: 0.2003743112 | IS108: 0 | IT108: 20.6 | IU108: 0.1523213394
IP109: 20.8 | IQ109: 1 | IR109: 0.2003743112 | IS109: 0 | IT109: 20.8 | IU109: 0.1529828989
IP110: 21 | IQ110: 1 | IR110: 0.2003743112 | IS110: 0 | IT110: 21 | IU110: 0.1536353505
IP111: 21.2 | IQ111: 1 | IR111: 0.2003743112 | IS111: 0 | IT111: 21.2 | IU111: 0.1542788196
IP112: 21.4 | IQ112: 1 | IR112: 0.2003743112 | IS112: 0 | IT112: 21.4 | IU112: 0.1549134298
IP113: 21.6 | IQ113: 1 | IR113: 0.2003743112 | IS113: 0 | IT113: 21.6 | IU113: 0.1555393032
IP114: 21.8 | IQ114: 1 | IR114: 0.2003743112 | IS114: 0 | IT114: 21.8 | IU114: 0.15615656
IP115: 22 | IQ115: 1 | IR115: 0.2003743112 | IS115: 0 | IT115: 22 | IU115: 0.1567653189
IP116: 22.2 | IQ116: 1 | IR116: 0.2003743112 | IS116: 0 | IT116: 22.2 | IU116: 0.1573656967
IP117: 22.4 | IQ117: 1 | IR117: 0.2003743112 | IS117: 0 | IT117: 22.4 | IU117: 0.157957809
IP118: 22.6 | IQ118: 1 | IR118: 0.2003743112 | IS118: 0 | IT118: 22.6 | IU118: 0.1585417696
IP119: 22.8 | IQ119: 1 | IR119: 0.2003743112 | IS119: 0 | IT119: 22.8 | IU119: 0.1591176905
IP120: 23 | IQ120: 1 | IR120: 0.2003743112 | IS120: 0 | IT120: 23 | IU120: 0.1596856826
IP121: 23.2 | IQ121: 1 | IR121: 0.2003743112 | IS121: 0 | IT121: 23.2 | IU121: 0.160245855
IP122: 23.4 | IQ122: 1 | IR122: 0.2003743112 | IS122: 0 | IT122: 23.4 | IU122: 0.1607983153
IP123: 23.6 | IQ123: 1 | IR123: 0.2003743112 | IS123: 0 | IT123: 23.6 | IU123: 0.1613431697
IP124: 23.8 | IQ124: 1 | IR124: 0.2003743112 | IS124: 0 | IT124: 23.8 | IU124: 0.161880523
IP125: 24 | IQ125: 1 | IR125: 0.2003743112 | IS125: 0 | IT125: 24 | IU125: 0.1624104784
... 156 more rows

Sheet DOZ-RPTO (hidden)
K1: Dose Finding in Multiple Administration (p.o.) | L1: (Frist order kinetics) | IG1: =C10/C4 -> 16.66666667 | IH1: Yukaridaki protokolle ulaşılan doz sayısı | IO1: N | IP1: t | IQ1: tn | IR1: Dn | IS1: Y0
IG2: =EXP(-C4*F5) -> 3.552713679e-15 | IH2: Verilen dozdan t-int saat sonra uygulama yerinde kalan ilaç oranı | IN2: 1 | IO2: 0 | IP2: 0 | IQ2: =C$9*($B$21*IU2*((1-$IG$2^IN2)/(1-$IG$2)))/$C$8 -> 0.3465735903 | IR2: 0 | IS2: =IQ2*(F$5/(F$5-F$4))*(EXP(-IP2*F$4)-EXP(-IP2*F$5))+IR2*EXP(-IP2*$F$4) -> 0 | IT2: 0 | IU2: =IF(IN2=1,$C$5,1) -> 1
IG3: =C9*B21/C8 -> 0.3465735903 | IH3: D nin dağılmasıyla oluşan derişim | IN3: =TRUNC(IT3)+1 -> 1 | IO3: =IP3 -> 0.406779661 | IP3: =IF(IN3=IN2,IP2+C$4/((1000/IG$1)-1),0) -> 0.406779661 | IQ3: 0.3465735903 | IR3: =IF(IN3=IN2,IR2,IS2) -> 0 | IS3: 0.1489026209 | IT3: =ROUND((IT2+($IG$1/1000)),4) -> 0.0167 | IU3: =IF(IN3=1,$C$5,1) -> 1
B4: Dosing Interval | C4: 24 | D4: hours | E4: kelim | F4: =LN(2)/C7 -> 0.01444056626 | G4: h-1 | IG4: Mn-t | IN4: 1 | IO4: =IF(IP4=0,IO3,IO3+$IO$3) -> 0.813559322 | IP4: 0.813559322 | IQ4: 0.3465735903 | IR4: 0 | IS4: 0.2327525865 | IT4: 0.0334 | IU4: =IF(IN4=1,$C$5,1) -> 1
B5: Loading Dose | C5: 1 | D5: X maint. | E5: kabs | F5: =LN(2)/C6 -> 1.386294361 | G5: h-1 | IG5: =$C$15 -> 0.9 | IH5: =$C$16 -> 1.1 | II5: 0 | IN5: 1 | IO5: =IF(IP5=0,IO4,IO4+$IO$3) -> 1.220338983 | IP5: 1.220338983 | IQ5: 0.3465735903 | IR5: 0 | IS5: 0.2795942353 | IT5: 0.0501 | IU5: =IF(IN5=1,$C$5,1) -> 1
B6: t1/2(abs) | C6: 0.5 | D6: hours | E6: CL | F6: =C8*F4 -> 1.444056626 | G6: l/h | IG6: =$C$15 -> 0.9 | IH6: =$C$16 -> 1.1 | II6: =MAX(IO2:IO1001) -> 399.8644068 | IN6: 1 | IO6: =IF(IP6=0,IO5,IO5+$IO$3) -> 1.627118644 | IP6: 1.627118644 | IQ6: 0.3465735903 | IR6: 0 | IS6: 0.3053841039 | IT6: 0.0668 | IU6: 1
B7: t1/2(elim) | C7: 48 | D7: hours | E7: tmax (first dose) | F7: =LN(F4/F5)/(F4-F5) -> 3.327138948 | G7: hours | IN7: 1 | IO7: =IF(IP7=0,IO6,IO6+$IO$3) -> 2.033898305 | IP7: 2.033898305 | IQ7: 0.3465735903 | IR7: 0 | IS7: 0.3192010549 | IT7: 0.0835 | IU7: 1
B8: Vd | C8: 100 | D8: l | E8: Time to Css | F8: =-LN(1-0.99)/F4 -> 318.9050971 | G8: hours | IN8: 1 | IO8: 2.440677966 | IP8: 2.440677966 | IQ8: 0.3465735903 | IR8: 0 | IS8: 0.3262107172 | IT8: 0.1002 | IU8: 1
B9: f | C9: 0.5 | D9: unitless | E9: Cmax (first dose) | F9: =((F5/F4)^(F4/(F4-F5)))*IG3 -> 0.3303158796 | G9: mg/ml | IN9: 1 | IO9: 2.847457627 | IP9: 2.847457627 | IQ9: 0.3465735903 | IR9: 0 | IS9: 0.3293521822 | IT9: 0.1169 | IU9: 1
B10: tend | C10: 400 | D10: hours | E10: Cmax (at Css) | F10: =MAX(IS2:IS1001) -> 1.139657852 | G10: mg/ml | IN10: 1 | IO10: 3.254237288 | IP10: 3.254237288 | IQ10: 0.3465735903 | IR10: 0 | IS10: 0.3302976943 | IT10: 0.1336 | IU10: 1
E11: Accumulation | F11: =1/(1-2^(-C4/C7)) -> 3.414213562 | G11: folds | IN11: 1 | IO11: 3.661016949 | IP11: 3.661016949 | IQ11: 0.3465735903 | IR11: 0 | IS11: 0.3299986921 | IT11: 0.1503 | IU11: 1
IN12: 1 | IO12: 4.06779661 | IP12: 4.06779661 | IQ12: 0.3465735903 | IR12: 0 | IS12: 0.3289964927 | IT12: 0.167 | IU12: 1
B13: Therapeutic window | IN13: 1 | IO13: 4.474576271 | IP13: 4.474576271 | IQ13: 0.3465735903 | IR13: =IF(IN13=IN12,IR12,IS12) -> 0 | IS13: 0.3275990641 | IT13: 0.1837 | IU13: 1
B14: Target Cons. | C14: 1 | D14: mg/ml | IN14: 1 | IO14: 4.881355932 | IP14: 4.881355932 | IQ14: 0.3465735903 | IR14: 0 | IS14: 0.3259816042 | IT14: 0.2004 | IU14: 1
B15: MEC | C15: 0.9 | D15: mg/ml | IN15: 1 | IO15: 5.288135593 | IP15: 5.288135593 | IQ15: 0.3465735903 | IR15: 0 | IS15: 0.3242437682 | IT15: 0.2171 | IU15: 1
B16: MTC | C16: 1.1 | D16: mg/ml | IN16: 1 | IO16: 5.694915254 | IP16: 5.694915254 | IQ16: 0.3465735903 | IR16: 0 | IS16: 0.3224422294 | IT16: 0.2338 | IU16: =IF(IN16=1,$C$5,1) -> 1
B17: =IF(C15>=C16,"MEC should be less than MTC", "") ->  | IN17: 1 | IO17: 6.101694915 | IP17: 6.101694915 | IQ17: 0.3465735903 | IR17: 0 | IS17: 0.3206092052 | IT17: 0.2505 | IU17: =IF(IN17=1,$C$5,1) -> 1
IN18: 1 | IO18: 6.508474576 | IP18: 6.508474576 | IQ18: 0.3465735903 | IR18: 0 | IS18: 0.3187629991 | IT18: 0.2672 | IU18: 1
IN19: 1 | IO19: 6.915254237 | IP19: 6.915254237 | IQ19: 0.3465735903 | IR19: 0 | IS19: 0.3169139973 | IT19: 0.2839 | IU19: 1
B20: Calculated Dose | IN20: 1 | IO20: 7.322033898 | IP20: 7.322033898 | IQ20: 0.3465735903 | IR20: 0 | IS20: 0.3150680819 | IT20: 0.3006 | IU20: 1
B21: =((F6*C14/C9)*C4) -> 69.31471806 | C21: mg/dose | IN21: 1 | IO21: 7.728813559 | IP21: 7.728813559 | IQ21: 0.3465735903 | IR21: 0 | IS21: 0.3132285722 | IT21: 0.3173 | IU21: 1
B22: =24/C4 -> 1 | C22: dose/day | IN22: 1 | IO22: 8.13559322 | IP22: 8.13559322 | IQ22: 0.3465735903 | IR22: 0 | IS22: 0.3113973298 | IT22: 0.334 | IU22: 1
B23: =B21*(24/C4) -> 69.31471806 | C23: mg/day | IN23: 1 | IO23: 8.542372881 | IP23: 8.542372881 | IQ23: 0.3465735903 | IR23: 0 | IS23: 0.3095753864 | IT23: 0.3507 | IU23: 1
B24: =C5*B21 -> 69.31471806 | C24: mg / loding dose | IN24: 1 | IO24: 8.949152542 | IP24: 8.949152542 | IQ24: 0.3465735903 | IR24: 0 | IS24: 0.3077633026 | IT24: 0.3674 | IU24: 1
C25: =IF(F10>C16,"MTC is exeeded !!"," ") -> MTC is exeeded !! | IN25: 1 | IO25: 9.355932203 | IP25: 9.355932203 | IQ25: 0.3465735903 | IR25: 0 | IS25: 0.3059613702 | IT25: 0.3841 | IU25: 1
IN26: 1 | IO26: 9.762711864 | IP26: 9.762711864 | IQ26: 0.3465735903 | IR26: 0 | IS26: 0.3041697289 | IT26: 0.4008 | IU26: 1
IN27: 1 | IO27: 10.16949153 | IP27: 10.16949153 | IQ27: 0.3465735903 | IR27: 0 | IS27: 0.3023884316 | IT27: 0.4175 | IU27: 1
IN28: 1 | IO28: 10.57627119 | IP28: 10.57627119 | IQ28: 0.3465735903 | IR28: 0 | IS28: 0.3006174821 | IT28: 0.4342 | IU28: 1
IN29: 1 | IO29: 10.98305085 | IP29: 10.98305085 | IQ29: 0.3465735903 | IR29: 0 | IS29: 0.2988568566 | IT29: 0.4509 | IU29: 1
IN30: 1 | IO30: 11.38983051 | IP30: 11.38983051 | IQ30: 0.3465735903 | IR30: 0 | IS30: 0.2971065153 | IT30: 0.4676 | IU30: 1
IN31: 1 | IO31: 11.79661017 | IP31: 11.79661017 | IQ31: 0.3465735903 | IR31: 0 | IS31: 0.2953664099 | IT31: 0.4843 | IU31: 1
IN32: 1 | IO32: 12.20338983 | IP32: 12.20338983 | IQ32: 0.3465735903 | IR32: 0 | IS32: 0.2936364873 | IT32: 0.501 | IU32: 1
IN33: 1 | IO33: 12.61016949 | IP33: 12.61016949 | IQ33: 0.3465735903 | IR33: 0 | IS33: 0.2919166916 | IT33: 0.5177 | IU33: 1
IN34: 1 | IO34: 13.01694915 | IP34: 13.01694915 | IQ34: 0.3465735903 | IR34: 0 | IS34: 0.2902069657 | IT34: 0.5344 | IU34: 1
IN35: 1 | IO35: 13.42372881 | IP35: 13.42372881 | IQ35: 0.3465735903 | IR35: 0 | IS35: 0.2885072519 | IT35: 0.5511 | IU35: 1
IN36: 1 | IO36: 13.83050847 | IP36: 13.83050847 | IQ36: 0.3465735903 | IR36: 0 | IS36: 0.2868174922 | IT36: 0.5678 | IU36: 1
IN37: 1 | IO37: 14.23728814 | IP37: 14.23728814 | IQ37: 0.3465735903 | IR37: 0 | IS37: 0.2851376288 | IT37: 0.5845 | IU37: 1
IN38: 1 | IO38: 14.6440678 | IP38: 14.6440678 | IQ38: 0.3465735903 | IR38: 0 | IS38: 0.2834676038 | IT38: 0.6012 | IU38: 1
IN39: 1 | IO39: 15.05084746 | IP39: 15.05084746 | IQ39: 0.3465735903 | IR39: 0 | IS39: 0.2818073599 | IT39: 0.6179 | IU39: 1
IN40: 1 | IO40: 15.45762712 | IP40: 15.45762712 | IQ40: 0.3465735903 | IR40: 0 | IS40: 0.2801568398 | IT40: 0.6346 | IU40: 1
IN41: =TRUNC(IT41)+1 -> 1 | IO41: 15.86440678 | IP41: 15.86440678 | IQ41: 0.3465735903 | IR41: 0 | IS41: 0.2785159865 | IT41: 0.6513 | IU41: 1
IN42: 1 | IO42: 16.27118644 | IP42: 16.27118644 | IQ42: 0.3465735903 | IR42: 0 | IS42: 0.2768847436 | IT42: 0.668 | IU42: 1
IN43: 1 | IO43: 16.6779661 | IP43: 16.6779661 | IQ43: 0.3465735903 | IR43: 0 | IS43: 0.2752630547 | IT43: 0.6847 | IU43: 1
IN44: 1 | IO44: 17.08474576 | IP44: 17.08474576 | IQ44: 0.3465735903 | IR44: 0 | IS44: 0.2736508639 | IT44: 0.7014 | IU44: 1
IN45: 1 | IO45: 17.49152542 | IP45: 17.49152542 | IQ45: 0.3465735903 | IR45: 0 | IS45: 0.2720481155 | IT45: 0.7181 | IU45: 1
IN46: 1 | IO46: 17.89830508 | IP46: 17.89830508 | IQ46: 0.3465735903 | IR46: 0 | IS46: 0.2704547542 | IT46: 0.7348 | IU46: 1
IN47: 1 | IO47: 18.30508475 | IP47: 18.30508475 | IQ47: 0.3465735903 | IR47: 0 | IS47: 0.2688707252 | IT47: 0.7515 | IU47: 1
IN48: 1 | IO48: 18.71186441 | IP48: 18.71186441 | IQ48: 0.3465735903 | IR48: 0 | IS48: 0.2672959736 | IT48: 0.7682 | IU48: 1
IN49: 1 | IO49: 19.11864407 | IP49: 19.11864407 | IQ49: 0.3465735903 | IR49: 0 | IS49: 0.2657304452 | IT49: 0.7849 | IU49: 1
IN50: 1 | IO50: 19.52542373 | IP50: 19.52542373 | IQ50: 0.3465735903 | IR50: 0 | IS50: 0.264174086 | IT50: 0.8016 | IU50: 1
IN51: 1 | IO51: 19.93220339 | IP51: 19.93220339 | IQ51: 0.3465735903 | IR51: 0 | IS51: 0.2626268423 | IT51: 0.8183 | IU51: 1
IN52: 1 | IO52: 20.33898305 | IP52: 20.33898305 | IQ52: 0.3465735903 | IR52: 0 | IS52: 0.2610886606 | IT52: 0.835 | IU52: 1
IN53: 1 | IO53: 20.74576271 | IP53: 20.74576271 | IQ53: 0.3465735903 | IR53: 0 | IS53: 0.2595594879 | IT53: 0.8517 | IU53: 1
IN54: 1 | IO54: 21.15254237 | IP54: 21.15254237 | IQ54: 0.3465735903 | IR54: 0 | IS54: 0.2580392714 | IT54: 0.8684 | IU54: 1
IN55: 1 | IO55: 21.55932203 | IP55: 21.55932203 | IQ55: 0.3465735903 | IR55: 0 | IS55: 0.2565279587 | IT55: 0.8851 | IU55: 1
IN56: 1 | IO56: 21.96610169 | IP56: 21.96610169 | IQ56: 0.3465735903 | IR56: 0 | IS56: 0.2550254976 | IT56: 0.9018 | IU56: 1
IN57: 1 | IO57: 22.37288136 | IP57: 22.37288136 | IQ57: 0.3465735903 | IR57: 0 | IS57: 0.2535318363 | IT57: 0.9185 | IU57: 1
IN58: 1 | IO58: 22.77966102 | IP58: 22.77966102 | IQ58: 0.3465735903 | IR58: 0 | IS58: 0.2520469232 | IT58: 0.9352 | IU58: 1
IN59: 1 | IO59: 23.18644068 | IP59: 23.18644068 | IQ59: 0.3465735903 | IR59: 0 | IS59: 0.2505707071 | IT59: 0.9519 | IU59: 1
IN60: 1 | IO60: 23.59322034 | IP60: 23.59322034 | IQ60: 0.3465735903 | IR60: 0 | IS60: 0.2491031371 | IT60: 0.9686 | IU60: 1
IN61: 1 | IO61: 24 | IP61: 24 | IQ61: 0.3465735903 | IR61: 0 | IS61: 0.2476441626 | IT61: 0.9853 | IU61: 1
IN62: 2 | IO62: 24 | IP62: 0 | IQ62: 0.3465735903 | IR62: 0.2476441626 | IS62: 0.2476441626 | IT62: 1.002 | IU62: 1
IN63: 2 | IO63: 24.40677966 | IP63: 0.406779661 | IQ63: 0.3465735903 | IR63: 0.2476441626 | IS63: 0.3950963539 | IT63: 1.0187 | IU63: 1
IN64: 2 | IO64: 24.81355932 | IP64: 0.813559322 | IQ64: 0.3465735903 | IR64: 0.2476441626 | IS64: 0.4775043851 | IT64: 1.0354 | IU64: 1
IN65: 2 | IO65: 25.22033898 | IP65: 1.220338983 | IQ65: 0.3465735903 | IR65: 0.2476441626 | IS65: 0.5229125447 | IT65: 1.0521 | IU65: 1
IN66: 2 | IO66: 25.62711864 | IP66: 1.627118644 | IQ66: =C$9*($B$21*IU66*((1-$IG$2^IN66)/(1-$IG$2)))/$C$8 -> 0.3465735903 | IR66: 0.2476441626 | IS66: =IQ66*(F$5/(F$5-F$4))*(EXP(-IP66*F$4)-EXP(-IP66*F$5))+IR66*EXP(-IP66*$F$4) -> 0.54727732 | IT66: 1.0688 | IU66: 1
IN67: =TRUNC(IT67)+1 -> 2 | IO67: 26.03389831 | IP67: =IF(IN67=IN66,IP66+C$4/((1000/IG$1)-1),0) -> 2.033898305 | IQ67: 0.3465735903 | IR67: =IF(IN67=IN66,IR66,IS66) -> 0.2476441626 | IS67: 0.5596775243 | IT67: =ROUND((IT66+($IG$1/1000)),4) -> 1.0855 | IU67: 1
IN68: 2 | IO68: 26.44067797 | IP68: 2.440677966 | IQ68: 0.3465735903 | IR68: 0.2476441626 | IS68: 0.5652787376 | IT68: 1.1022 | IU68: 1
IN69: 2 | IO69: 26.84745763 | IP69: 2.847457627 | IQ69: 0.3465735903 | IR69: 0.2476441626 | IS69: 0.5670200028 | IT69: 1.1189 | IU69: 1
IN70: 2 | IO70: 27.25423729 | IP70: 3.254237288 | IQ70: 0.3465735903 | IR70: 0.2476441626 | IS70: 0.5665735159 | IT70: 1.1356 | IU70: 1
IN71: 2 | IO71: =IF(IP71=0,IO70,IO70+$IO$3) -> 27.66101695 | IP71: 3.661016949 | IQ71: 0.3465735903 | IR71: 0.2476441626 | IS71: 0.5648906675 | IT71: 1.1523 | IU71: 1
IN72: 2 | IO72: 28.06779661 | IP72: 4.06779661 | IQ72: 0.3465735903 | IR72: 0.2476441626 | IS72: 0.5625127271 | IT72: 1.169 | IU72: 1
IN73: 2 | IO73: 28.47457627 | IP73: 4.474576271 | IQ73: 0.3465735903 | IR73: 0.2476441626 | IS73: 0.559747615 | IT73: 1.1857 | IU73: 1
IN74: 2 | IO74: 28.88135593 | IP74: 4.881355932 | IQ74: 0.3465735903 | IR74: 0.2476441626 | IS74: 0.556770482 | IT74: 1.2024 | IU74: 1
IN75: 2 | IO75: 29.28813559 | IP75: 5.288135593 | IQ75: 0.3465735903 | IR75: 0.2476441626 | IS75: 0.5536809364 | IT75: 1.2191 | IU75: 1
IN76: 2 | IO76: 29.69491525 | IP76: 5.694915254 | IQ76: 0.3465735903 | IR76: 0.2476441626 | IS76: 0.5505356048 | IT76: 1.2358 | IU76: 1
IN77: 2 | IO77: 30.10169492 | IP77: 6.101694915 | IQ77: 0.3465735903 | IR77: 0.2476441626 | IS77: 0.5473666583 | IT77: 1.2525 | IU77: 1
IN78: 2 | IO78: 30.50847458 | IP78: 6.508474576 | IQ78: 0.3465735903 | IR78: 0.2476441626 | IS78: 0.5441923543 | IT78: 1.2692 | IU78: 1
IN79: 2 | IO79: 30.91525424 | IP79: 6.915254237 | IQ79: 0.3465735903 | IR79: 0.2476441626 | IS79: 0.5410230331 | IT79: 1.2859 | IU79: 1
IN80: 2 | IO80: 31.3220339 | IP80: 7.322033898 | IQ80: 0.3465735903 | IR80: 0.2476441626 | IS80: 0.5378645313 | IT80: 1.3026 | IU80: 1
IN81: 2 | IO81: 31.72881356 | IP81: 7.728813559 | IQ81: 0.3465735903 | IR81: 0.2476441626 | IS81: 0.534720123 | IT81: 1.3193 | IU81: =IF(IN81=1,$C$5,1) -> 1
IN82: 2 | IO82: 32.13559322 | IP82: 8.13559322 | IQ82: 0.3465735903 | IR82: 0.2476441626 | IS82: 0.5315916245 | IT82: 1.336 | IU82: 1
IN83: 2 | IO83: 32.54237288 | IP83: 8.542372881 | IQ83: 0.3465735903 | IR83: 0.2476441626 | IS83: 0.5284800231 | IT83: 1.3527 | IU83: 1
IN84: 2 | IO84: 32.94915254 | IP84: 8.949152542 | IQ84: 0.3465735903 | IR84: 0.2476441626 | IS84: 0.5253858345 | IT84: 1.3694 | IU84: 1
IN85: 2 | IO85: 33.3559322 | IP85: 9.355932203 | IQ85: 0.3465735903 | IR85: 0.2476441626 | IS85: 0.5223093067 | IT85: 1.3861 | IU85: 1
IN86: 2 | IO86: 33.76271186 | IP86: 9.762711864 | IQ86: 0.3465735903 | IR86: 0.2476441626 | IS86: 0.519250535 | IT86: 1.4028 | IU86: 1
IN87: 2 | IO87: 34.16949153 | IP87: 10.16949153 | IQ87: 0.3465735903 | IR87: 0.2476441626 | IS87: 0.5162095288 | IT87: 1.4195 | IU87: 1
IN88: 2 | IO88: 34.57627119 | IP88: 10.57627119 | IQ88: 0.3465735903 | IR88: 0.2476441626 | IS88: 0.5131862485 | IT88: 1.4362 | IU88: 1
IN89: 2 | IO89: 34.98305085 | IP89: 10.98305085 | IQ89: 0.3465735903 | IR89: 0.2476441626 | IS89: 0.5101806269 | IT89: 1.4529 | IU89: 1
IN90: 2 | IO90: 35.38983051 | IP90: 11.38983051 | IQ90: 0.3465735903 | IR90: 0.2476441626 | IS90: 0.5071925814 | IT90: 1.4696 | IU90: 1
IN91: 2 | IO91: 35.79661017 | IP91: 11.79661017 | IQ91: 0.3465735903 | IR91: 0.2476441626 | IS91: 0.5042220209 | IT91: 1.4863 | IU91: 1
IN92: 2 | IO92: 36.20338983 | IP92: 12.20338983 | IQ92: 0.3465735903 | IR92: 0.2476441626 | IS92: 0.5012688498 | IT92: 1.503 | IU92: 1
IN93: 2 | IO93: 36.61016949 | IP93: 12.61016949 | IQ93: 0.3465735903 | IR93: 0.2476441626 | IS93: 0.4983329701 | IT93: 1.5197 | IU93: 1
IN94: 2 | IO94: 37.01694915 | IP94: 13.01694915 | IQ94: 0.3465735903 | IR94: 0.2476441626 | IS94: 0.4954142828 | IT94: 1.5364 | IU94: 1
IN95: 2 | IO95: 37.42372881 | IP95: 13.42372881 | IQ95: 0.3465735903 | IR95: 0.2476441626 | IS95: 0.4925126882 | IT95: 1.5531 | IU95: 1
IN96: 2 | IO96: 37.83050847 | IP96: 13.83050847 | IQ96: 0.3465735903 | IR96: 0.2476441626 | IS96: 0.4896280871 | IT96: 1.5698 | IU96: 1
IN97: 2 | IO97: 38.23728814 | IP97: 14.23728814 | IQ97: 0.3465735903 | IR97: 0.2476441626 | IS97: 0.4867603803 | IT97: 1.5865 | IU97: 1
IN98: 2 | IO98: 38.6440678 | IP98: 14.6440678 | IQ98: 0.3465735903 | IR98: 0.2476441626 | IS98: 0.4839094691 | IT98: 1.6032 | IU98: 1
IN99: 2 | IO99: 39.05084746 | IP99: 15.05084746 | IQ99: 0.3465735903 | IR99: 0.2476441626 | IS99: 0.4810752553 | IT99: 1.6199 | IU99: 1
IN100: 2 | IO100: 39.45762712 | IP100: 15.45762712 | IQ100: 0.3465735903 | IR100: 0.2476441626 | IS100: 0.4782576411 | IT100: 1.6366 | IU100: 1
IN101: 2 | IO101: 39.86440678 | IP101: 15.86440678 | IQ101: 0.3465735903 | IR101: 0.2476441626 | IS101: 0.4754565294 | IT101: 1.6533 | IU101: 1
IN102: 2 | IO102: 40.27118644 | IP102: 16.27118644 | IQ102: 0.3465735903 | IR102: 0.2476441626 | IS102: 0.4726718235 | IT102: 1.67 | IU102: 1
IN103: 2 | IO103: 40.6779661 | IP103: 16.6779661 | IQ103: 0.3465735903 | IR103: 0.2476441626 | IS103: 0.4699034273 | IT103: 1.6867 | IU103: 1
IN104: 2 | IO104: 41.08474576 | IP104: 17.08474576 | IQ104: 0.3465735903 | IR104: 0.2476441626 | IS104: 0.4671512454 | IT104: 1.7034 | IU104: 1
IN105: 2 | IO105: 41.49152542 | IP105: 17.49152542 | IQ105: 0.3465735903 | IR105: 0.2476441626 | IS105: 0.4644151827 | IT105: 1.7201 | IU105: 1
IN106: 2 | IO106: 41.89830508 | IP106: 17.89830508 | IQ106: 0.3465735903 | IR106: 0.2476441626 | IS106: 0.461695145 | IT106: 1.7368 | IU106: 1
IN107: 2 | IO107: 42.30508475 | IP107: 18.30508475 | IQ107: 0.3465735903 | IR107: 0.2476441626 | IS107: 0.4589910382 | IT107: 1.7535 | IU107: 1
IN108: 2 | IO108: 42.71186441 | IP108: 18.71186441 | IQ108: 0.3465735903 | IR108: 0.2476441626 | IS108: 0.4563027691 | IT108: 1.7702 | IU108: 1
IN109: 2 | IO109: 43.11864407 | IP109: 19.11864407 | IQ109: 0.3465735903 | IR109: 0.2476441626 | IS109: 0.453630245 | IT109: 1.7869 | IU109: 1
IN110: 2 | IO110: 43.52542373 | IP110: 19.52542373 | IQ110: 0.3465735903 | IR110: 0.2476441626 | IS110: 0.4509733737 | IT110: 1.8036 | IU110: 1
IN111: 2 | IO111: 43.93220339 | IP111: 19.93220339 | IQ111: 0.3465735903 | IR111: 0.2476441626 | IS111: 0.4483320633 | IT111: 1.8203 | IU111: 1
IN112: 2 | IO112: 44.33898305 | IP112: 20.33898305 | IQ112: 0.3465735903 | IR112: 0.2476441626 | IS112: 0.4457062229 | IT112: 1.837 | IU112: 1
IN113: 2 | IO113: 44.74576271 | IP113: 20.74576271 | IQ113: 0.3465735903 | IR113: 0.2476441626 | IS113: 0.4430957618 | IT113: 1.8537 | IU113: 1
IN114: 2 | IO114: 45.15254237 | IP114: 21.15254237 | IQ114: 0.3465735903 | IR114: 0.2476441626 | IS114: 0.44050059 | IT114: 1.8704 | IU114: 1
IN115: 2 | IO115: 45.55932203 | IP115: 21.55932203 | IQ115: 0.3465735903 | IR115: 0.2476441626 | IS115: 0.4379206178 | IT115: 1.8871 | IU115: 1
IN116: 2 | IO116: 45.96610169 | IP116: 21.96610169 | IQ116: 0.3465735903 | IR116: 0.2476441626 | IS116: 0.4353557563 | IT116: 1.9038 | IU116: 1
IN117: 2 | IO117: 46.37288136 | IP117: 22.37288136 | IQ117: 0.3465735903 | IR117: 0.2476441626 | IS117: 0.4328059169 | IT117: 1.9205 | IU117: 1
IN118: 2 | IO118: 46.77966102 | IP118: 22.77966102 | IQ118: 0.3465735903 | IR118: 0.2476441626 | IS118: 0.4302710118 | IT118: 1.9372 | IU118: 1
IN119: 2 | IO119: 47.18644068 | IP119: 23.18644068 | IQ119: 0.3465735903 | IR119: 0.2476441626 | IS119: 0.4277509533 | IT119: 1.9539 | IU119: 1
IN120: 2 | IO120: 47.59322034 | IP120: 23.59322034 | IQ120: 0.3465735903 | IR120: 0.2476441626 | IS120: 0.4252456546 | IT120: 1.9706 | IU120: 1
IN121: 2 | IO121: 48 | IP121: 24 | IQ121: 0.3465735903 | IR121: 0.2476441626 | IS121: 0.4227550292 | IT121: 1.9873 | IU121: 1
IN122: 3 | IO122: 48 | IP122: 0 | IQ122: 0.3465735903 | IR122: 0.4227550292 | IS122: 0.4227550292 | IT122: 2.004 | IU122: 1
IN123: 3 | IO123: 48.40677966 | IP123: 0.406779661 | IQ123: 0.3465735903 | IR123: 0.4227550292 | IS123: 0.5691816121 | IT123: 2.0207 | IU123: 1
IN124: 3 | IO124: 48.81355932 | IP124: 0.813559322 | IQ124: 0.3465735903 | IR124: 0.4227550292 | IS124: 0.6505700416 | IT124: 2.0374 | IU124: 1
IN125: 3 | IO125: 49.22033898 | IP125: 1.220338983 | IQ125: 0.3465735903 | IR125: 0.4227550292 | IS125: 0.6949645713 | IT125: 2.0541 | IU125: 1
... 156 more rows

Sheet BDK_IV_TD (hidden)
IT1: Co= | IU1: =C12/C13 -> 0.14 | IV1: =C20/C21 -> 0.2
N2: i.v. Single Dose | O2: (First order kinetics) | IT2: Toplam Süre= | IU2: =7*MAX(C14,C22) -> 70
IT3: Tstep | IU3: =IU2/500 -> 0.14
IT5: T | IU5: C1 | IV5: C2
IT6: 0 | IU6: =$IU$1*EXP(-$F$12*IT6) -> 0.14 | IV6: =$IV$1*EXP(-$F$20*IT6) -> 0.2
IT7: =IT6+$IU$3 -> 0.14 | IU7: 0.1386480021 | IV7: 0.1961558008
IT8: 0.28 | IU8: 0.1373090606 | IV8: 0.1923854909
IT9: 0.42 | IU9: 0.1359830494 | IV9: 0.1886876502
IT10: 0.56 | IU10: 0.1346698437 | IV10: 0.1850608856
B11: Case 1 | IT11: 0.7 | IU11: 0.1333693197 | IV11: 0.1815038311
B12: Dose | C12: 7 | D12: mg | E12: kelim | F12: =LN(2)/C14 -> 0.06931471806 | G12: h-1 | IT12: 0.84 | IU12: 0.1320813551 | IV12: 0.1780151467
B13: Vd | C13: 50 | D13: l | E13: CL | F13: =F12*C13 -> 3.465735903 | G13: l/h | IT13: 0.98 | IU13: 0.1308058286 | IV13: 0.1745935182
B14: t1/2 | C14: 10 | D14: hours | E14: C0 | F14: =C12/C13 -> 0.14 | G14: mg/ml | IT14: 1.12 | IU14: 0.1295426199 | IV14: 0.1712376569
IT15: 1.26 | IU15: 0.1282916103 | IV15: 0.1679462986
IT16: 1.4 | IU16: 0.1270526817 | IV16: 0.1647182035
IT17: 1.54 | IU17: 0.1258257177 | IV17: 0.1615521555
IT18: 1.68 | IU18: 0.1246106027 | IV18: 0.1584469622
B19: Case 2 | IT19: 1.82 | IU19: 0.1234072221 | IV19: 0.1554014538
B20: Dose | C20: 10 | D20: mg | E20: kelim | F20: =LN(2)/C22 -> 0.1386294361 | G20: saat-1 | IT20: 1.96 | IU20: 0.1222154628 | IV20: 0.152414483
B21: Vd | C21: 50 | D21: l | E21: CL | F21: =F20*C21 -> 6.931471806 | G21: l/saat | IT21: 2.1 | IU21: 0.1210352124 | IV21: 0.1494849249
B22: t1/2 | C22: 5 | D22: hours | E22: C0 | F22: =C20/C21 -> 0.2 | G22: mg/ml | IT22: 2.24 | IU22: 0.1198663598 | IV22: 0.1466116757
IT23: 2.38 | IU23: 0.118708795 | IV23: 0.1437936533
IT24: 2.52 | IU24: 0.117562409 | IV24: 0.141029796
IT25: 2.66 | IU25: 0.1164270938 | IV25: 0.1383190629
IT26: 2.8 | IU26: 0.1153027424 | IV26: 0.1356604327
IT27: 2.94 | IU27: 0.1141892491 | IV27: 0.1330529041
IT28: 3.08 | IU28: 0.1130865089 | IV28: 0.1304954948
IT29: 3.22 | IU29: 0.111994418 | IV29: 0.1279872414
IT30: 3.36 | IU30: 0.1109128735 | IV30: 0.1255271991
IT31: 3.5 | IU31: 0.1098417737 | IV31: 0.1231144413
IT32: 3.64 | IU32: 0.1087810176 | IV32: 0.1207480591
IT33: 3.78 | IU33: 0.1077305054 | IV33: 0.1184271612
IT34: 3.92 | IU34: 0.1066901381 | IV34: 0.1161508732
IT35: 4.06 | IU35: 0.1056598178 | IV35: 0.1139183377
IT36: 4.2 | IU36: 0.1046394474 | IV36: 0.1117287138
IT37: 4.34 | IU37: 0.1036289309 | IV37: 0.1095811766
IT38: 4.48 | IU38: 0.102628173 | IV38: 0.1074749173
IT39: =IT38+$IU$3 -> 4.62 | IU39: 0.1016370796 | IV39: 0.1054091423
IT40: 4.76 | IU40: 0.1006555573 | IV40: 0.1033830736
IT41: 4.9 | IU41: 0.09968351369 | IV41: 0.101395948
IT42: 5.04 | IU42: 0.09872085723 | IV42: 0.09944701687
IT43: 5.18 | IU43: 0.09776749727 | IV43: 0.09753554615
IT44: 5.32 | IU44: 0.09682334403 | IV44: 0.09566081581
IT45: 5.46 | IU45: 0.0958883086 | IV45: 0.09382211965
IT46: 5.6 | IU46: 0.09496230292 | IV46: 0.09201876506
IT47: 5.74 | IU47: 0.0940452398 | IV47: 0.09025007275
IT48: 5.88 | IU48: 0.09313703288 | IV48: 0.08851537646
IT49: 6.02 | IU49: 0.09223759662 | IV49: 0.08681402276
IT50: 6.16 | IU50: 0.09134684634 | IV50: 0.08514537077
IT51: 6.3 | IU51: 0.09046469814 | IV51: 0.08350879194
IT52: 6.44 | IU52: 0.08959106897 | IV52: 0.08190366979
IT53: 6.58 | IU53: 0.08872587654 | IV53: 0.08032939968
IT54: 6.72 | IU54: 0.08786903939 | IV54: 0.0787853886
IT55: 6.86 | IU55: 0.08702047682 | IV55: 0.07727105496
IT56: 7 | IU56: 0.08618010893 | IV56: 0.07578582833
IT57: 7.14 | IU57: 0.08534785659 | IV57: 0.07432914922
IT58: 7.28 | IU58: 0.0845236414 | IV58: 0.07290046894
IT59: 7.42 | IU59: 0.08370738577 | IV59: 0.07149924932
IT60: 7.56 | IU60: 0.08289901283 | IV60: 0.07012496253
IT61: 7.7 | IU61: 0.08209844645 | IV61: 0.06877709091
IT62: 7.84 | IU62: 0.08130561123 | IV62: 0.06745512672
IT63: 7.98 | IU63: 0.08052043253 | IV63: 0.066158572
IT64: 8.12 | IU64: 0.07974283641 | IV64: 0.06488693835
IT65: 8.26 | IU65: 0.07897274962 | IV65: 0.06363974676
IT66: 8.4 | IU66: 0.07821009967 | IV66: 0.06241652745
IT67: 8.54 | IU67: 0.07745481472 | IV67: 0.06121681962
IT68: 8.68 | IU68: 0.07670682365 | IV68: 0.06004017137
IT69: 8.82 | IU69: 0.07596605603 | IV69: 0.05888613948
IT70: 8.96 | IU70: =$IU$1*EXP(-$F$12*IT70) -> 0.0752324421 | IV70: =$IV$1*EXP(-$F$20*IT70) -> 0.05775428923
IT71: =IT70+$IU$3 -> 9.1 | IU71: 0.07450591277 | IV71: 0.05664419426
IT72: 9.24 | IU72: 0.07378639963 | IV72: 0.05555543643
IT73: 9.38 | IU73: 0.07307383492 | IV73: 0.05448760561
IT74: 9.52 | IU74: 0.07236815154 | IV74: 0.05344029956
IT75: 9.66 | IU75: 0.07166928303 | IV75: 0.05241312378
IT76: 9.8 | IU76: 0.07097716359 | IV76: 0.05140569133
IT77: 9.94 | IU77: 0.07029172803 | IV77: 0.05041762274
IT78: 10.08 | IU78: 0.06961291181 | IV78: 0.04944854582
IT79: 10.22 | IU79: 0.068940651 | IV79: 0.04849809552
IT80: 10.36 | IU80: 0.06827488231 | IV80: 0.04756591382
IT81: 10.5 | IU81: 0.06761554302 | IV81: 0.04665164958
IT82: 10.64 | IU82: 0.06696257107 | IV82: 0.04575495841
IT83: 10.78 | IU83: 0.06631590494 | IV83: 0.04487550253
IT84: 10.92 | IU84: 0.06567548376 | IV84: 0.04401295068
IT85: 11.06 | IU85: 0.0650412472 | IV85: 0.04316697793
IT86: 11.2 | IU86: 0.06441313554 | IV86: 0.04233726562
IT87: 11.34 | IU87: 0.06379108964 | IV87: 0.0415235012
IT88: 11.48 | IU88: 0.06317505092 | IV88: 0.04072537815
IT89: 11.62 | IU89: 0.06256496136 | IV89: 0.03994259582
IT90: 11.76 | IU90: 0.06196076352 | IV90: 0.03917485935
IT91: 11.9 | IU91: 0.06136240049 | IV91: 0.03842187953
IT92: 12.04 | IU92: 0.06076981593 | IV92: 0.03768337274
IT93: 12.18 | IU93: 0.06018295404 | IV93: 0.03695906078
IT94: 12.32 | IU94: 0.05960175954 | IV94: 0.03624867082
IT95: 12.46 | IU95: 0.05902617772 | IV95: 0.03555193526
IT96: 12.6 | IU96: 0.05845615436 | IV96: 0.03486859166
IT97: 12.74 | IU97: 0.05789163579 | IV97: 0.0341983826
IT98: 12.88 | IU98: 0.05733256885 | IV98: 0.03354105562
IT99: 13.02 | IU99: 0.05677890089 | IV99: 0.03289636313
IT100: 13.16 | IU100: 0.05623057977 | IV100: 0.03226406226
IT101: 13.3 | IU101: 0.05568755386 | IV101: 0.03164391485
IT102: 13.44 | IU102: 0.05514977202 | IV102: 0.03103568729
IT103: 13.58 | IU103: 0.05461718361 | IV103: 0.03043915047
IT104: 13.72 | IU104: 0.05408973848 | IV104: 0.02985407968
IT105: 13.86 | IU105: 0.05356738694 | IV105: 0.02928025453
IT106: 14 | IU106: 0.05305007983 | IV106: 0.02871745887
IT107: =IT106+$IU$3 -> 14.14 | IU107: 0.05253776841 | IV107: 0.02816548071
IT108: 14.28 | IU108: 0.05203040446 | IV108: 0.02762411212
IT109: 14.42 | IU109: 0.05152794018 | IV109: 0.02709314917
IT110: 14.56 | IU110: 0.05103032826 | IV110: 0.02657239186
IT111: 14.7 | IU111: 0.05053752184 | IV111: 0.02606164402
IT112: 14.84 | IU112: 0.05004947452 | IV112: 0.02556071327
IT113: 14.98 | IU113: 0.04956614034 | IV113: 0.0250694109
IT114: 15.12 | IU114: 0.04908747377 | IV114: 0.02458755185
IT115: 15.26 | IU115: 0.04861342975 | IV115: 0.02411495461
IT116: 15.4 | IU116: 0.04814396363 | IV116: 0.02365144117
IT117: 15.54 | IU117: 0.04767903121 | IV117: 0.02319683691
IT118: 15.68 | IU118: 0.0472185887 | IV118: 0.0227509706
IT119: 15.82 | IU119: 0.04676259274 | IV119: 0.02231367429
IT120: 15.96 | IU120: 0.0463110004 | IV120: 0.02188478324
IT121: 16.1 | IU121: 0.04586376914 | IV121: 0.02146413591
IT122: 16.24 | IU122: 0.04542085684 | IV122: 0.02105157384
IT123: 16.38 | IU123: 0.04498222181 | IV123: 0.02064694162
IT124: 16.52 | IU124: 0.04454782273 | IV124: 0.02025008684
IT125: 16.66 | IU125: 0.04411761871 | IV125: 0.01986086
... 156 more rows

Sheet OTIK (hidden)
IQ1: tr | IR1: t | IS1: B | IT1: D | IU1: h | IV1: =I8/2000 -> 0.1
M2: Two-Compartment Model (p.o.) | N2: (First order kinetics) | IQ2: 0 | IR2: 0 | IS2: 0 | IT2: 0
IQ3: =IQ2+$IV$1 -> 0.1 | IR3: =IF(IR2>=$I$9,0,IR2+$IV$1) -> 0.1 | IS3: =RK4m(IR2,IS2:IT2,$IV$1,$F$6,$F$8,$F$9,$F$7,$F$5,$I$6,$I$7,$I$5) -> 0.0409770231 | IT3: 0.01095769721
IQ4: 0.2 | IR4: 0.2 | IS4: =RK4m(IR3,IS3:IT3,$IV$1,$F$6,$F$8,$F$9,$F$7,$F$5,$I$6,$I$7,$I$5) -> 0.06324349496 | IT4: 0.02448747765
E5: Dose | F5: 12 | G5: mg | H5: f | I5: 1 | IQ5: 0.3 | IR5: 0.3 | IS5: =RK4m(IR4,IS4:IT4,$IV$1,$F$6,$F$8,$F$9,$F$7,$F$5,$I$6,$I$7,$I$5) -> 0.07852415153 | IT5: 0.03835566285
E6: kabs | F6: 0.5 | G6: h-1 | H6: Vd1 | I6: 6 | J6: l | IQ6: 0.4 | IR6: 0.4 | IS6: =RK4m(IR5,IS5:IT5,$IV$1,$F$6,$F$8,$F$9,$F$7,$F$5,$I$6,$I$7,$I$5) -> 0.09092480734 | IT6: 0.05181240832
E7: CLelim | F7: 3 | G7: l/h | H7: Vd2 | I7: 30 | J7: l | IQ7: 0.5 | IR7: 0.5 | IS7: =RK4m(IR6,IS6:IT6,$IV$1,$F$6,$F$8,$F$9,$F$7,$F$5,$I$6,$I$7,$I$5) -> 0.1018974636 | IT7: 0.06462312737
E8: CLdist | F8: 100 | G8: l/h | H8: tend | I8: 200 | J8: hours | IQ8: 0.6 | IR8: 0.6 | IS8: =RK4m(IR7,IS7:IT7,$IV$1,$F$6,$F$8,$F$9,$F$7,$F$5,$I$6,$I$7,$I$5) -> 0.1119690499 | IT8: 0.07673133181
E9: CLredist | F9: =F8 -> 100 | G9: l/h | H9: tinterval | I9: 12 | J9: hours | IQ9: 0.7 | IR9: 0.7 | IS9: =RK4m(IR8,IS8:IT8,$IV$1,$F$6,$F$8,$F$9,$F$7,$F$5,$I$6,$I$7,$I$5) -> 0.1213433682 | IT9: 0.08814130762
IQ10: 0.8 | IR10: 0.8 | IS10: =RK4m(IR9,IS9:IT9,$IV$1,$F$6,$F$8,$F$9,$F$7,$F$5,$I$6,$I$7,$I$5) -> 0.1301107207 | IT10: 0.09887732671
IQ11: 0.9 | IR11: 0.9 | IS11: =RK4m(IR10,IS10:IT10,$IV$1,$F$6,$F$8,$F$9,$F$7,$F$5,$I$6,$I$7,$I$5) -> 0.1383209442 | IT11: 0.1089695031
IQ12: 1 | IR12: 1 | IS12: =RK4m(IR11,IS11:IT11,$IV$1,$F$6,$F$8,$F$9,$F$7,$F$5,$I$6,$I$7,$I$5) -> 0.1460088845 | IT12: 0.1184489231
IQ13: 1.1 | IR13: 1.1 | IS13: =RK4m(IR12,IS12:IT12,$IV$1,$F$6,$F$8,$F$9,$F$7,$F$5,$I$6,$I$7,$I$5) -> 0.1532033096 | IT13: 0.1273460014
IQ14: 1.2 | IR14: 1.2 | IS14: =RK4m(IR13,IS13:IT13,$IV$1,$F$6,$F$8,$F$9,$F$7,$F$5,$I$6,$I$7,$I$5) -> 0.159930055 | IT14: 0.1356899583
IQ15: 1.3 | IR15: 1.3 | IS15: =RK4m(IR14,IS14:IT14,$IV$1,$F$6,$F$8,$F$9,$F$7,$F$5,$I$6,$I$7,$I$5) -> 0.1662131588 | IT15: 0.1435086844
IQ16: 1.4 | IR16: 1.4 | IS16: =RK4m(IR15,IS15:IT15,$IV$1,$F$6,$F$8,$F$9,$F$7,$F$5,$I$6,$I$7,$I$5) -> 0.1720752943 | IT16: 0.1508287382
IQ17: 1.5 | IR17: 1.5 | IS17: =RK4m(IR16,IS16:IT16,$IV$1,$F$6,$F$8,$F$9,$F$7,$F$5,$I$6,$I$7,$I$5) -> 0.1775379575 | IT17: 0.1576753875
IQ18: 1.6 | IR18: 1.6 | IS18: =RK4m(IR17,IS17:IT17,$IV$1,$F$6,$F$8,$F$9,$F$7,$F$5,$I$6,$I$7,$I$5) -> 0.1826215659 | IT18: 0.1640726646
IQ19: 1.7 | IR19: 1.7 | IS19: =RK4m(IR18,IS18:IT18,$IV$1,$F$6,$F$8,$F$9,$F$7,$F$5,$I$6,$I$7,$I$5) -> 0.1873455261 | IT19: 0.1700434233
IQ20: 1.8 | IR20: 1.8 | IS20: =RK4m(IR19,IS19:IT19,$IV$1,$F$6,$F$8,$F$9,$F$7,$F$5,$I$6,$I$7,$I$5) -> 0.1917282878 | IT20: 0.1756093959
IQ21: 1.9 | IR21: 1.9 | IS21: =RK4m(IR20,IS20:IT20,$IV$1,$F$6,$F$8,$F$9,$F$7,$F$5,$I$6,$I$7,$I$5) -> 0.1957873929 | IT21: 0.1807912474
IQ22: 2 | IR22: 2 | IS22: =RK4m(IR21,IS21:IT21,$IV$1,$F$6,$F$8,$F$9,$F$7,$F$5,$I$6,$I$7,$I$5) -> 0.1995395199 | IT22: 0.1856086274
IQ23: 2.1 | IR23: 2.1 | IS23: =RK4m(IR22,IS22:IT22,$IV$1,$F$6,$F$8,$F$9,$F$7,$F$5,$I$6,$I$7,$I$5) -> 0.2030005265 | IT23: 0.1900802198
IQ24: 2.2 | IR24: 2.2 | IS24: =RK4m(IR23,IS23:IT23,$IV$1,$F$6,$F$8,$F$9,$F$7,$F$5,$I$6,$I$7,$I$5) -> 0.2061854899 | IT24: 0.1942237901
IQ25: 2.3 | IR25: 2.3 | IS25: =RK4m(IR24,IS24:IT24,$IV$1,$F$6,$F$8,$F$9,$F$7,$F$5,$I$6,$I$7,$I$5) -> 0.2091087448 | IT25: 0.1980562296
IQ26: 2.4 | IR26: 2.4 | IS26: =RK4m(IR25,IS25:IT25,$IV$1,$F$6,$F$8,$F$9,$F$7,$F$5,$I$6,$I$7,$I$5) -> 0.2117839196 | IT26: 0.2015935991
IQ27: 2.5 | IR27: 2.5 | IS27: =RK4m(IR26,IS26:IT26,$IV$1,$F$6,$F$8,$F$9,$F$7,$F$5,$I$6,$I$7,$I$5) -> 0.2142239711 | IT27: 0.2048511684
IQ28: 2.6 | IR28: 2.6 | IS28: =RK4m(IR27,IS27:IT27,$IV$1,$F$6,$F$8,$F$9,$F$7,$F$5,$I$6,$I$7,$I$5) -> 0.216441217 | IT28: 0.2078434556
T29: 1 | IQ29: 2.7 | IR29: 2.7 | IS29: =RK4m(IR28,IS28:IT28,$IV$1,$F$6,$F$8,$F$9,$F$7,$F$5,$I$6,$I$7,$I$5) -> 0.2184473677 | IT29: 0.2105842639
IQ30: 2.8 | IR30: 2.8 | IS30: =RK4m(IR29,IS29:IT29,$IV$1,$F$6,$F$8,$F$9,$F$7,$F$5,$I$6,$I$7,$I$5) -> 0.2202535553 | IT30: 0.2130867159
IQ31: 2.9 | IR31: 2.9 | IS31: =RK4m(IR30,IS30:IT30,$IV$1,$F$6,$F$8,$F$9,$F$7,$F$5,$I$6,$I$7,$I$5) -> 0.2218703624 | IT31: 0.2153632875
IQ32: 3 | IR32: 3 | IS32: =RK4m(IR31,IS31:IT31,$IV$1,$F$6,$F$8,$F$9,$F$7,$F$5,$I$6,$I$7,$I$5) -> 0.2233078485 | IT32: 0.2174258391
IQ33: 3.1 | IR33: 3.1 | IS33: =RK4m(IR32,IS32:IT32,$IV$1,$F$6,$F$8,$F$9,$F$7,$F$5,$I$6,$I$7,$I$5) -> 0.224575576 | IT33: 0.2192856458
IQ34: 3.2 | IR34: 3.2 | IS34: =RK4m(IR33,IS33:IT33,$IV$1,$F$6,$F$8,$F$9,$F$7,$F$5,$I$6,$I$7,$I$5) -> 0.2256826343 | IT34: 0.220953426
IQ35: 3.3 | IR35: 3.3 | IS35: =RK4m(IR34,IS34:IT34,$IV$1,$F$6,$F$8,$F$9,$F$7,$F$5,$I$6,$I$7,$I$5) -> 0.2266376628 | IT35: 0.2224393686
IQ36: 3.4 | IR36: 3.4 | IS36: =RK4m(IR35,IS35:IT35,$IV$1,$F$6,$F$8,$F$9,$F$7,$F$5,$I$6,$I$7,$I$5) -> 0.227448873 | IT36: 0.2237531591
IQ37: 3.5 | IR37: 3.5 | IS37: =RK4m(IR36,IS36:IT36,$IV$1,$F$6,$F$8,$F$9,$F$7,$F$5,$I$6,$I$7,$I$5) -> 0.2281240696 | IT37: 0.2249040036
IQ38: 3.6 | IR38: 3.6 | IS38: =RK4m(IR37,IS37:IT37,$IV$1,$F$6,$F$8,$F$9,$F$7,$F$5,$I$6,$I$7,$I$5) -> 0.2286706701 | IT38: 0.225900653
IQ39: 3.7 | IR39: 3.7 | IS39: =RK4m(IR38,IS38:IT38,$IV$1,$F$6,$F$8,$F$9,$F$7,$F$5,$I$6,$I$7,$I$5) -> 0.2290957238 | IT39: 0.2267514246
IQ40: 3.8 | IR40: 3.8 | IS40: =RK4m(IR39,IS39:IT39,$IV$1,$F$6,$F$8,$F$9,$F$7,$F$5,$I$6,$I$7,$I$5) -> 0.2294059302 | IT40: 0.2274642237
IQ41: 3.9 | IR41: 3.9 | IS41: =RK4m(IR40,IS40:IT40,$IV$1,$F$6,$F$8,$F$9,$F$7,$F$5,$I$6,$I$7,$I$5) -> 0.2296076555 | IT41: 0.2280465636
IQ42: 4 | IR42: 4 | IS42: =RK4m(IR41,IS41:IT41,$IV$1,$F$6,$F$8,$F$9,$F$7,$F$5,$I$6,$I$7,$I$5) -> 0.2297069493 | IT42: 0.2285055849
IQ43: 4.1 | IR43: 4.1 | IS43: =RK4m(IR42,IS42:IT42,$IV$1,$F$6,$F$8,$F$9,$F$7,$F$5,$I$6,$I$7,$I$5) -> 0.2297095598 | IT43: 0.2288480735
IQ44: 4.2 | IR44: 4.2 | IS44: =RK4m(IR43,IS43:IT43,$IV$1,$F$6,$F$8,$F$9,$F$7,$F$5,$I$6,$I$7,$I$5) -> 0.2296209492 | IT44: 0.2290804781
IQ45: 4.3 | IR45: 4.3 | IS45: =RK4m(IR44,IS44:IT44,$IV$1,$F$6,$F$8,$F$9,$F$7,$F$5,$I$6,$I$7,$I$5) -> 0.2294463066 | IT45: 0.2292089267
IQ46: 4.4 | IR46: 4.4 | IS46: =RK4m(IR45,IS45:IT45,$IV$1,$F$6,$F$8,$F$9,$F$7,$F$5,$I$6,$I$7,$I$5) -> 0.2291905627 | IT46: 0.2292392422
IQ47: 4.5 | IR47: 4.5 | IS47: =RK4m(IR46,IS46:IT46,$IV$1,$F$6,$F$8,$F$9,$F$7,$F$5,$I$6,$I$7,$I$5) -> 0.2288584011 | IT47: 0.2291769575
IQ48: 4.6 | IR48: 4.6 | IS48: =RK4m(IR47,IS47:IT47,$IV$1,$F$6,$F$8,$F$9,$F$7,$F$5,$I$6,$I$7,$I$5) -> 0.2284542715 | IT48: 0.2290273295
IQ49: 4.7 | IR49: 4.7 | IS49: =RK4m(IR48,IS48:IT48,$IV$1,$F$6,$F$8,$F$9,$F$7,$F$5,$I$6,$I$7,$I$5) -> 0.2279824006 | IT49: 0.2287953527
IQ50: 4.8 | IR50: 4.8 | IS50: =RK4m(IR49,IS49:IT49,$IV$1,$F$6,$F$8,$F$9,$F$7,$F$5,$I$6,$I$7,$I$5) -> 0.227446803 | IT50: 0.2284857722
IQ51: 4.9 | IR51: 4.9 | IS51: =RK4m(IR50,IS50:IT50,$IV$1,$F$6,$F$8,$F$9,$F$7,$F$5,$I$6,$I$7,$I$5) -> 0.2268512919 | IT51: 0.2281030954
IQ52: 5 | IR52: 5 | IS52: =RK4m(IR51,IS51:IT51,$IV$1,$F$6,$F$8,$F$9,$F$7,$F$5,$I$6,$I$7,$I$5) -> 0.2261994888 | IT52: 0.2276516044
IQ53: 5.1 | IR53: 5.1 | IS53: =RK4m(IR52,IS52:IT52,$IV$1,$F$6,$F$8,$F$9,$F$7,$F$5,$I$6,$I$7,$I$5) -> 0.2254948326 | IT53: 0.2271353663
IQ54: 5.2 | IR54: 5.2 | IS54: =RK4m(IR53,IS53:IT53,$IV$1,$F$6,$F$8,$F$9,$F$7,$F$5,$I$6,$I$7,$I$5) -> 0.2247405892 | IT54: 0.2265582443
IQ55: 5.3 | IR55: 5.3 | IS55: =RK4m(IR54,IS54:IT54,$IV$1,$F$6,$F$8,$F$9,$F$7,$F$5,$I$6,$I$7,$I$5) -> 0.2239398595 | IT55: 0.2259239074
IQ56: 5.4 | IR56: 5.4 | IS56: =RK4m(IR55,IS55:IT55,$IV$1,$F$6,$F$8,$F$9,$F$7,$F$5,$I$6,$I$7,$I$5) -> 0.2230955876 | IT56: 0.2252358398
IQ57: 5.5 | IR57: 5.5 | IS57: =RK4m(IR56,IS56:IT56,$IV$1,$F$6,$F$8,$F$9,$F$7,$F$5,$I$6,$I$7,$I$5) -> 0.2222105684 | IT57: 0.2244973504
IQ58: 5.6 | IR58: 5.6 | IS58: =RK4m(IR57,IS57:IT57,$IV$1,$F$6,$F$8,$F$9,$F$7,$F$5,$I$6,$I$7,$I$5) -> 0.2212874553 | IT58: 0.2237115809
IQ59: 5.7 | IR59: 5.7 | IS59: =RK4m(IR58,IS58:IT58,$IV$1,$F$6,$F$8,$F$9,$F$7,$F$5,$I$6,$I$7,$I$5) -> 0.2203287667 | IT59: 0.2228815144
IQ60: 5.8 | IR60: 5.8 | IS60: =RK4m(IR59,IS59:IT59,$IV$1,$F$6,$F$8,$F$9,$F$7,$F$5,$I$6,$I$7,$I$5) -> 0.2193368927 | IT60: 0.222009983
IQ61: 5.9 | IR61: 5.9 | IS61: =RK4m(IR60,IS60:IT60,$IV$1,$F$6,$F$8,$F$9,$F$7,$F$5,$I$6,$I$7,$I$5) -> 0.2183141018 | IT61: 0.2210996749
IQ62: 6 | IR62: 6 | IS62: =RK4m(IR61,IS61:IT61,$IV$1,$F$6,$F$8,$F$9,$F$7,$F$5,$I$6,$I$7,$I$5) -> 0.2172625464 | IT62: 0.2201531423
IQ63: 6.1 | IR63: 6.1 | IS63: =RK4m(IR62,IS62:IT62,$IV$1,$F$6,$F$8,$F$9,$F$7,$F$5,$I$6,$I$7,$I$5) -> 0.2161842686 | IT63: 0.2191728072
IQ64: 6.2 | IR64: 6.2 | IS64: =RK4m(IR63,IS63:IT63,$IV$1,$F$6,$F$8,$F$9,$F$7,$F$5,$I$6,$I$7,$I$5) -> 0.215081206 | IT64: 0.2181609681
IQ65: 6.3 | IR65: 6.3 | IS65: =RK4m(IR64,IS64:IT64,$IV$1,$F$6,$F$8,$F$9,$F$7,$F$5,$I$6,$I$7,$I$5) -> 0.2139551961 | IT65: 0.2171198064
IQ66: 6.4 | IR66: 6.4 | IS66: =RK4m(IR65,IS65:IT65,$IV$1,$F$6,$F$8,$F$9,$F$7,$F$5,$I$6,$I$7,$I$5) -> 0.2128079822 | IT66: 0.2160513918
IQ67: =IQ66+$IV$1 -> 6.5 | IR67: =IF(IR66>=$I$9,0,IR66+$IV$1) -> 6.5 | IS67: =RK4m(IR66,IS66:IT66,$IV$1,$F$6,$F$8,$F$9,$F$7,$F$5,$I$6,$I$7,$I$5) -> 0.2116412171 | IT67: 0.2149576875
IQ68: 6.6 | IR68: 6.6 | IS68: =RK4m(IR67,IS67:IT67,$IV$1,$F$6,$F$8,$F$9,$F$7,$F$5,$I$6,$I$7,$I$5) -> 0.2104564681 | IT68: 0.2138405563
IQ69: 6.7 | IR69: 6.7 | IS69: =RK4m(IR68,IS68:IT68,$IV$1,$F$6,$F$8,$F$9,$F$7,$F$5,$I$6,$I$7,$I$5) -> 0.2092552211 | IT69: 0.2127017648
IQ70: 6.8 | IR70: 6.8 | IS70: =RK4m(IR69,IS69:IT69,$IV$1,$F$6,$F$8,$F$9,$F$7,$F$5,$I$6,$I$7,$I$5) -> 0.2080388846 | IT70: 0.2115429883
IQ71: 6.9 | IR71: 6.9 | IS71: =RK4m(IR70,IS70:IT70,$IV$1,$F$6,$F$8,$F$9,$F$7,$F$5,$I$6,$I$7,$I$5) -> 0.2068087934 | IT71: 0.2103658155
IQ72: 7 | IR72: 7 | IS72: =RK4m(IR71,IS71:IT71,$IV$1,$F$6,$F$8,$F$9,$F$7,$F$5,$I$6,$I$7,$I$5) -> 0.2055662123 | IT72: 0.2091717526
IQ73: 7.1 | IR73: 7.1 | IS73: =RK4m(IR72,IS72:IT72,$IV$1,$F$6,$F$8,$F$9,$F$7,$F$5,$I$6,$I$7,$I$5) -> 0.2043123399 | IT73: 0.2079622273
IQ74: 7.2 | IR74: 7.2 | IS74: =RK4m(IR73,IS73:IT73,$IV$1,$F$6,$F$8,$F$9,$F$7,$F$5,$I$6,$I$7,$I$5) -> 0.2030483111 | IT74: 0.2067385928
IQ75: 7.3 | IR75: 7.3 | IS75: =RK4m(IR74,IS74:IT74,$IV$1,$F$6,$F$8,$F$9,$F$7,$F$5,$I$6,$I$7,$I$5) -> 0.2017752011 | IT75: 0.2055021316
IQ76: 7.4 | IR76: 7.4 | IS76: =RK4m(IR75,IS75:IT75,$IV$1,$F$6,$F$8,$F$9,$F$7,$F$5,$I$6,$I$7,$I$5) -> 0.2004940277 | IT76: 0.2042540585
IQ77: 7.5 | IR77: 7.5 | IS77: =RK4m(IR76,IS76:IT76,$IV$1,$F$6,$F$8,$F$9,$F$7,$F$5,$I$6,$I$7,$I$5) -> 0.1992057544 | IT77: 0.2029955246
IQ78: 7.6 | IR78: 7.6 | IS78: =RK4m(IR77,IS77:IT77,$IV$1,$F$6,$F$8,$F$9,$F$7,$F$5,$I$6,$I$7,$I$5) -> 0.1979112932 | IT78: 0.2017276198
IQ79: 7.7 | IR79: 7.7 | IS79: =RK4m(IR78,IS78:IT78,$IV$1,$F$6,$F$8,$F$9,$F$7,$F$5,$I$6,$I$7,$I$5) -> 0.196611507 | IT79: 0.2004513764
IQ80: 7.8 | IR80: 7.8 | IS80: =RK4m(IR79,IS79:IT79,$IV$1,$F$6,$F$8,$F$9,$F$7,$F$5,$I$6,$I$7,$I$5) -> 0.1953072119 | IT80: 0.1991677714
IQ81: 7.9 | IR81: 7.9 | IS81: =RK4m(IR80,IS80:IT80,$IV$1,$F$6,$F$8,$F$9,$F$7,$F$5,$I$6,$I$7,$I$5) -> 0.1939991799 | IT81: 0.1978777299
IQ82: 8 | IR82: 8 | IS82: =RK4m(IR81,IS81:IT81,$IV$1,$F$6,$F$8,$F$9,$F$7,$F$5,$I$6,$I$7,$I$5) -> 0.1926881407 | IT82: 0.1965821269
IQ83: 8.1 | IR83: 8.1 | IS83: =RK4m(IR82,IS82:IT82,$IV$1,$F$6,$F$8,$F$9,$F$7,$F$5,$I$6,$I$7,$I$5) -> 0.1913747839 | IT83: 0.1952817903
IQ84: 8.2 | IR84: 8.2 | IS84: =RK4m(IR83,IS83:IT83,$IV$1,$F$6,$F$8,$F$9,$F$7,$F$5,$I$6,$I$7,$I$5) -> 0.1900597614 | IT84: 0.1939775032
IQ85: 8.3 | IR85: 8.3 | IS85: =RK4m(IR84,IS84:IT84,$IV$1,$F$6,$F$8,$F$9,$F$7,$F$5,$I$6,$I$7,$I$5) -> 0.1887436885 | IT85: 0.1926700058
IQ86: 8.4 | IR86: 8.4 | IS86: =RK4m(IR85,IS85:IT85,$IV$1,$F$6,$F$8,$F$9,$F$7,$F$5,$I$6,$I$7,$I$5) -> 0.1874271464 | IT86: 0.1913599981
IQ87: 8.5 | IR87: 8.5 | IS87: =RK4m(IR86,IS86:IT86,$IV$1,$F$6,$F$8,$F$9,$F$7,$F$5,$I$6,$I$7,$I$5) -> 0.1861106836 | IT87: 0.1900481411
IQ88: 8.6 | IR88: 8.6 | IS88: =RK4m(IR87,IS87:IT87,$IV$1,$F$6,$F$8,$F$9,$F$7,$F$5,$I$6,$I$7,$I$5) -> 0.1847948175 | IT88: 0.1887350596
IQ89: 8.7 | IR89: 8.7 | IS89: =RK4m(IR88,IS88:IT88,$IV$1,$F$6,$F$8,$F$9,$F$7,$F$5,$I$6,$I$7,$I$5) -> 0.1834800362 | IT89: 0.1874213432
IQ90: 8.8 | IR90: 8.8 | IS90: =RK4m(IR89,IS89:IT89,$IV$1,$F$6,$F$8,$F$9,$F$7,$F$5,$I$6,$I$7,$I$5) -> 0.1821667996 | IT90: 0.1861075488
IQ91: 8.9 | IR91: 8.9 | IS91: =RK4m(IR90,IS90:IT90,$IV$1,$F$6,$F$8,$F$9,$F$7,$F$5,$I$6,$I$7,$I$5) -> 0.180855541 | IT91: 0.1847942015
IQ92: 9 | IR92: 9 | IS92: =RK4m(IR91,IS91:IT91,$IV$1,$F$6,$F$8,$F$9,$F$7,$F$5,$I$6,$I$7,$I$5) -> 0.1795466687 | IT92: 0.183481797
IQ93: 9.1 | IR93: 9.1 | IS93: =RK4m(IR92,IS92:IT92,$IV$1,$F$6,$F$8,$F$9,$F$7,$F$5,$I$6,$I$7,$I$5) -> 0.1782405667 | IT93: 0.1821708021
IQ94: 9.2 | IR94: 9.2 | IS94: =RK4m(IR93,IS93:IT93,$IV$1,$F$6,$F$8,$F$9,$F$7,$F$5,$I$6,$I$7,$I$5) -> 0.1769375964 | IT94: 0.1808616571
IQ95: 9.3 | IR95: 9.3 | IS95: =RK4m(IR94,IS94:IT94,$IV$1,$F$6,$F$8,$F$9,$F$7,$F$5,$I$6,$I$7,$I$5) -> 0.1756380973 | IT95: 0.1795547765
IQ96: 9.4 | IR96: 9.4 | IS96: =RK4m(IR95,IS95:IT95,$IV$1,$F$6,$F$8,$F$9,$F$7,$F$5,$I$6,$I$7,$I$5) -> 0.1743423885 | IT96: 0.1782505504
IQ97: 9.5 | IR97: 9.5 | IS97: =RK4m(IR96,IS96:IT96,$IV$1,$F$6,$F$8,$F$9,$F$7,$F$5,$I$6,$I$7,$I$5) -> 0.1730507696 | IT97: 0.176949346
IQ98: 9.6 | IR98: 9.6 | IS98: =RK4m(IR97,IS97:IT97,$IV$1,$F$6,$F$8,$F$9,$F$7,$F$5,$I$6,$I$7,$I$5) -> 0.1717635216 | IT98: 0.1756515084
IQ99: 9.7 | IR99: 9.7 | IS99: =RK4m(IR98,IS98:IT98,$IV$1,$F$6,$F$8,$F$9,$F$7,$F$5,$I$6,$I$7,$I$5) -> 0.1704809079 | IT99: 0.174357362
IQ100: 9.8 | IR100: 9.8 | IS100: =RK4m(IR99,IS99:IT99,$IV$1,$F$6,$F$8,$F$9,$F$7,$F$5,$I$6,$I$7,$I$5) -> 0.1692031751 | IT100: 0.1730672112
IQ101: 9.9 | IR101: 9.9 | IS101: =RK4m(IR100,IS100:IT100,$IV$1,$F$6,$F$8,$F$9,$F$7,$F$5,$I$6,$I$7,$I$5) -> 0.1679305541 | IT101: 0.1717813419
IQ102: 10 | IR102: 10 | IS102: =RK4m(IR101,IS101:IT101,$IV$1,$F$6,$F$8,$F$9,$F$7,$F$5,$I$6,$I$7,$I$5) -> 0.1666632606 | IT102: 0.1705000218
IQ103: 10.1 | IR103: 10.1 | IS103: =RK4m(IR102,IS102:IT102,$IV$1,$F$6,$F$8,$F$9,$F$7,$F$5,$I$6,$I$7,$I$5) -> 0.1654014959 | IT103: 0.1692235021
IQ104: 10.2 | IR104: 10.2 | IS104: =RK4m(IR103,IS103:IT103,$IV$1,$F$6,$F$8,$F$9,$F$7,$F$5,$I$6,$I$7,$I$5) -> 0.164145448 | IT104: 0.1679520175
IQ105: 10.3 | IR105: 10.3 | IS105: =RK4m(IR104,IS104:IT104,$IV$1,$F$6,$F$8,$F$9,$F$7,$F$5,$I$6,$I$7,$I$5) -> 0.1628952919 | IT105: 0.1666857876
IQ106: 10.4 | IR106: 10.4 | IS106: =RK4m(IR105,IS105:IT105,$IV$1,$F$6,$F$8,$F$9,$F$7,$F$5,$I$6,$I$7,$I$5) -> 0.1616511902 | IT106: 0.1654250176
IQ107: 10.5 | IR107: 10.5 | IS107: =RK4m(IR106,IS106:IT106,$IV$1,$F$6,$F$8,$F$9,$F$7,$F$5,$I$6,$I$7,$I$5) -> 0.1604132941 | IT107: 0.1641698988
IQ108: 10.6 | IR108: 10.6 | IS108: =RK4m(IR107,IS107:IT107,$IV$1,$F$6,$F$8,$F$9,$F$7,$F$5,$I$6,$I$7,$I$5) -> 0.1591817439 | IT108: 0.1629206096
IQ109: 10.7 | IR109: 10.7 | IS109: =RK4m(IR108,IS108:IT108,$IV$1,$F$6,$F$8,$F$9,$F$7,$F$5,$I$6,$I$7,$I$5) -> 0.1579566691 | IT109: 0.1616773158
IQ110: 10.8 | IR110: 10.8 | IS110: =RK4m(IR109,IS109:IT109,$IV$1,$F$6,$F$8,$F$9,$F$7,$F$5,$I$6,$I$7,$I$5) -> 0.1567381897 | IT110: 0.1604401717
IQ111: 10.9 | IR111: 10.9 | IS111: =RK4m(IR110,IS110:IT110,$IV$1,$F$6,$F$8,$F$9,$F$7,$F$5,$I$6,$I$7,$I$5) -> 0.155526416 | IT111: 0.1592093202
IQ112: 11 | IR112: 11 | IS112: =RK4m(IR111,IS111:IT111,$IV$1,$F$6,$F$8,$F$9,$F$7,$F$5,$I$6,$I$7,$I$5) -> 0.1543214496 | IT112: 0.1579848937
IQ113: 11.1 | IR113: 11.1 | IS113: =RK4m(IR112,IS112:IT112,$IV$1,$F$6,$F$8,$F$9,$F$7,$F$5,$I$6,$I$7,$I$5) -> 0.1531233837 | IT113: 0.1567670148
IQ114: 11.2 | IR114: 11.2 | IS114: =RK4m(IR113,IS113:IT113,$IV$1,$F$6,$F$8,$F$9,$F$7,$F$5,$I$6,$I$7,$I$5) -> 0.1519323032 | IT114: 0.1555557963
IQ115: 11.3 | IR115: 11.3 | IS115: =RK4m(IR114,IS114:IT114,$IV$1,$F$6,$F$8,$F$9,$F$7,$F$5,$I$6,$I$7,$I$5) -> 0.1507482858 | IT115: 0.1543513421
IQ116: 11.4 | IR116: 11.4 | IS116: =RK4m(IR115,IS115:IT115,$IV$1,$F$6,$F$8,$F$9,$F$7,$F$5,$I$6,$I$7,$I$5) -> 0.1495714017 | IT116: 0.1531537475
IQ117: 11.5 | IR117: 11.5 | IS117: =RK4m(IR116,IS116:IT116,$IV$1,$F$6,$F$8,$F$9,$F$7,$F$5,$I$6,$I$7,$I$5) -> 0.1484017146 | IT117: 0.1519630997
IQ118: 11.6 | IR118: 11.6 | IS118: =RK4m(IR117,IS117:IT117,$IV$1,$F$6,$F$8,$F$9,$F$7,$F$5,$I$6,$I$7,$I$5) -> 0.1472392815 | IT118: 0.1507794783
IQ119: 11.7 | IR119: 11.7 | IS119: =RK4m(IR118,IS118:IT118,$IV$1,$F$6,$F$8,$F$9,$F$7,$F$5,$I$6,$I$7,$I$5) -> 0.1460841534 | IT119: 0.1496029555
IQ120: 11.8 | IR120: 11.8 | IS120: =RK4m(IR119,IS119:IT119,$IV$1,$F$6,$F$8,$F$9,$F$7,$F$5,$I$6,$I$7,$I$5) -> 0.1449363755 | IT120: 0.1484335967
IQ121: 11.9 | IR121: 11.9 | IS121: =RK4m(IR120,IS120:IT120,$IV$1,$F$6,$F$8,$F$9,$F$7,$F$5,$I$6,$I$7,$I$5) -> 0.1437959876 | IT121: 0.1472714608
IQ122: 12 | IR122: 12 | IS122: =RK4m(IR121,IS121:IT121,$IV$1,$F$6,$F$8,$F$9,$F$7,$F$5,$I$6,$I$7,$I$5) -> 0.1426630243 | IT122: 0.1461166003
IQ123: 12.1 | IR123: 0 | IS123: =RK4m(IR122,IS122:IT122,$IV$1,$F$6,$F$8,$F$9,$F$7,$F$5,$I$6,$I$7,$I$5) -> 0.1415375152 | IT123: 0.1449690621
IQ124: 12.2 | IR124: 0.1 | IS124: =RK4m(IR123,IS123:IT123,$IV$1,$F$6,$F$8,$F$9,$F$7,$F$5,$I$6,$I$7,$I$5) -> 0.1812998904 | IT124: 0.1547607478
IQ125: 12.3 | IR125: 0.2 | IS125: =RK4m(IR124,IS124:IT124,$IV$1,$F$6,$F$8,$F$9,$F$7,$F$5,$I$6,$I$7,$I$5) -> 0.2024033311 | IT125: 0.1671258516
... 156 more rows

Sheet PH (hidden)
